{"text_format":"1","workbook":"xlsx","n_sheets":48,"sheets":["Template","SecurityGeneral","SecurityGeneral_DD","SecurityAnnouncement","SecurityAnnouncement_DD","SecurityContact","SecurityContact_DD","Security Request-Ackn-Reject","Security Request-Ackn-Reject_DD","OrderwithRegistration","OrderwithRegistration_DD","Order","Order_DD","Order Ackn-Rej-Exit","Order Ackn-Rej-Exit_DD","OrderCorrConf","OrderCorrConf_DD","Payment","Payment_DD","Payment Acknowledgement","Payment Acknowledgement_DD","Exchange-Switch","Exchange-Switch_DD","Acct. Registration-Maint","Acct. Registration-Maint_DD","Reg-Activity Ackn Rej","Reg-Activity Ackn Rej_DD","Activity&Distribution","Activity&Distribution_DD","Commission","Commission_DD","Position","Position_DD","Electronic Documentation","Electronic Documentation_DD","Document Transfer Manifest","Document Transfer Manifest_DD","Document Transfer Ackn-Rej","Document Transfer Ackn-Rej_DD","Valuation","Valuation_DD","Account Transfer","Account Transfer_DD","AcctTrnsf Ackn-Rej-Exit","AcctTrnsf Ackn-Rej-Exit_DD","AcctTrnsf Conf-Corr","AcctTrnsf Conf-Corr_DD","RevisionHistory"],"not_rendered":{"charts":0,"images":0,"macros":1,"external_links":1,"defined_names":38,"comments":0,"pivot_tables":0},"unopened":[],"bounds":{"document_bytes":16777216,"sheet_cells":100000,"rows_first":2000,"rows_last":500,"rows_between":2000,"halvings":0,"cell_chars":16384,"cell_head_chars":4096},"cells_cut":0,"cells_raw":0,"read":"whole","date_system":"1900"}

{"sheet":"Template","index":0,"n_rows":24,"n_cols":4,"rows_kept":24,"cut":false,"hidden":false,"merged":[]}
["S.No","FileName","Append","Format"]
[1,"SecurityGeneral","Yes","CSV"]
[2,"SecurityAnnouncement","Yes","CSV"]
[3,"SecurityContact","Yes","CSV"]
[4,"Security Request-Ackn-Reject","Yes","CSV"]
[5,"OrderwithRegistration","Yes","CSV"]
[6,"Order","Yes","CSV"]
[7,"Order Ackn-Rej-Exit","Yes","CSV"]
[8,"OrderCorrConf","Yes","CSV"]
[9,"Payment","Yes","CSV"]
[10,"Payment Acknowledgement","Yes","CSV"]
[11,"Exchange-Switch","Yes","CSV"]
[12,"Acct. Registration-Maint","Yes","CSV"]
[13,"Reg-Activity Ackn Rej","Yes","CSV"]
[14,"Activity&Distribution","Yes","CSV"]
[15,"Commission","Yes","CSV"]
[16,"Position","Yes","CSV"]
[17,"Electronic Documentation","Yes","CSV"]
[18,"Document Transfer Manifest","Yes","CSV"]
[19,"Document Transfer Ackn-Rej","Yes","CSV"]
[20,"Valuation","Yes","CSV"]
[21,"Account Transfer","Yes","CSV"]
[22,"AcctTrnsf Ackn-Rej-Exit","Yes","CSV"]
[23,"AcctTrnsf Conf-Corr","Yes","CSV"]

{"sheet":"SecurityGeneral","index":1,"n_rows":3,"n_cols":166,"rows_kept":3,"cut":false,"hidden":false,"merged":[[0,2,0,8]]}
["Last Update timestamp : 22-07-19 13:55:08 by Musielak, Victor A.",null,"061 = Security General \n\nNote – Red=Required, Blue=Optional, Black=Optional Conditional (see Data Dictionary for condition)"]
["Record Length\n(R-4-N)","Originator Type\n(R-1-A/N)","Recipient Number\n(R-8-A/N)","Fund Number\n(R-8-A/N)","Record Type\n(R-3-A/N)","NSCC Security Issue Number\n(O-16-A/N)","NSCC Sidepocket ID\n(O-3-A/N)","Share Class\n(O-8-A/N)","Security Identifier\n(R-1-A/N)","Security Issue Name\n(R-75-A/N)","Security Issue ID\n(R-12-A/N)","Unitized Indicator\n(R-1-A/N)","Registered Indicator\n(R-1-A/N)","Requested Action Indicator\n(R-1-A/N)","NSCC Reject Indicator\n(R-1-A/N)","NSCC Reject Reason Code 1\n(R-4-A/N)","NSCC Reject Reason Code 2\n(R-4-A/N)","NSCC Reject Reason Code 3\n(R-4-A/N)","NSCC Reject Reason Code 4\n(R-4-A/N)","Submission Date\n(R-8-N)","Effective Date\n(R-8-N)","Security Type\n(R-2-A/N)","Ownership Structure\n(R-2-A/N)","Segregated Portfolio Company Indicator\n(O-1-A/N)","Strategy Indicator\n(O-2-A/N)","NAV Eligible Indicator\n(O-1-A/N)","No Lien Acknowledgement Indicator\n(R-1-A/N)","Subject To  Lock Up Indicator\n(O-1-A/N)","Lock Up Time Period in # of Days\n(O-3-N)","Series Eligible Indicator\n(R-1-A/N)","Performance Fee Payout Date\n(O-8-N)","Performance Fee Indicator\n(O-1-A/N)","Redemption Fee Indicator\n(O-1-A/N)","Redemption Fee Percentage\n(OC-4-N)","Redemption Fee Period\n(OC-2-A/N)","Incentive Fee Indicator\n(O-1-A/N)","High Water Mark\n(O-16-N)","Benchmark Dollars\n(O-16-N)","Benchmark Shares\n(O-14-N)","Hurdle Rate Indicator\n(O-1-A/N)","Hurdle Rate\n(O-6-N)","Carve Out Indicator\n(O-1-A/N)","Clawback Provision Indicator\n(O-1-A/N)","Sidepocket Minimum\n(O-6-N)","Sidepocket Maximum\n(O-6-N)","Gate Provision Indicator\n(O-1-A/N)","Gate Provision Percentage (%)\n(OC-4-N)","Management Fee\n(O-6-N)","Administration Fee\n(O-6-N)","Purchase Order Process Indicator\n(R-1-A/N)","Transfer Indicator\n(O-1-A/N)","Account Registration Indicator\n(O-1-A/N)","Account Maintenance Indicator\n(O-1-A/N)","Filler\n(R-2-A/N)","Initial Minimum\n(R-16-N)","Subsequent Minimum\n(R-16-N)","Absolute Minimum\n(O-16-N)","Valuation Frequency\n(O-2-A/N)","Base Currency\n(O-3-A/N)","Reporting Currency\n(O-3-A/N)","Load Type Indicator\n(R-1-A/N)","Commission Payment Frequency\n(O-2-A/N)","Commission Percentage High\n(R-6-N)","Commission Percentage Low\n(R-6-N)","Number of Breakpoints\n(OC-2-N)","Breakpoint Lower Limit 1\n(OC-16-N)","Breakpoint Upper Limit 1\n(OC-16-N)","Percent of POP 1\n(O-6-N)","Commission Percentage1\n(OC-6-N)","Breakpoint Lower Limit 2\n(OC-16-N)","Breakpoint Upper Limit 2\n(OC-16-N)","Percent of POP 2\n(O-6-N)","Commission Percentage2\n(OC-6-N)","Breakpoint Lower Limit 3\n(OC-16-N)","Breakpoint Upper Limit 3\n(OC-16-N)","Percent of POP 3\n(O-6-N)","Commission Percentage3\n(OC-6-N)","Breakpoint Lower Limit 4\n(OC-16-N)","Breakpoint Upper Limit 4\n(OC-16-N)","Percent of POP 4\n(O-6-N)","Commission Percentage4\n(OC-6-N)","Breakpoint Lower Limit 5\n(OC-16-N)","Breakpoint Upper Limit 5\n(OC-16-N)","Percent of POP 5\n(O-6-N)","Commission Percentage5\n(OC-6-N)","Tender Offer Subject to Holdback Indicator\n(O-1-A/N)","Number of Business Days for Holdback\n(O-3-N)","Holdback Percentage\n(O-6-N)","Interest Paid on Holdback Indicator\n(O-1-A/N)","Interest Rate Compounding Period for Holdback Monies\n(O-1-A/N)","Fund Status Indicator\n(R-1-A/N)","Purchase Closed Indicator\n(O-1-A/N)","Redemption Closed Indicator\n(O-1-A/N)","Exchange Closed Indicator\n(O-1-A/N)","Dividend Payment Indicator\n(O-1-A/N)","Dividend Calculation Type\n(O-1-A/N)","Dividend Payable Type\n(O-1-A/N)","Inactive Fund Disposition Indicator\n(OC-1-A/N)","Fund Tax Indicator\n(R-1-A/N)","Breakpoint Eligible\n(O-1-A/N)","LOI Eligible\n(O-1-A/N)","ROA Eligible\n(O-1-A/N)","Retroactive LOIs\n(O-1-A/N)","Retroactive LOI Period\n(O-2-A/N)","Link by Spouse\n(O-1-A/N)","Link by Civil Union\n(O-1-A/N)","Link by Domestic Partnership\n(O-1-A/N)","Link by Common Law Marriage\n(O-1-A/N)","Link by Parent\n(O-1-A/N)","Link by Step Parent\n(O-1-A/N)","Link by Legal Guardian\n(O-1-A/N)","Link by Child\n(O-1-A/N)","Child Maturation Age\n(OC-2-N)","Countries Where Fund is Registered\n(O-150-A/N)","Domiciled\n(O-3-A/N)","Exchange Listing Indicator\n(O-1-A/N)","Exchange Name\n(O-2-A/N)","Inception Date\n(O-8-N)","Security General Profile Last Updated\n(R-8-N)","Date of Last Offering Memorandum\n(O-8-N)","Exchange Frequency\n(O-2-A/N)","Transfer Frequency\n(R-2-A/N)","Purchase Frequency\n(O-2-A/N)","Redemption / Tender Frequency\n(O-2-A/N)","Blue Sky State\n(O-188-A/N)","Fair Market Value Indicator\n(O-1-A/N)","Fiscal Year End\n(O-4-N)","Breakpoint Lower Limit 6\n(OC-16-N)","Breakpoint Upper Limit 6\n(OC-16-N)","Percent of POP 6\n(O-6-N)","Commission Percentage6\n(OC-6-N)","Breakpoint Lower Limit 7\n(OC-16-N)","Breakpoint Upper Limit 7\n(OC-16-N)","Percent of POP 7\n(O-6-N)","Commission Percentage7\n(OC-6-N)","Breakpoint Lower Limit 8\n(OC-16-N)","Breakpoint Upper Limit 8\n(OC-16-N)","Percent of POP 8\n(O-6-N)","Commission Percentage8\n(OC-6-N)","Breakpoint Lower Limit 9\n(OC-16-N)","Breakpoint Upper Limit 9\n(OC-16-N)","Percent of POP 9\n(O-6-N)","Commission Percentage9\n(OC-6-N)","Breakpoint Lower Limit 10\n(OC-16-N)","Breakpoint Upper Limit 10\n(OC-16-N)","Percent of POP 10\n(O-6-N)","Commission Percentage10\n(OC-6-N)","Commission Payment Methodology\n(O-1-A/N)","Commission Basis\n(O-1-A/N)","Breakpoint Limit Basis Indicator\n(OC-1-A/N)","Sub-Type Eligible Indicator\n(O-1-A/N)","Fund Sub-Type Indicator\n(OC-1-A/N)","Related Parent NSCC Security Issue Number\n(OC-16-A/N)","Electronic Document Subscription/Purchase Indicator\n(R-1-A/N)","Subscription/Purchase Document Format Indicator\n(OC-1-A/N)","Electronic Document Redemption/Tender Indicator\n(R-1-A/N)","Redemption/Tender Document Format Indicator\n(OC-1-A/N)","Electronic Document Transfer Indicator\n(R-1-A/N)","Transfer Document Format Indicator\n(OC-1-A/N)","Electronic Document Account Registration Indicator\n(R-1-A/N)","Account Registration Document Format Indicator\n(OC-1-A/N)","Electronic Document Account Maintenance Indicator\n(R-1-A/N)","Account Maintenance Document Format Indicator\n(OC-1-A/N)","Qualified Plan Initial Minimum\n(O-16-N)","Qualified Plan Subsequent Minimum\n(O-16-N)","ToBeExecuted"]
["1290","","","","","|NoTag|","|NoTag|","|NoTag|","","","","","","","","","","","","","","","","|NoTag|","|NoTag|","|NoTag|","","|NoTag|","|NoTag|","","|NoTag|","|NoTag|","|NoTag|","","","|NoTag|","|NoTag|","|NoTag|","|NoTag|","|NoTag|","|NoTag|","|NoTag|","|NoTag|","|NoTag|","|NoTag|","|NoTag|","","|NoTag|","|NoTag|","","|NoTag|","|NoTag|","|NoTag|","|NoTag|","","","|NoTag|","|NoTag|","|NoTag|","|NoTag|","","|NoTag|","","","","","","|NoTag|","","","","|NoTag|","","","","|NoTag|","","","","|NoTag|","","","","|NoTag|","","|NoTag|","|NoTag|","|NoTag|","|NoTag|","|NoTag|","","|NoTag|","|NoTag|","|NoTag|","|NoTag|","|NoTag|","|NoTag|","","","|NoTag|","|NoTag|","|NoTag|","|NoTag|","|NoTag|","|NoTag|","|NoTag|","|NoTag|","|NoTag|","|NoTag|","|NoTag|","|NoTag|","|NoTag|","","|NoTag|","|NoTag|","|NoTag|","|NoTag|","|NoTag|","","|NoTag|","|NoTag|","","|NoTag|","|NoTag|","|NoTag|","|NoTag|","|NoTag|","","","|NoTag|","","","","|NoTag|","","","","|NoTag|","","","","|NoTag|","","","","|NoTag|","","|NoTag|","|NoTag|","","|NoTag|","","","","","","","","","","","","","|NoTag|","|NoTag|","No"]

{"sheet":"SecurityGeneral_DD","index":2,"n_rows":166,"n_cols":7,"rows_kept":166,"cut":false,"hidden":true,"merged":[]}
["Field Name","Start","End","Length","Type","Opt/Req","Default2Zero"]
["Record Length",1,4,4,"N","R","NO"]
["Originator Type",{"$f":"$C2+1","v":5},{"$f":"$B3+$D3-1","v":5},1,"A/N","R"," "]
["Recipient Number",{"$f":"$C3+1","v":6},13,8,"A/N","R"]
["Fund Number",14,21,8,"A/N","R"]
["Record Type",22,24,3,"A/N","R"]
["NSCC Security Issue Number",25,40,16,"A/N","O"]
["NSCC Sidepocket ID",41,43,3,"A/N","O"]
["Share Class",44,51,8,"A/N","O"]
["Security Identifier",52,52,1,"A/N","R"]
["Security Issue Name",53,127,75,"A/N","R"]
["Security Issue ID",128,139,12,"A/N","R"]
["Unitized Indicator",140,140,1,"A/N","R"]
["Registered Indicator",141,141,1,"A/N","R"]
["Requested Action Indicator",142,142,1,"A/N","R "]
["NSCC Reject Indicator",143,143,1,"A/N","R"]
["NSCC Reject Reason Code 1",144,147,4,"A/N","R"]
["NSCC Reject Reason Code 2",148,151,4,"A/N","R"]
["NSCC Reject Reason Code 3",152,155,4,"A/N","R"]
["NSCC Reject Reason Code 4",156,159,4,"A/N","R"]
["Submission Date",160,167,8,"N","R","NO"]
["Effective Date",168,175,8,"N","R","NO"]
["Security Type",176,177,2,"A/N","R"]
["Ownership Structure",178,179,2,"A/N","R"]
["Segregated Portfolio Company Indicator",180,180,1,"A/N","O "]
["Strategy Indicator",181,182,2,"A/N","O"]
["NAV Eligible Indicator",183,183,1,"A/N","O"]
["No Lien Acknowledgement Indicator",184,184,1,"A/N","R"]
["Subject To  Lock Up Indicator",185,185,1,"A/N","O"]
["Lock Up Time Period in # of Days",186,188,3,"N","O"]
["Series Eligible Indicator",189,189,1,"A/N","R"]
["Performance Fee Payout Date",190,197,8,"N","O","NO"]
["Performance Fee Indicator",198,198,1,"A/N","O"]
["Redemption Fee Indicator",199,199,1,"A/N","O"]
["Redemption Fee Percentage",200,203,4,"N","OC"]
["Redemption Fee Period",204,205,2,"A/N","OC"]
["Incentive Fee Indicator",206,206,1,"A/N","O"]
["High Water Mark",207,222,16,"N","O"]
["Benchmark Dollars",223,238,16,"N","O"]
["Benchmark Shares",239,252,14,"N","O"]
["Hurdle Rate Indicator",253,253,1,"A/N","O"]
["Hurdle Rate",254,259,6,"N","O"]
["Carve Out Indicator",260,260,1,"A/N","O"]
["Clawback Provision Indicator",261,261,1,"A/N","O"]
["Sidepocket Minimum",262,267,6,"N","O"]
["Sidepocket Maximum",268,273,6,"N","O"]
["Gate Provision Indicator",274,274,1,"A/N","O"]
["Gate Provision Percentage (%)",275,278,4,"N","OC"]
["Management Fee",279,284,6,"N","O"]
["Administration Fee",285,290,6,"N","O"]
["Purchase Order Process Indicator",291,291,1,"A/N","R"]
["Transfer Indicator",292,292,1,"A/N","O"]
["Account Registration Indicator",293,293,1,"A/N","O"]
["Account Maintenance Indicator",294,294,1,"A/N","O"]
["Filler",295,296,2,"A/N","R"]
["Initial Minimum",297,312,16,"N","R","NO"]
["Subsequent Minimum",313,328,16,"N","R","NO"]
["Absolute Minimum",329,344,16,"N","O"]
["Valuation Frequency",345,346,2,"A/N","O"]
["Base Currency",347,349,3,"A/N","O"]
["Reporting Currency",350,352,3,"A/N","O"]
["Load Type Indicator",353,353,1,"A/N","R"]
["Commission Payment Frequency",354,355,2,"A/N","O"]
["Commission Percentage High",356,361,6,"N","R","NO"]
["Commission Percentage Low",362,367,6,"N","R","NO"]
["Number of Breakpoints",368,369,2,"N","OC"]
["Breakpoint Lower Limit 1",370,{"$f":"$B67+$D67-1","v":385},16,"N","OC","NO"]
["Breakpoint Upper Limit 1",{"$f":"$C67+1","v":386},401,16,"N","OC","NO"]
["Percent of POP 1",402,407,6,"N","O","NO"]
["Commission Percentage1",408,413,6,"N","OC","NO"]
["Breakpoint Lower Limit 2",414,429,16,"N","OC","NO"]
["Breakpoint Upper Limit 2",430,445,16,"N","OC","NO"]
["Percent of POP 2",446,451,6,"N","O","NO"]
["Commission Percentage2",452,457,6,"N","OC","NO"]
["Breakpoint Lower Limit 3",458,473,16,"N","OC","NO"]
["Breakpoint Upper Limit 3",474,489,16,"N","OC","NO"]
["Percent of POP 3",490,495,6,"N","O","NO"]
["Commission Percentage3",496,501,6,"N","OC","NO"]
["Breakpoint Lower Limit 4",502,517,16,"N","OC","NO"]
["Breakpoint Upper Limit 4",518,533,16,"N","OC","NO"]
["Percent of POP 4",534,539,6,"N","O","NO"]
["Commission Percentage4",540,545,6,"N","OC","NO"]
["Breakpoint Lower Limit 5",546,561,16,"N","OC","NO"]
["Breakpoint Upper Limit 5",562,577,16,"N","OC","NO"]
["Percent of POP 5",578,583,6,"N","O","NO"]
["Commission Percentage5",584,589,6,"N","OC","NO"]
["Tender Offer Subject to Holdback Indicator",590,590,1,"A/N","O"]
["Number of Business Days for Holdback",591,593,3,"N","O","NO"]
["Holdback Percentage",594,599,6,"N","O"]
["Interest Paid on Holdback Indicator",600,600,1,"A/N","O"]
["Interest Rate Compounding Period for Holdback Monies",601,601,1,"A/N","O"]
["Fund Status Indicator",602,602,1,"A/N","R"]
["Purchase Closed Indicator",603,603,1,"A/N","O"]
["Redemption Closed Indicator",604,604,1,"A/N","O"]
["Exchange Closed Indicator",605,605,1,"A/N","O"]
["Dividend Payment Indicator",606,606,1,"A/N","O"]
["Dividend Calculation Type",607,607,1,"A/N","O"]
["Dividend Payable Type",608,608,1,"A/N","O"]
["Inactive Fund Disposition Indicator",609,609,1,"A/N","OC"]
["Fund Tax Indicator",610,610,1,"A/N","R"]
["Breakpoint Eligible",611,611,1,"A/N","O"]
["LOI Eligible",612,612,1,"A/N","O"]
["ROA Eligible",613,613,1,"A/N","O"]
["Retroactive LOIs",614,614,1,"A/N","O"]
["Retroactive LOI Period",615,616,2,"A/N","O"]
["Link by Spouse",617,617,1,"A/N","O"]
["Link by Civil Union",618,618,1,"A/N","O"]
["Link by Domestic Partnership",619,619,1,"A/N","O"]
["Link by Common Law Marriage",620,620,1,"A/N","O"]
["Link by Parent",621,621,1,"A/N","O"]
["Link by Step Parent",622,622,1,"A/N","O"]
["Link by Legal Guardian",623,623,1,"A/N","O"]
["Link by Child",624,624,1,"A/N","O"]
["Child Maturation Age",625,626,2,"N","OC","NO"]
["Countries Where Fund is Registered",627,776,150,"A/N","O"]
["Domiciled",777,779,3,"A/N","O"]
["Exchange Listing Indicator",780,780,1,"A/N","O"]
["Exchange Name",781,782,2,"A/N","O"]
["Inception Date",783,790,8,"N","O","NO"]
["Security General Profile Last Updated",791,798,8,"N","R","NO"]
["Date of Last Offering Memorandum",799,806,8,"N","O","NO"]
["Exchange Frequency",807,808,2,"A/N","O"]
["Transfer Frequency",809,810,2,"A/N","R"]
["Purchase Frequency",811,812,2,"A/N","O"]
["Redemption / Tender Frequency",813,814,2,"A/N","O"]
["Blue Sky State",815,{"$f":"+$B126+$D126-1","v":1002},188,"A/N","O"]
["Fair Market Value Indicator",1003,{"$f":"+$B127+$D127-1","v":1003},1,"A/N","O"]
["Fiscal Year End",1004,{"$f":"+$B128+$D128-1","v":1007},4,"N","O","NO"]
["Breakpoint Lower Limit 6",1008,{"$f":"$B129+$D129-1","v":1023},16,"N","OC","NO"]
["Breakpoint Upper Limit 6",1024,1039,16,"N","OC","NO"]
["Percent of POP 6",1040,1045,6,"N","O","NO"]
["Commission Percentage6",{"$f":"$C131+1","v":1046},1051,6,"N","OC","NO"]
["Breakpoint Lower Limit 7",1052,1067,16,"N","OC","NO"]
["Breakpoint Upper Limit 7",1068,1083,16,"N","OC","NO"]
["Percent of POP 7",1084,1089,6,"N","O","NO"]
["Commission Percentage7",1090,1095,6,"N","OC","NO"]
["Breakpoint Lower Limit 8",1096,1111,16,"N","OC","NO"]
["Breakpoint Upper Limit 8",1112,1127,16,"N","OC","NO"]
["Percent of POP 8",1128,1133,6,"N","O","NO"]
["Commission Percentage8",1134,1139,6,"N","OC","NO"]
["Breakpoint Lower Limit 9",1140,1155,16,"N","OC","NO"]
["Breakpoint Upper Limit 9",1156,1171,16,"N","OC","NO"]
["Percent of POP 9",1172,1177,6,"N","O","NO"]
["Commission Percentage9",1178,1183,6,"N","OC","NO"]
["Breakpoint Lower Limit 10",1184,1199,16,"N","OC","NO"]
["Breakpoint Upper Limit 10",1200,1215,16,"N","OC","NO"]
["Percent of POP 10",1216,1221,6,"N","O","NO"]
["Commission Percentage10",1222,1227,6,"N","OC","NO"]
["Commission Payment Methodology",1228,1228,1,"A/N","O"]
["Commission Basis",1229,1229,1,"A/N","O"]
["Breakpoint Limit Basis Indicator",1230,1230,1,"A/N","OC"]
["Sub-Type Eligible Indicator",1231,1231,1,"A/N","O"]
["Fund Sub-Type Indicator",1232,1232,1,"A/N","OC"]
["Related Parent NSCC Security Issue Number",1233,1248,16,"A/N","OC"]
["Electronic Document Subscription/Purchase Indicator",1249,1249,1,"A/N","R"]
["Subscription/Purchase Document Format Indicator",1250,1250,1,"A/N","OC"]
["Electronic Document Redemption/Tender Indicator",1251,1251,1,"A/N","R"]
["Redemption/Tender Document Format Indicator",1252,1252,1,"A/N","OC"]
["Electronic Document Transfer Indicator",1253,1253,1,"A/N","R"]
["Transfer Document Format Indicator",1254,1254,1,"A/N","OC"]
["Electronic Document Account Registration Indicator",1255,1255,1,"A/N","R"]
["Account Registration Document Format Indicator",1256,1256,1,"A/N","OC"]
["Electronic Document Account Maintenance Indicator",1257,1257,1,"A/N","R"]
["Account Maintenance Document Format Indicator",1258,1258,1,"A/N","OC"]
["Qualified Plan Initial Minimum",1259,1274,16,"N","O","NO"]
["Qualified Plan Subsequent Minimum",1275,1290,16,"N","O","NO"]

{"sheet":"SecurityAnnouncement","index":3,"n_rows":3,"n_cols":74,"rows_kept":3,"cut":false,"hidden":false,"merged":[[0,2,0,12]]}
["Last Update timestamp : 20-04-20 12:23:45 by Musielak, Victor A.",null,"062 = Security Announcement            \n\nNote – Red=Required, Blue=Optional, Black=Optional Conditional (see Data Dictionary for condition)"]
["Record Length\n(R-4-N)","Originator Type\n(R-1-A/N)","Recipient Number\n(R-8-A/N)","Fund Number\n(R-8-A/N)","Record Type\n(R-3-A/N)","NSCC Security Issue Number\n(OC-16-A/N)","NSCC Sidepocket ID\n(O-3-A/N)","Share Class\n(O-8-A/N)","Security Identifier\n(OC-1-A/N)","Series Name\n(OC-35-A/N)","Security Issue ID\n(OC-12-A/N)","Filler\n(R-2-A/N)","Requested Action Indicator\n(R-1-A/N)","NSCC Reject Indicator\n(R-1-A/N)","NSCC Reject Reason Code 1\n(R-4-A/N)","NSCC Reject Reason Code 2\n(R-4-A/N)","NSCC Reject Reason Code 3\n(R-4-A/N)","NSCC Reject Reason Code 4\n(R-4-A/N)","Submission Date\n(R-8-N)","Effective Date\n(R-8-N)","Announcement Type\n(R-2-A/N)","Estimated or Actual Indicator\n(O-1-A/N)","Capital Gain Indicator\n(OC-1-A/N)","Dividend Indicator\n(OC-1-A/N)","Record Date\n(OC-8-N)","Ex Date\n(O-8-N)","Reinvest Date\n(O-8-N)","Payable Date\n(OC-8-N)","Dividend/Capital Gain Rate\n(OC-16-N)","Dividend/Capital Gain  Reinvest Price\n(O-12-N)","Trade Date/Dealing Date – (Business Date)\n(OC-8-N)","Payment Date\n(O-8-N)","Documentation Date/Expiration Date\n(OC-8-N)","Subscription/Capital Call/Commitment/Purchase  Start Date\n(OC-8-N)","Subscription/Capital Call/Commitment/Purchase End Date\n(OC-8-N)","Tender Offer/Redemption Start Date\n(OC-8-N)","Tender Offer/Redemption End Date\n(OC-8-N)","Total Amount of Tender Offer/Redemption Dollars\n(O-16-N)","Settlement Date\n(OC-8-N)","Settlement Date Override Indicator\n(O-1-A/N)","Trading Cutoff Time\n(O-4-N)","Trading Cutoff Time Zone\n(O-3-A/N)","Rescission Date\n(OC-8-N)","Recurring Transaction Frequency\n(OC-2-A/N)","Recurring Transaction Dealing Day (Weekly)\n(OC-2-A/N)","Recurring Transaction Dealing Day  (Monthly, Quarterly, Annually)\n(OC-2-A/N)","Recurring Transaction Dealing Months (Quarterly , Annually)\n(OC-8-A/N)","Recurring Transaction Settlement Day (Weekly)\n(OC-2-A/N)","Recurring Transaction Settlement Months  (Quarterly, Annually)\n(OC-8-A/N)","Recurring Transaction Settlement Day\n(OC-2-A/N)","Special Commission Advance Indicator\n(O-1-A/N)","Special Commission Rate\n(OC-8-N)","YTD Return\n(O-4-N)","YTD Positive/Negative Indicator\n(O-1-A/N)","VAR(95%)\n(O-4-N)","VAR Positive/Negative Indicator\n(O-1-A/N)","Sharpe Ratio\n(O-4-N)","Sharpe Ratio Positive/Negative Indicator\n(O-1-A/N)","Sortino Ratio\n(O-4-N)","Sortino Ratio Positive/Negative Indicator\n(O-1-A/N)","Automatic Holdback Refund Indicator\n(O-1-A/N)","Holdback Release Date\n(O-8-N)","Security Announcement Last Updated\n(R-8-N)","Series NSCC Security Issue Number\n(OC-16-A/N)","Series Roll-up Date\n(OC-8-N)","Initial Price Per Share\n(O-12-N)","Total Distributions\n(O-16-N)","Ordinary Dividends\n(O-16-N)","Non-Dividend Distributions\n(O-16-N)","Contract Note Date\n(O-8-N)","Trade Date/Dealing Date – (Calendar Date)\n(OC-8-N)","Split/Reverse Split Ratio\n(OC-5-A/N)","Total Amount of Tender Offer/Redemption Shares\n(O-14-N)","ToBeExecuted"]
["0487","","","","","","|NoTag|","|NoTag|","","","","|NoTag|","","","","","","","","","","|NoTag|","","","","|NoTag|","|NoTag|","","","|NoTag|","","|NoTag|","","","","","","|NoTag|","","|NoTag|","|NoTag|","|NoTag|","","","","","","","","","|NoTag|","","|NoTag|","|NoTag|","|NoTag|","|NoTag|","|NoTag|","|NoTag|","|NoTag|","|NoTag|","|NoTag|","|NoTag|","","","","|NoTag|","|NoTag|","|NoTag|","|NoTag|","|NoTag|","","","|NoTag|","No"]

{"sheet":"SecurityAnnouncement_DD","index":4,"n_rows":74,"n_cols":7,"rows_kept":74,"cut":false,"hidden":true,"merged":[]}
["Field Name","Start","End","Length","Type","Opt/Req","Default2Zero"]
["Record Length",1,4,4,"N","R","NO"]
["Originator Type",5,5,1,"A/N","R"]
["Recipient Number",6,13,8,"A/N","R"]
["Fund Number",14,21,8,"A/N","R"]
["Record Type",22,24,3,"A/N","R"]
["NSCC Security Issue Number",25,40,16,"A/N","OC"]
["NSCC Sidepocket ID",41,43,3,"A/N","O"]
["Share Class",44,51,8,"A/N","O "]
["Security Identifier",52,52,1,"A/N","OC"]
["Series Name",53,87,35,"A/N","OC"]
["Security Issue ID",88,99,12,"A/N","OC"]
["Filler",100,101,2,"A/N","R"]
["Requested Action Indicator",102,102,1,"A/N","R "]
["NSCC Reject Indicator",103,103,1,"A/N","R"]
["NSCC Reject Reason Code 1",104,107,4,"A/N","R"]
["NSCC Reject Reason Code 2",108,111,4,"A/N","R"]
["NSCC Reject Reason Code 3",112,115,4,"A/N","R"]
["NSCC Reject Reason Code 4",116,119,4,"A/N","R"]
["Submission Date",120,127,8,"N","R","NO"]
["Effective Date",128,135,8,"N","R","NO"]
["Announcement Type",136,137,2,"A/N","R"]
["Estimated or Actual Indicator",138,138,1,"A/N","O"]
["Capital Gain Indicator",139,139,1,"A/N","OC"]
["Dividend Indicator",140,140,1,"A/N","OC"]
["Record Date",141,148,8," N","OC","NO"]
["Ex Date",149,156,8,"  N","O","NO"]
["Reinvest Date",157,164,8," N","O","NO"]
["Payable Date",165,172,8," N","OC","NO"]
["Dividend/Capital Gain Rate",173,188,16,"N","OC"]
["Dividend/Capital Gain  Reinvest Price",189,200,12,"N","O"]
["Trade Date/Dealing Date – (Business Date)",201,208,8,"N","OC","NO"]
["Payment Date",209,216,8,"N","O","NO"]
["Documentation Date/Expiration Date",217,224,8,"N","OC","NO"]
["Subscription/Capital Call/Commitment/Purchase  Start Date",225,232,8,"N","OC","NO"]
["Subscription/Capital Call/Commitment/Purchase End Date",233,240,8,"N","OC","NO"]
["Tender Offer/Redemption Start Date",241,248,8,"N","OC","NO"]
["Tender Offer/Redemption End Date",249,256,8,"N","OC","NO"]
["Total Amount of Tender Offer/Redemption Dollars",257,272,16,"N","O"]
["Settlement Date",273,280,8,"N","OC","NO"]
["Settlement Date Override Indicator",281,281,1,"A/N","O"]
["Trading Cutoff Time",282,285,4,"N","O","NO"]
["Trading Cutoff Time Zone",286,288,3,"A/N","O"]
["Rescission Date",289,296,8,"N","OC","NO"]
["Recurring Transaction Frequency",297,298,2,"A/N","OC"]
["Recurring Transaction Dealing Day (Weekly)",299,300,2,"A/N","OC"]
["Recurring Transaction Dealing Day  (Monthly, Quarterly, Annually)",301,302,2,"A/N","OC"]
["Recurring Transaction Dealing Months (Quarterly , Annually)",303,310,8,"A/N","OC"]
["Recurring Transaction Settlement Day (Weekly)",311,312,2,"A/N","OC"]
["Recurring Transaction Settlement Months  (Quarterly, Annually)",313,320,8,"A/N","OC"]
["Recurring Transaction Settlement Day",321,322,2,"A/N","OC"]
["Special Commission Advance Indicator",323,323,1,"A/N","O"]
["Special Commission Rate",324,331,8,"N","OC"]
["YTD Return",332,335,4,"N","O"]
["YTD Positive/Negative Indicator",336,336,1,"A/N","O"]
["VAR(95%)",337,340,4,"N","O"]
["VAR Positive/Negative Indicator",341,341,1,"A/N","O"]
["Sharpe Ratio",342,345,4,"N","O"]
["Sharpe Ratio Positive/Negative Indicator",346,346,1,"A/N","O"]
["Sortino Ratio",347,350,4,"N","O"]
["Sortino Ratio Positive/Negative Indicator",351,351,1,"A/N","O"]
["Automatic Holdback Refund Indicator",352,352,1,"A/N","O"]
["Holdback Release Date",353,360,8,"N","O","NO"]
["Security Announcement Last Updated",361,368,8,"N","R","NO"]
["Series NSCC Security Issue Number",369,384,16,"A/N","OC"]
["Series Roll-up Date",385,392,8,"N","OC","NO"]
["Initial Price Per Share",393,404,12,"N","O"]
["Total Distributions",405,420,16,"N","O"]
["Ordinary Dividends",421,436,16,"N","O"]
["Non-Dividend Distributions",437,452,16,"N","O"]
["Contract Note Date",453,460,8,"N","O","NO"]
["Trade Date/Dealing Date – (Calendar Date)",461,468,8,"N","OC","NO"]
["Split/Reverse Split Ratio",469,473,5,"A/N","OC"]
["Total Amount of Tender Offer/Redemption Shares",474,487,14,"N","O","NO"]

{"sheet":"SecurityContact","index":5,"n_rows":3,"n_cols":81,"rows_kept":3,"cut":false,"hidden":false,"merged":[[0,2,0,12]]}
["Last Update timestamp : 20-04-20 12:24:23 by Musielak, Victor A.",null,"063 = Security Contact \n\nNote – Red=Required, Blue=Optional, Black=Optional Conditional (see Data Dictionary for condition)"]
["Record Length\n(R-4-N)","Originator Type\n(R-1-A/N)","Recipient Number\n(R-8-A/N)","Fund Number\n(R-8-A/N)","Record Type\n(R-3-A/N)","NSCC Security Issue Number\n(O-16-A/N)","Filler\n(R-3-A/N)","Share Class\n(O-8-A/N)","Security Identifier\n(OC-1-A/N)","Filler\n(R-35-A/N)","Security Issue ID\n(OC-12-A/N)","Filler\n(R-2-A/N)","Requested Action Indicator\n(R-1-A/N)","NSCC Reject Indicator\n(R-1-A/N)","NSCC Reject Reason Code 1\n(R-4-A/N)","NSCC Reject Reason Code 2\n(R-4-A/N)","NSCC Reject Reason Code 3\n(R-4-A/N)","NSCC Reject Reason Code 4\n(R-4-A/N)","Submission Date\n(R-8-N)","Effective Date\n(R-8-N)","Security Contact Type of Record 1\n(R-2-A/N)","Contact Name/Address Line 1 of Record 1\n(R-50-A/N)","Contact Name/Address Line 2 of Record 1\n(O-50-A/N)","Contact Name Address Line 3 of Record 1\n(O-50-A/N)","Contact Name/Address Line 4 of Record 1\n(O-50-A/N)","Contact City of Record 1\n(O-35-A/N)","Contact State of Record 1\n(O-2-A/N)","Contact Zip/Postal Code of Record 1\n(O-15-A/N)","Contact Country Code of Record 1\n(O-3-A/N)","Contact Telephone Number of Record 1\n(O-17-A/N)","Contact Fax Number of Record 1\n(O-17-A/N)","Contact Email Address of Record 1\n(O-100-A/N)","Security Contact Type of Record 2\n(O-2-A/N)","Contact Name/Address Line 1 of Record 2\n(OC-50-A/N)","Contact Name/Address Line 2 of Record 2\n(O-50-A/N)","Contact Name/Address Line 3 of Record 2\n(O-50-A/N)","Contact Name/Address Line 4 of Record 2\n(O-50-A/N)","Contact City of Record 2\n(O-35-A/N)","Contact State of Record 2\n(O-2-A/N)","Contact Zip/Postal Code of Record 2\n(O-15-A/N)","Contact Country Code of Record 2\n(O-3-A/N)","Contact Telephone Number of Record 2\n(O-17-A/N)","Contact Fax Number of Record 2\n(O-17-A/N)","Contact Email Address of Record 2\n(O-100-A/N)","Security Contact Type of Record 3\n(O-2-A/N)","Contact Name/Address Line 1 of Record 3\n(OC-50-A/N)","Contact Name/Address Line 2 of Record 3\n(O-50-A/N)","Contact Name/Address Line 3 of Record 3\n(O-50-A/N)","Contact Name/Address Line 4 of Record 3\n(O-50-A/N)","Contact City of Record 3\n(O-35-A/N)","Contact State of Record 3\n(O-2-A/N)","Contact Zip/Postal Code of Record 3\n(O-15-A/N)","Contact Country Code of Record 3\n(O-3-A/N)","Contact Telephone Number of Record 3\n(O-17-A/N)","Contact Fax Number of Record 3\n(O-17-A/N)","Contact Email Address of Record 3\n(O-100-A/N)","Security Contact Type of Record 4\n(O-2-A/N)","Contact Name/Address Line 1 of Record 4\n(OC-50-A/N)","Contact Name/Address Line 2 of Record 4\n(O-50-A/N)","Contact Name/Address Line 3 of Record 4\n(O-50-A/N)","Contact Name/Address Line 4 of Record 4\n(O-50-A/N)","Contact City of Record 4\n(O-35-A/N)","Contact State of Record 4\n(O-2-A/N)","Contact Zip/Postal Code of Record 4\n(O-15-A/N)","Contact Country Code of Record 4\n(O-3-A/N)","Contact Telephone Number of Record 4\n(O-17-A/N)","Contact Fax Number of Record 4\n(O-17-A/N)","Contact Email Address of Record 4\n(O-100-A/N)","Security Contact Type of Record 5\n(O-2-A/N)","Contact Name/Address Line 1 of Record 5\n(OC-50-A/N)","Contact Name/Address Line 2 of Record 5\n(O-50-A/N)","Contact Name/Address Line 3 of Record 5\n(O-50-A/N)","Contact Name/Address Line 4 of Record 5\n(O-50-A/N)","Contact City of Record 5\n(O-35-A/N)","Contact State of Record 5\n(O-2-A/N)","Contact Zip/Postal Code of Record 5\n(O-15-A/N)","Contact Country Code of Record 5\n(O-3-A/N)","Contact Telephone Number of Record 5\n(O-17-A/N)","Contact Fax Number of Record 5\n(O-17-A/N)","Contact Email Address of Record 5\n(O-100-A/N)","ToBeExecuted"]
["2090","","","","","|NoTag|","|NoTag|","|NoTag|","","|NoTag|","","|NoTag|","","","","","","","","","","","|NoTag|","|NoTag|","|NoTag|","|NoTag|","|NoTag|","|NoTag|","|NoTag|","|NoTag|","|NoTag|","|NoTag|","|NoTag|","","|NoTag|","|NoTag|","|NoTag|","|NoTag|","|NoTag|","|NoTag|","|NoTag|","|NoTag|","|NoTag|","|NoTag|","|NoTag|","","|NoTag|","|NoTag|","|NoTag|","|NoTag|","|NoTag|","|NoTag|","|NoTag|","|NoTag|","|NoTag|","|NoTag|","|NoTag|","","|NoTag|","|NoTag|","|NoTag|","|NoTag|","|NoTag|","|NoTag|","|NoTag|","|NoTag|","|NoTag|","|NoTag|","|NoTag|","","|NoTag|","|NoTag|","|NoTag|","|NoTag|","|NoTag|","|NoTag|","|NoTag|","|NoTag|","|NoTag|","|NoTag|","No"]

{"sheet":"SecurityContact_DD","index":6,"n_rows":81,"n_cols":7,"rows_kept":81,"cut":false,"hidden":true,"merged":[]}
["Field Name","Start","End","Length","Type","Opt/Req","Default2Zero"]
["Record Length",1,4,4,"N","R","NO"]
["Originator Type",5,5,1,"A/N","R"]
["Recipient Number",6,13,8,"A/N","R"]
["Fund Number",14,21,8,"A/N","R"]
["Record Type",22,24,3,"A/N","R"]
["NSCC Security Issue Number",25,40,16," A/N","O"]
["Filler",41,43,3,"A/N","R"]
["Share Class",44,51,8,"A/N","O"]
["Security Identifier",52,52,1,"A/N","OC"]
["Filler",53,87,35,"A/N","R"]
["Security Issue ID",88,99,12,"A/N","OC"]
["Filler",100,101,2,"A/N","R"]
["Requested Action Indicator",102,102,1,"  A/N","R"]
["NSCC Reject Indicator",103,103,1,"A/N","R"]
["NSCC Reject Reason Code 1",104,107,4,"A/N","R"]
["NSCC Reject Reason Code 2",108,111,4,"A/N","R"]
["NSCC Reject Reason Code 3",112,115,4,"A/N","R"]
["NSCC Reject Reason Code 4",116,119,4,"A/N","R"]
["Submission Date",120,127,8,"N","R","NO"]
["Effective Date",128,135,8,"N","R","NO"]
["Security Contact Type of Record 1",136,137,2,"A/N","R"]
["Contact Name/Address Line 1 of Record 1",138,187,50,"A/N","R"]
["Contact Name/Address Line 2 of Record 1",188,237,50,"A/N","O"]
["Contact Name Address Line 3 of Record 1",238,287,50,"A/N","O"]
["Contact Name/Address Line 4 of Record 1",288,337,50,"A/N","O"]
["Contact City of Record 1",338,372,35,"A/N","O"]
["Contact State of Record 1",373,374,2,"A/N","O"]
["Contact Zip/Postal Code of Record 1",375,389,15,"A/N","O"]
["Contact Country Code of Record 1",390,392,3,"A/N","O"]
["Contact Telephone Number of Record 1",393,409,17,"A/N","O"]
["Contact Fax Number of Record 1",410,426,17,"A/N","O"]
["Contact Email Address of Record 1",427,526,100,"A/N","O"]
["Security Contact Type of Record 2",527,528,2,"A/N","O"]
["Contact Name/Address Line 1 of Record 2",529,578,50,"A/N","OC"]
["Contact Name/Address Line 2 of Record 2",579,628,50,"A/N","O"]
["Contact Name/Address Line 3 of Record 2",629,678,50,"A/N","O"]
["Contact Name/Address Line 4 of Record 2",679,728,50,"A/N","O"]
["Contact City of Record 2",729,763,35,"A/N","O"]
["Contact State of Record 2",764,765,2,"A/N","O"]
["Contact Zip/Postal Code of Record 2",766,780,15,"A/N","O"]
["Contact Country Code of Record 2",781,783,3,"A/N","O"]
["Contact Telephone Number of Record 2",784,800,17,"A/N","O"]
["Contact Fax Number of Record 2",801,817,17,"A/N","O"]
["Contact Email Address of Record 2",818,917,100,"A/N","O"]
["Security Contact Type of Record 3",918,919,2,"A/N","O"]
["Contact Name/Address Line 1 of Record 3",920,969,50,"A/N","OC"]
["Contact Name/Address Line 2 of Record 3",970,1019,50,"A/N","O"]
["Contact Name/Address Line 3 of Record 3",1020,1069,50,"A/N","O"]
["Contact Name/Address Line 4 of Record 3",1070,1119,50,"A/N","O"]
["Contact City of Record 3",1120,1154,35,"A/N","O"]
["Contact State of Record 3",1155,1156,2,"A/N","O"]
["Contact Zip/Postal Code of Record 3",1157,1171,15,"A/N","O"]
["Contact Country Code of Record 3",1172,1174,3,"A/N","O"]
["Contact Telephone Number of Record 3",1175,1191,17,"A/N","O"]
["Contact Fax Number of Record 3",1192,1208,17,"A/N","O"]
["Contact Email Address of Record 3",1209,1308,100,"A/N","O"]
["Security Contact Type of Record 4",1309,1310,2,"A/N","O"]
["Contact Name/Address Line 1 of Record 4",1311,1360,50,"A/N","OC"]
["Contact Name/Address Line 2 of Record 4",1361,1410,50,"A/N","O"]
["Contact Name/Address Line 3 of Record 4",1411,1460,50,"A/N","O"]
["Contact Name/Address Line 4 of Record 4",1461,1510,50,"A/N","O"]
["Contact City of Record 4",1511,1545,35,"A/N","O"]
["Contact State of Record 4",1546,1547,2,"A/N","O"]
["Contact Zip/Postal Code of Record 4",1548,1562,15,"A/N","O"]
["Contact Country Code of Record 4",1563,1565,3,"A/N","O"]
["Contact Telephone Number of Record 4",1566,1582,17,"A/N","O"]
["Contact Fax Number of Record 4",1583,1599,17,"A/N","O"]
["Contact Email Address of Record 4",1600,1699,100,"A/N","O"]
["Security Contact Type of Record 5",1700,1701,2,"A/N","O"]
["Contact Name/Address Line 1 of Record 5",1702,1751,50,"A/N","OC"]
["Contact Name/Address Line 2 of Record 5",1752,1801,50,"A/N","O"]
["Contact Name/Address Line 3 of Record 5",1802,1851,50,"A/N","O"]
["Contact Name/Address Line 4 of Record 5",1852,1901,50,"A/N","O"]
["Contact City of Record 5",1902,1936,35,"A/N","O"]
["Contact State of Record 5",1937,1938,2,"A/N","O"]
["Contact Zip/Postal Code of Record 5",1939,1953,15,"A/N","O"]
["Contact Country Code of Record 5",1954,1956,3,"A/N","O"]
["Contact Telephone Number of Record 5",1957,1973,17,"A/N","O"]
["Contact Fax Number of Record 5",1974,1990,17,"A/N","O"]
["Contact Email Address of Record 5",1991,2090,100,"A/N","O"]

{"sheet":"Security Request-Ackn-Reject","index":7,"n_rows":3,"n_cols":28,"rows_kept":3,"cut":false,"hidden":false,"merged":[[0,2,0,12]]}
["Last Update timestamp : 20-04-20 12:25:15 by Musielak, Victor A.",null,"064 = Security Profile Request\n065 = Security Profile Request Acknowledgement                                            \n066 = Security Profile Request Reject\n067 = Position Request\n068 = Position Request Acknowledgement\n069 = Position Request Reject\n\nNote – Red=Required, Blue=Optional, Black=Optional Conditional (see Data Dictionary for condition)"]
["Record Length\n(R-4-N)","Originator Type\n(R-1-A/N)","Firm Number\n(R-8-A/N)","Fund Number\n(R-8-A/N)","Record Type\n(R-3-A/N)","NSCC Security Issue Number\n(O-16-A/N)","NSCC Sidepocket ID\n(O-3-A/N)","Share Class\n(O-8-A/N)","Filler\n(R-13-A/N)","Control Number\n(R-20-A/N)","Request Type\n(R-2-A/N)","Series NSCC Security Issue Number\n(O-16-A/N)","NSCC Reject Indicator\n(R-1-A/N)","NSCC Reject Reason Code 1\n(R-4-A/N)","NSCC Reject Reason Code 2\n(R-4-A/N)","NSCC Reject Reason Code 3\n(R-4-A/N)","NSCC Reject Reason Code 4\n(R-4-A/N)","Fund/Firm Reject Indicator\n(OC-1-A/N)","Fund/Firm Reject Reason Code 1\n(OC-4-A/N)","Fund/Firm Reject Reason Code 2\n(O-4-A/N)","Fund/Firm Reject Reason Code 3\n(O-4-A/N)","Fund/Firm Reject Reason Code 4\n(O-4-A/N)","Filler\n(R-8-A/N)","Position File Schedule\n(OC-1-A/N)","Position File Day of Week\n(OC-1-A/N)","Position File Numeric Date\n(OC-2-N)","Position File Schedule Date\n(OC-8-N)","ToBeExecuted"]
["0156","","","","","|NoTag|","|NoTag|","|NoTag|","|NoTag|","","","|NoTag|","","","","","","","","|NoTag|","|NoTag|","|NoTag|","|NoTag|","","","","","No"]

{"sheet":"Security Request-Ackn-Reject_DD","index":8,"n_rows":28,"n_cols":7,"rows_kept":28,"cut":false,"hidden":true,"merged":[]}
["Field Name","Start","End","Length","Type","Opt/Req","Default2Zero"]
["Record Length",1,4,4,"N","R","NO"]
["Originator Type",5,5,1,"A/N","R"]
["Firm Number",6,13,8,"A/N","R"]
["Fund Number",14,21,8,"A/N","R"]
["Record Type",22,24,3,"A/N","R"]
["NSCC Security Issue Number",25,40,16,"A/N","O"]
["NSCC Sidepocket ID",41,43,3,"A/N","O"]
["Share Class",44,51,8,"A/N","O"]
["Filler",52,64,13,"A/N","R"]
["Control Number",65,84,20,"A/N","R"]
["Request Type",85,86,2,"A/N","R"]
["Series NSCC Security Issue Number",87,102,16,"A/N","O"]
["NSCC Reject Indicator",103,103,1,"A/N","R"]
["NSCC Reject Reason Code 1",104,107,4,"A/N","R"]
["NSCC Reject Reason Code 2",108,111,4,"A/N","R"]
["NSCC Reject Reason Code 3",112,115,4,"A/N","R"]
["NSCC Reject Reason Code 4",116,119,4,"A/N","R"]
["Fund/Firm Reject Indicator",120,120,1,"A/N","OC"]
["Fund/Firm Reject Reason Code 1",121,124,4,"A/N","OC"]
["Fund/Firm Reject Reason Code 2",125,128,4,"A/N","O"]
["Fund/Firm Reject Reason Code 3",129,132,4,"A/N","O"]
["Fund/Firm Reject Reason Code 4",133,136,4,"A/N","O"]
["Filler",137,144,8,"A/N","R"]
["Position File Schedule",145,145,1,"A/N","OC"]
["Position File Day of Week",146,146,1,"A/N","OC"]
["Position File Numeric Date",147,148,2,"N","OC","NO"]
["Position File Schedule Date",149,156,8,"N","OC","NO"]

{"sheet":"OrderwithRegistration","index":9,"n_rows":3,"n_cols":204,"rows_kept":3,"cut":false,"hidden":false,"merged":[[0,2,0,12]]}
["Last Update timestamp : 23-06-29 13:19:05 by Musielak, Victor A.",null,"011 = Firm Order with Registration\n012 = Fund Order with Registration\n043 = Prepaid Firm Order with Registration \n\nNote – Red=Required, Blue=Optional, Black=Optional Conditional (see Data Dictionary for condition)"]
["Record Length\n(R-4-N)","Originator Type\n(R-1-A/N)","Firm Number\n(R-8-A/N)","Fund Number\n(R-8-A/N)","Record Type\n(R-3-A/N)","NSCC Security Issue Number\n(OC-16-A/N)","NSCC Sidepocket ID\n(O-3-A/N)","Share Class\n(O-8-A/N)","Security Identifier\n(O-1-A/N)","Security Issue ID\n(O-12-A/N)","Control Number\n(R-20-A/N)","Correction Indicator\n(O-1-A/N)","Submission Date\n(R-8-N)","Trade Date/Dealing Date – (Business Date)\n(OC-8-N)","Filler\n(R-1-A/N)","NSCC Reject Indicator\n(R-1-A/N)","NSCC Reject Reason Code 1\n(R-4-A/N)","NSCC Reject Reason Code 2\n(R-4-A/N)","NSCC Reject Reason Code 3\n(R-4-A/N)","NSCC Reject Reason Code 4\n(R-4-A/N)","Transaction Code\n(R-2-A/N)","Settlement Date\n(OC-8-N)","Settlement Indicator\n(R-1-A/N)","Settlement Date Override Indicator\n(O-1-A/N)","Initial Documentation Status Indicator\n(R-1-A/N)","Money Amount\n(OC-16-N)","Reporting Currency\n(R-3-A/N)","Settlement Currency\n(R-3-A/N)","Share Quantity\n(OC-14-N)","Network Control Indicator\n(R-1-A/N)","Firm Account Number\n(OC-20-A/N)","Fund Account Number\n(OC-20-A/N)","Contract Note Date\n(O-8-N)","Series Roll Up Date\n(O-8-N)","Custodian Account Number\n(O-20-A/N)","Account Type\n(R-2-A/N)","Account Registration Name\n(R-160-A/N)","Original Control Number\n(O-20-A/N)","RIA/RR Indicator\n(R-1-A/N)","Introducing Broker Dealer Firm Name / Registered Investment Advisor Firm Name\n(OC-35-A/N)","Account Representative/Advisor Name\n(OC-15-A/N)","Account Representative/Advisor Number\n(OC-9-A/N)","Branch ID Number\n(OC-9-A/N)","Branch Address 1\n(O-35-A/N)","Branch Address 2\n(O-35-A/N)","Branch Address 3\n(O-35-A/N)","Branch Address 4\n(O-35-A/N)","Branch Address 5\n(O-35-A/N)","Branch Postal Code/Zip Code\n(OC-11-A/N)","Branch Country\n(OC-3-A/N)","Related Trade Indicator 1\n(O-1-A/N)","Related Account Number 1\n(OC-20-A/N)","Dealer Concession/Manager Paid Placement Fee Percentage\n(O-6-N)","Trading Model\n(R-1-A/N)","AIP Firm Role\n(OC-1-A/N)","Net/Gross Indicator\n(OC-1-A/N)","Account Indicator\n(R-1-A/N)","Hybrid Responsibility Indicator\n(OC-1-A/N)","Delivery of Fund Notifications\n(R-1-A/N)","Load Type Indicator\n(O-1-A/N)","Breakpoint Change Reason Code\n(O-1-A/N)","Commission/Placement Fee Amount\n(OC-16-N)","Commission/Placement Fee Percentage\n(OC-6-N)","Dealer Concession/Manager Paid Placement Fee Amount\n(O-16-N)","Firm CRD Number\n(OC-10-N)","Dividend Option\n(O-1-A/N)","Filler\n(R-4-A/N)","SSN/TIN/EIN Indicator\n(O-1-A/N)","SSN/TIN/EIN Number\n(O-9-A/N)","Owner DOB\n(O-8-N)","Custodian Name\n(OC-40-A/N)","Custodian Tax Identification Number\n(O-9-A/N)","Joint Owner Name 1\n(O-35-A/N)","Joint Owner SSN 1\n(O-9-A/N)","Joint Owner DOB 1\n(O-8-N)","Backup Withholding Indicator\n(R-1-A/N)","W8 Certification Date\n(OC-8-N)","W8 Expiration Date\n(OC-8-N)","W8 Qualified Intermediary Indicator\n(OC-1-A/N)","W8 Override Country Code\n(O-3-A/N)","W8 Override NRA Special Rate\n(O-8-N)","LOI/ROA/Side Letter Indicator\n(O-1-N)","Side Letter Reference Number\n(O-20-A/N)","Individual CRD/IARD Number\n(OC-10-N)","Filler\n(R-6-A/N)","LOI Number\n(O-20-A/N)","LOI/ROA/Side Letter  Value\n(O-16-N)","NAV Account Indicator\n(O-1-A/N)","ABA Routing Number\n(O-9-A/N)","ACH Account Number\n(O-20-A/N)","ACH Account Name\n(O-35-A/N)","Beneficiary Designation Indicator\n(O-1-A/N)","Beneficiary Asset Percent\n(O-6-N)","Beneficiary Name\n(O-35-A/N)","Beneficiary SSN\n(O-9-A/N)","Beneficiary Relationship\n(O-2-A/N)","Beneficiary DOB\n(O-8-N)","Chapter 4 Status Code\n(O-2-A/N)","Global Intermediary Identification Number\n(O-25-A/N)","Underlying Client’s Foreign Tax ID\n(O-25-A/N)","FATCA Override Special Rate\n(O-8-N)","Trade Date/Dealing Date – (Calendar Date)\n(O-8-N)","Gross Amount of Trade\n(OC-16-N)","Accredited Investor Indicator\n(O-1-A/N)","Qualified Client Indicator\n(O-1-A/N)","Qualified Purchaser Indicator\n(O-1-A/N)","Qualified Institutional Buyer Indicator\n(O-1-A/N)","State of Sale\n(O-2-A/N)","Filler\n(R-10-A/N)","Address Type of Record 1\n(R-2-A/N)","Address of Record 1 Line 1\n(R-35-A/N)","Address of Record 1 Line 2\n(O-35-A/N)","Address of Record 1 Line 3\n(O-35-A/N)","Address of Record 1 Line 4\n(O-35-A/N)","Address of Record 1 Line 5\n(O-35-A/N)","Postal Code/Zip Code of Record 1\n(R-11-A/N)","Country of Record 1\n(R-3-A/N)","Phone Number of Record 1\n(O-16-A/N)","Email Address of Record 1\n(O-100-A/N)","Address Type of Record 2\n(OC-2-A/N)","Address of Record 2 Line 1\n(OC-35-A/N)","Address of Record 2 Line 2\n(O-35-A/N)","Address of Record 2 Line 3\n(O-35-A/N)","Address of Record 2 Line 4\n(O-35-A/N)","Address of Record 2 Line 5\n(O-35-A/N)","Postal Code/Zip Code of Record 2\n(OC-11-A/N)","Country of Record 2\n(OC-3-A/N)","Phone Number of Record 2\n(O-16-A/N)","Email Address of Record 2\n(O-100-A/N)","Address Type of Record 3\n(OC-2-A/N)","Address of Record 3 Line 1\n(OC-35-A/N)","Address of Record 3 Line 2\n(O-35-A/N)","Address of Record 3 Line 3\n(O-35-A/N)","Address of Record 3 Line 4\n(O-35-A/N)","Address of Record 3 Line 5\n(O-35-A/N)","Postal Code/Zip Code of Record 3\n(OC-11-A/N)","Country of Record 3\n(OC-3-A/N)","Phone Number of Record 3\n(O-16-A/N)","Email Address of Record 3\n(O-100-A/N)","Address Type of Record 4\n(OC-2-A/N)","Address of Record 4 Line 1\n(OC-35-A/N)","Address of Record 4 Line 2\n(O-35-A/N)","Address of Record 4 Line 3\n(O-35-A/N)","Address of Record 4 Line 4\n(O-35-A/N)","Address of Record 4 Line 5\n(O-35-A/N)","Postal Code/Zip Code of Record 4\n(OC-11-A/N)","Country of Record 4\n(OC-3-A/N)","Phone Number of Record 4\n(O-16-A/N)","Email Address of Record 4\n(O-100-A/N)","Address Type of Record 5\n(OC-2-A/N)","Address of Record 5 Line 1\n(OC-35-A/N)","Address of Record 5 Line 2\n(O-35-A/N)","Address of Record 5 Line 3\n(O-35-A/N)","Address of Record 5 Line 4\n(O-35-A/N)","Address of Record 5 Line 5\n(O-35-A/N)","Postal Code/Zip Code of Record 5\n(OC-11-A/N)","Country of Record 5\n(OC-3-A/N)","Phone Number of Record 5\n(O-16-A/N)","Email Address of Record 5\n(O-100-A/N)","Share Lot Identifier 1\n(O-8-N)","Share Lot Identifier 2\n(O-8-N)","Share Lot Identifier 3\n(O-8-N)","Share Lot Identifier 4\n(O-8-N)","Share Lot Identifier 5\n(O-8-N)","Erisa Eligible Indicator\n(R-1-A/N)","Erisa Percentage\n(R-6-N)","Erisa Pre-certified Indicator\n(R-1-A/N)","Breakpoint Limit Number\n(OC-2-N)","Price Per Share\n(O-12-N)","Joint Owner Name 2\n(O-35-A/N)","Joint Owner SSN 2\n(O-9-A/N)","Joint Owner DOB 2\n(O-8-N)","Joint Owner Name 3\n(O-35-A/N)","Joint Owner SSN 3\n(O-9-A/N)","Joint Owner DOB 3\n(O-8-N)","Joint Owner Name 4\n(O-35-A/N)","Joint Owner SSN 4\n(O-9-A/N)","Joint Owner DOB 4\n(O-8-N)","Joint Owner Name 5\n(O-35-A/N)","Joint Owner SSN  5\n(O-9-A/N)","Joint Owner DOB 5\n(O-8-N)","Joint Owner Name 6\n(O-35-A/N)","Joint Owner SSN 6\n(O-9-A/N)","Joint Owner DOB  6\n(O-8-N)","Series NSCC Security Issue Number\n(OC-16-A/N)","Same Day Multiple Trade Indicator\n(O-1-A/N)","Total Trade Amount Value\n(O-16-N)","Related Trade Indicator 2\n(O-1-A/N)","Related Account Number 2\n(OC-20-A/N)","Related Trade Indicator 3\n(O-1-A/N)","Related Account Number 3\n(OC-20-A/N)","Related Trade Indicator 4\n(O-1-A/N)","Related Account Number 4\n(OC-20-A/N)","Related Trade Indicator 5\n(O-1-A/N)","Related Account Number 5\n(OC-20-A/N)","Redemption Reason Code\n(OC-2-A/N)","CDSC Amount\n(O-16-N)","Redemption Fee\n(O-16-N)","Cost Basis Option\n(O-2-A/N)","Redemption Percentage\n(O-6-N)","Related Control Number\n(O-20-A/N)","TPA Investor ID\n(O-20-A/N)","TPA Company\n(OC-2-A/N)","ToBeExecuted"]
["3278","","","","","","|NoTag|","|NoTag|","|NoTag|","|NoTag|","","|NoTag|","","","|NoTag|","","","","","","","","","|NoTag|","","","","","","","","","|NoTag|","|NoTag|","|NoTag|","","","|NoTag|","","","","","","|NoTag|","|NoTag|","|NoTag|","|NoTag|","|NoTag|","","","|NoTag|","","|NoTag|","","","","","","","|NoTag|","|NoTag|","","","|NoTag|","","|NoTag|","|NoTag|","|NoTag|","|NoTag|","|NoTag|","","|NoTag|","|NoTag|","|NoTag|","|NoTag|","","","","","|NoTag|","|NoTag|","|NoTag|","|NoTag|","","|NoTag|","|NoTag|","|NoTag|","|NoTag|","|NoTag|","|NoTag|","|NoTag|","|NoTag|","|NoTag|","|NoTag|","|NoTag|","|NoTag|","|NoTag|","|NoTag|","|NoTag|","|NoTag|","|NoTag|","|NoTag|","","|NoTag|","|NoTag|","|NoTag|","|NoTag|","|NoTag|","|NoTag|","","","|NoTag|","|NoTag|","|NoTag|","|NoTag|","","","|NoTag|","|NoTag|","","","|NoTag|","|NoTag|","|NoTag|","|NoTag|","","","|NoTag|","|NoTag|","","","|NoTag|","|NoTag|","|NoTag|","|NoTag|","","","|NoTag|","|NoTag|","","","|NoTag|","|NoTag|","|NoTag|","|NoTag|","","","|NoTag|","|NoTag|","","","|NoTag|","|NoTag|","|NoTag|","|NoTag|","","","|NoTag|","|NoTag|","|NoTag|","|NoTag|","|NoTag|","|NoTag|","|NoTag|","","","","","|NoTag|","|NoTag|","|NoTag|","|NoTag|","|NoTag|","|NoTag|","|NoTag|","|NoTag|","|NoTag|","|NoTag|","|NoTag|","|NoTag|","|NoTag|","|NoTag|","|NoTag|","|NoTag|","","|NoTag|","|NoTag|","|NoTag|","","|NoTag|","","|NoTag|","","|NoTag|","","","|NoTag|","|NoTag|","|NoTag|","|NoTag|","|NoTag|","|NoTag|","","No"]

{"sheet":"OrderwithRegistration_DD","index":10,"n_rows":204,"n_cols":7,"rows_kept":204,"cut":false,"hidden":true,"merged":[]}
["Field Name","Start","End","Length","Type","Opt/Req","Default2Zero"]
["Record Length",1,4,4,"N","R","NO"]
["Originator Type",5,5,1,"A/N","R"]
["Firm Number",6,13,8,"A/N","R"]
["Fund Number",14,21,8,"A/N","R"]
["Record Type",22,24,3,"A/N","R"]
["NSCC Security Issue Number",25,40,16,"A/N","OC"]
["NSCC Sidepocket ID",41,43,3,"A/N","O"]
["Share Class",44,51,8,"A/N","O"]
["Security Identifier",52,52,1,"A/N","O"]
["Security Issue ID",53,64,12,"A/N","O "]
["Control Number",65,84,20,"A/N","R"]
["Correction Indicator",85,85,1,"A/N","O"]
["Submission Date",86,93,8,"N","R","NO"]
["Trade Date/Dealing Date – (Business Date)",94,101,8,"N","OC","NO"]
["Filler",102,102,1,"A/N","R"]
["NSCC Reject Indicator",103,103,1,"A/N","R"]
["NSCC Reject Reason Code 1",104,107,4,"A/N","R"]
["NSCC Reject Reason Code 2",108,111,4,"A/N","R"]
["NSCC Reject Reason Code 3",112,115,4,"A/N","R"]
["NSCC Reject Reason Code 4",116,119,4,"A/N","R"]
["Transaction Code",120,121,2,"A/N","R"]
["Settlement Date",122,129,8,"N","OC","NO"]
["Settlement Indicator",130,130,1,"A/N","R"]
["Settlement Date Override Indicator",131,131,1,"A/N","O "]
["Initial Documentation Status Indicator",132,132,1,"A/N","R"]
["Money Amount",133,148,16,"N","OC","NO"]
["Reporting Currency",149,151,3,"A/N","R"]
["Settlement Currency",152,154,3,"A/N","R"]
["Share Quantity",155,168,14,"N","OC","NO"]
["Network Control Indicator",169,169,1,"A/N","R"]
["Firm Account Number",170,189,20,"A/N","OC"]
["Fund Account Number",190,209,20,"A/N","OC"]
["Contract Note Date",210,217,8,"N","O","NO"]
["Series Roll Up Date",218,225,8,"N","O","NO"]
["Custodian Account Number",226,245,20,"A/N","O"]
["Account Type",246,247,2,"A/N","R"]
["Account Registration Name",248,407,160,"A/N","R"]
["Original Control Number",408,427,20,"A/N","O"]
["RIA/RR Indicator",428,428,1,"A/N","R"]
["Introducing Broker Dealer Firm Name / Registered Investment Advisor Firm Name",429,463,35,"A/N","OC"]
["Account Representative/Advisor Name",464,478,15,"A/N","OC"]
["Account Representative/Advisor Number",479,487,9,"A/N","OC"]
["Branch ID Number",488,496,9,"A/N","OC"]
["Branch Address 1",497,531,35,"A/N","O"]
["Branch Address 2",532,566,35,"A/N","O"]
["Branch Address 3",567,601,35,"A/N","O"]
["Branch Address 4",602,636,35,"A/N","O"]
["Branch Address 5",637,671,35,"A/N","O"]
["Branch Postal Code/Zip Code",672,682,11,"A/N","OC"]
["Branch Country",683,685,3,"A/N","OC"]
["Related Trade Indicator 1",686,686,1,"A/N","O"]
["Related Account Number 1",687,706,20,"A/N","OC"]
["Dealer Concession/Manager Paid Placement Fee Percentage",707,712,6,"N","O"]
["Trading Model",713,713,1,"A/N","R"]
["AIP Firm Role",714,714,1,"A/N","OC"]
["Net/Gross Indicator",715,715,1,"A/N","OC"]
["Account Indicator",716,716,1,"A/N","R"]
["Hybrid Responsibility Indicator",717,717,1,"A/N","OC"]
["Delivery of Fund Notifications",718,718,1,"A/N","R"]
["Load Type Indicator",719,719,1,"A/N","O"]
["Breakpoint Change Reason Code",720,720,1,"A/N","O"]
["Commission/Placement Fee Amount",721,736,16,"N","OC","NO"]
["Commission/Placement Fee Percentage",737,742,6,"N","OC","NO"]
["Dealer Concession/Manager Paid Placement Fee Amount",743,758,16,"N","O"]
["Firm CRD Number",759,768,10,"N","OC","NO"]
["Dividend Option",769,769,1,"A/N","O"]
["Filler",770,773,4,"A/N","R"]
["SSN/TIN/EIN Indicator",774,774,1,"A/N","O"]
["SSN/TIN/EIN Number",775,783,9,"A/N","O"]
["Owner DOB",784,791,8,"N","O","NO"]
["Custodian Name",792,831,40,"A/N","OC"]
["Custodian Tax Identification Number",832,840,9,"A/N","O"]
["Joint Owner Name 1",841,875,35,"A/N","O"]
["Joint Owner SSN 1",876,884,9,"A/N","O"]
["Joint Owner DOB 1",885,892,8,"N","O","NO"]
["Backup Withholding Indicator",893,893,1,"A/N","R"]
["W8 Certification Date",894,901,8,"N","OC","NO"]
["W8 Expiration Date",902,909,8,"N","OC","NO"]
["W8 Qualified Intermediary Indicator",910,910,1,"A/N","OC"]
["W8 Override Country Code",911,913,3,"A/N","O"]
["W8 Override NRA Special Rate",914,921,8,"N","O"]
["LOI/ROA/Side Letter Indicator",922,922,1,"N","O","NO"]
["Side Letter Reference Number",923,942,20,"A/N","O"]
["Individual CRD/IARD Number",943,952,10,"N","OC","NO"]
["Filler",953,958,6,"A/N","R"]
["LOI Number",959,978,20,"A/N","O"]
["LOI/ROA/Side Letter  Value",979,994,16,"N","O"]
["NAV Account Indicator",995,995,1,"A/N","O"]
["ABA Routing Number",996,1004,9,"A/N","O"]
["ACH Account Number",1005,1024,20,"A/N","O"]
["ACH Account Name",1025,1059,35,"A/N","O"]
["Beneficiary Designation Indicator",1060,1060,1,"A/N","O"]
["Beneficiary Asset Percent",1061,1066,6,"N","O"]
["Beneficiary Name",1067,1101,35,"A/N","O"]
["Beneficiary SSN",1102,1110,9,"A/N","O"]
["Beneficiary Relationship",1111,1112,2,"A/N","O"]
["Beneficiary DOB",1113,1120,8,"N","O","NO"]
["Chapter 4 Status Code",1121,1122,2,"A/N","O"]
["Global Intermediary Identification Number",1123,1147,25,"A/N","O"]
["Underlying Client’s Foreign Tax ID",1148,1172,25,"A/N","O"]
["FATCA Override Special Rate",1173,1180,8,"N","O"]
["Trade Date/Dealing Date – (Calendar Date)",1181,1188,8,"N","O","NO"]
["Gross Amount of Trade",1189,1204,16,"N","OC","NO"]
["Accredited Investor Indicator",1205,1205,1,"A/N","O"]
["Qualified Client Indicator",1206,1206,1,"A/N","O"]
["Qualified Purchaser Indicator",1207,1207,1,"A/N","O"]
["Qualified Institutional Buyer Indicator",1208,1208,1,"A/N","O"]
["State of Sale",1209,1210,2,"A/N","O"]
["Filler",1211,1220,10,"A/N","R"]
["Address Type of Record 1",1221,1222,2,"A/N","R  "]
["Address of Record 1 Line 1",1223,1257,35,"A/N","R"]
["Address of Record 1 Line 2",1258,1292,35,"A/N","O"]
["Address of Record 1 Line 3",1293,1327,35,"A/N","O"]
["Address of Record 1 Line 4",1328,1362,35," A/N","O"]
["Address of Record 1 Line 5",1363,1397,35,"A/N","O"]
["Postal Code/Zip Code of Record 1",1398,1408,11," A/N","R"]
["Country of Record 1",1409,1411,3," A/N","R"]
["Phone Number of Record 1",1412,1427,16,"A/N","O"]
["Email Address of Record 1",1428,1527,100,"A/N","O"]
["Address Type of Record 2",1528,1529,2,"A/N","OC"]
["Address of Record 2 Line 1",1530,1564,35,"A/N","OC"]
["Address of Record 2 Line 2",1565,1599,35,"A/N","O"]
["Address of Record 2 Line 3",1600,1634,35,"A/N","O"]
["Address of Record 2 Line 4",1635,1669,35," A/N","O"]
["Address of Record 2 Line 5",1670,1704,35,"A/N","O"]
["Postal Code/Zip Code of Record 2",1705,1715,11," A/N","OC"]
["Country of Record 2",1716,1718,3," A/N","OC"]
["Phone Number of Record 2",1719,1734,16,"A/N","O"]
["Email Address of Record 2",1735,1834,100,"A/N","O"]
["Address Type of Record 3",1835,1836,2,"A/N","OC"]
["Address of Record 3 Line 1",1837,1871,35,"A/N","OC"]
["Address of Record 3 Line 2",1872,1906,35,"A/N","O"]
["Address of Record 3 Line 3",1907,1941,35,"A/N","O"]
["Address of Record 3 Line 4",1942,1976,35,"A/N","O"]
["Address of Record 3 Line 5",1977,2011,35,"A/N","O"]
["Postal Code/Zip Code of Record 3",2012,2022,11,"A/N","OC"]
["Country of Record 3",2023,2025,3,"A/N","OC"]
["Phone Number of Record 3",2026,2041,16,"A/N","O"]
["Email Address of Record 3",2042,2141,100,"A/N","O"]
["Address Type of Record 4",2142,2143,2,"A/N","OC"]
["Address of Record 4 Line 1",2144,2178,35,"A/N","OC"]
["Address of Record 4 Line 2",2179,2213,35,"A/N","O"]
["Address of Record 4 Line 3",2214,2248,35,"A/N","O"]
["Address of Record 4 Line 4",2249,2283,35,"A/N","O"]
["Address of Record 4 Line 5",2284,2318,35,"A/N","O"]
["Postal Code/Zip Code of Record 4",2319,2329,11,"A/N","OC"]
["Country of Record 4",2330,2332,3,"A/N","OC"]
["Phone Number of Record 4",2333,2348,16,"A/N","O"]
["Email Address of Record 4",2349,2448,100,"A/N","O"]
["Address Type of Record 5",2449,2450,2,"A/N","OC"]
["Address of Record 5 Line 1",2451,2485,35,"A/N","OC"]
["Address of Record 5 Line 2",2486,2520,35,"A/N","O"]
["Address of Record 5 Line 3",2521,2555,35,"A/N","O"]
["Address of Record 5 Line 4",2556,2590,35,"A/N","O"]
["Address of Record 5 Line 5",2591,2625,35,"A/N","O"]
["Postal Code/Zip Code of Record 5",2626,2636,11,"A/N","OC"]
["Country of Record 5",2637,2639,3,"A/N","OC"]
["Phone Number of Record 5",2640,2655,16,"A/N","O"]
["Email Address of Record 5",2656,2755,100,"A/N","O"]
["Share Lot Identifier 1",2756,2763,8,"N","O","NO"]
["Share Lot Identifier 2",2764,2771,8,"N","O","NO"]
["Share Lot Identifier 3",2772,2779,8,"N","O","NO"]
["Share Lot Identifier 4",2780,2787,8,"N","O","NO"]
["Share Lot Identifier 5",2788,2795,8,"N","O","NO"]
["Erisa Eligible Indicator",2796,2796,1,"A/N","R"]
["Erisa Percentage",2797,2802,6,"N","R","NO"]
["Erisa Pre-certified Indicator",2803,2803,1,"A/N","R"]
["Breakpoint Limit Number",2804,2805,2,"N","OC"]
["Price Per Share",2806,2817,12,"N","O"]
["Joint Owner Name 2",2818,2852,35,"A/N","O"]
["Joint Owner SSN 2",2853,2861,9,"A/N","O"]
["Joint Owner DOB 2",2862,2869,8,"N","O","NO"]
["Joint Owner Name 3",2870,2904,35,"A/N","O"]
["Joint Owner SSN 3",2905,2913,9,"A/N","O"]
["Joint Owner DOB 3",2914,2921,8,"N","O","NO"]
["Joint Owner Name 4",2922,2956,35,"A/N","O"]
["Joint Owner SSN 4",2957,2965,9,"A/N","O"]
["Joint Owner DOB 4",2966,2973,8,"N","O","NO"]
["Joint Owner Name 5",2974,3008,35,"A/N","O"]
["Joint Owner SSN  5",3009,3017,9,"A/N","O"]
["Joint Owner DOB 5",3018,3025,8,"N","O","NO"]
["Joint Owner Name 6",3026,3060,35,"A/N","O"]
["Joint Owner SSN 6",3061,3069,9,"A/N","O"]
["Joint Owner DOB  6",3070,3077,8,"N","O","NO"]
["Series NSCC Security Issue Number",3078,3093,16,"A/N","OC"]
["Same Day Multiple Trade Indicator",3094,3094,1,"A/N","O"]
["Total Trade Amount Value",3095,3110,16,"N","O"]
["Related Trade Indicator 2",3111,3111,1,"A/N","O"]
["Related Account Number 2",3112,3131,20,"A/N","OC"]
["Related Trade Indicator 3",3132,3132,1,"A/N","O"]
["Related Account Number 3",3133,3152,20,"A/N","OC"]
["Related Trade Indicator 4",3153,3153,1,"A/N","O"]
["Related Account Number 4",3154,3173,20,"A/N","OC"]
["Related Trade Indicator 5",3174,3174,1,"A/N","O"]
["Related Account Number 5",3175,3194,20,"A/N","OC"]
["Redemption Reason Code",3195,3196,2,"A/N","OC"]
["CDSC Amount",3197,3212,16,"N","O","NO"]
["Redemption Fee",3213,3228,16,"N","O","NO"]
["Cost Basis Option",3229,3230,2,"A/N","O"]
["Redemption Percentage",3231,3236,6,"N","O","NO"]
["Related Control Number",3237,3256,20,"A/N","O"]
["TPA Investor ID",3257,3276,20,"A/N","O"]
["TPA Company",3277,3278,2,"A/N","OC"]

{"sheet":"Order","index":11,"n_rows":4,"n_cols":16384,"rows_kept":4,"cut":false,"hidden":false,"merged":[[0,2,0,12]]}
["Last Update timestamp : 21-07-12 10:08:55 by Musielak, Victor A.",null,"001 = Firm Order\n002 = Fund Order\n032 = Prepaid Firm Order     \n  \nNote – Red=Required, Blue=Optional, Black=Optional Conditional (see Data Dictionary for condition)"]
["Record Length\n(R-4-N)","Originator Type\n(R-1-A/N)","Firm Number\n(R-8-A/N)","Fund Number\n(R-8-A/N)","Record Type\n(R-3-A/N)","NSCC Security Issue Number\n(OC-16-A/N)","NSCC Sidepocket ID\n(O-3-A/N)","Share Class\n(O-8-A/N)","Security Identifier\n(O-1-A/N)","Security Issue ID\n(O-12-A/N)","Control Number\n(R-20-A/N)","Correction Indicator\n(O-1-A/N)","Submission Date\n(R-8-N)","Trade Date/Dealing Date – (Business Date)\n(OC-8-N)","Registration  Indicator\n(OC-1-A/N)","NSCC Reject Indicator\n(R-1-A/N)","NSCC Reject Reason Code 1\n(R-4-A/N)","NSCC Reject Reason Code 2\n(R-4-A/N)","NSCC Reject Reason Code 3\n(R-4-A/N)","NSCC Reject Reason Code 4\n(R-4-A/N)","Transaction Code\n(R-2-A/N)","Settlement Date\n(OC-8-N)","Settlement Indicator\n(R-1-A/N)","Settlement Date Override Indicator\n(O-1-A/N)","Initial Documentation Status Indicator\n(R-1-A/N)","Money Amount\n(OC-16-N)","Reporting Currency\n(R-3-A/N)","Settlement Currency\n(R-3-A/N)","Share Quantity\n(OC-14-N)","Network Control Indicator\n(R-1-A/N)","Firm Account Number\n(OC-20-A/N)","Fund Account Number\n(OC-20-A/N)","Contract Note Date\n(O-8-N)","Series Roll Up Date\n(O-8-N)","Custodian Account Number\n(O-20-A/N)","Account Type\n(R-2-A/N)","Account Registration Name\n(OC-160-A/N)","Original Control Number\n(O-20-A/N)","RIA/RR Indicator\n(OC-1-A/N)","Introducing Broker Dealer Firm Name / Registered Investment Advisor Firm Name\n(OC-35-A/N)","Account Representative/Advisor Name\n(OC-15-A/N)","Account Representative/Advisor Number\n(OC-9-A/N)","Branch ID Number\n(OC-9-A/N)","Branch Address 1\n(O-35-A/N)","Branch Address 2\n(O-35-A/N)","Branch Address 3\n(O-35-A/N)","Branch Address 4\n(O-35-A/N)","Branch Address 5\n(O-35-A/N)","Branch Postal Code/Zip Code\n(OC-11-A/N)","Branch Country\n(OC-3-A/N)","Related Trade Indicator 1\n(O-1-A/N)","Related Account Number 1\n(OC-20-A/N)","Dealer Concession/Manager Paid Placement Fee Percentage\n(O-6-N)","Trading Model\n(R-1-A/N)","AIP Firm Role\n(OC-1-A/N)","NAV Account Indicator\n(O-1-A/N)","Net/Gross Indicator\n(OC-1-A/N)","Filler\n(R-2-A/N)","Load Type Indicator\n(O-1-A/N)","Breakpoint Change Reason Code\n(O-1-A/N)","Commission/Placement Fee Amount\n(OC-16-N)","Commission/Placement Fee Percentage\n(OC-6-N)","Dealer Concession/Manager Paid Placement Fee Amount\n(O-16-N)","Redemption Percentage\n(O-6-N)","Share Lot Identifier 1\n(O-8-N)","Share Lot Identifier 2\n(O-8-N)","Share Lot Identifier 3\n(O-8-N)","Share Lot Identifier 4\n(O-8-N)","Share Lot Identifier 5\n(O-8-N)","Erisa Eligible Indicator\n(O-1-A/N)","Erisa Percentage\n(O-6-N)","Erisa Pre-certified Indicator\n(O-1-A/N)","Breakpoint Limit Number\n(OC-2-N)","Price Per Share\n(O-12-N)","Series NSCC Security Issue Number\n(OC-16-A/N)","Same Day Multiple Trade Indicator\n(O-1-A/N)","Total Trade Amount Value\n(O-16-N)","Related Trade Indicator 2\n(O-1-A/N)","Related Account Number 2\n(OC-20-A/N)","Related Trade Indicator 3\n(O-1-A/N)","Related Account Number 3\n(OC-20-A/N)","Related Trade Indicator 4\n(O-1-A/N)","Related Account Number 4\n(OC-20-A/N)","Related Trade Indicator 5\n(O-1-A/N)","Related Account Number 5\n(OC-20-A/N)","Firm CRD Number\n(OC-10-N)","Individual CRD/IARD Number\n(OC-10-N)","Trade Date/Dealing Date – (Calendar Date)\n(O-8-N)","Gross Amount of Trade\n(OC-16-N)","Accredited Investor Indicator\n(O-1-A/N)","Qualified Client Indicator\n(O-1-A/N)","Qualified Purchaser Indicator\n(O-1-A/N)","Qualified Institutional Buyer Indicator\n(O-1-A/N)","State of Sale\n(O-2-A/N)","Redemption Reason Code\n(OC-2-A/N)","CDSC Amount\n(O-16-N)","Redemption Fee\n(O-16-N)","Cost Basis Option\n(O-2-A/N)","Related Control Number\n(O-20-A/N)","ToBeExecuted"]
["1049","","","","","","|NoTag|","|NoTag|","|NoTag|","|NoTag|","","|NoTag|","","","","","","","","","","","","|NoTag|","","","","","","","","","|NoTag|","|NoTag|","|NoTag|","","","|NoTag|","","","","","","|NoTag|","|NoTag|","|NoTag|","|NoTag|","|NoTag|","","","|NoTag|","","|NoTag|","","","|NoTag|","","|NoTag|","|NoTag|","|NoTag|","","","|NoTag|","|NoTag|","|NoTag|","|NoTag|","|NoTag|","|NoTag|","|NoTag|","|NoTag|","|NoTag|","|NoTag|","","|NoTag|","","|NoTag|","|NoTag|","|NoTag|","","|NoTag|","","|NoTag|","","|NoTag|","","","","|NoTag|","","|NoTag|","|NoTag|","|NoTag|","|NoTag|","|NoTag|","","|NoTag|","|NoTag|","|NoTag|","|NoTag|","No"]
[null,null,null,null,null,null,null,null,null,null,null,null,null,null,null,null,null,null,null,null,null,null,null,null,null,null,null,null,null,null,null,null,null,null,null,null,null,null,null,null,null,null,null,null,null,null,null,null,null,null,null,null,null,null,null,null,null,null,null,null,null,null,null,null,null,null,null,null,null,null,null,null,null,null,null,null,null,null,null,null,null,null,null,null,null,null,null,null,null,null,null,null,null,null,null,null,null,null,null,null,null,null,null,null,null,null,null,null,null,null,null,null,null,null,null,null,null,null,null,null,null,null,null,null,null,null,null,null,null,null,null,null,null,null,null,null,null,null,null,null,null,null,null,null,null,null,null,null,null,null,null,null,null,null,null,null,null,null,null,null,null,null,null,null,null,null,null,null,null,null,null,null,null,null,null,null,null,null,null,null,null,null,null,null,null,null,null,null,null,null,null,null,null,null,null,null,null,null,null,null,null,null,null,null,null,null,null,null,null,null,null,null,null,null,null,null,null,null,null,null,null,null,null,null,null,null,null,null,null,null,null,null,null,null,null,null,null,null,null,null,null,null,null,null,null,null,null,null,null,null,null,null,null,null,null,null,null,null,null,null,null,null,null,null,null,null,null,null,null,null,null,null,null,null,null,null,null,null,null,null,null,null,null,null,null,null,null,null,null,null,null,null,null,null,null,null,null,null,null,null,null,null,null,null,null,null,null,null,null,null,null,null,null,null,null,null,null,null,null,null,null,null,null,null,null,null,null,null,null,null,null,null,null,null,null,null,null,null,null,null,null,null,null,null,null,null,null,null,null,null,null,null,null,null,null,null,null,null,null,null,null,null,null,null,null,null,null,null,null,null,null,null,null,null,null,null,null,null,null,null,null,null,null,null,null,null,null,null,null,null,null,null,null,null,null,null,null,null,null,null,null,null,null,null,null,null,null,null,null,null,null,null,null,null,null,null,null,null,null,null,null,null,null,null,null,null,null,null,null,null,null,null,null,null,null,null,null,null,null,null,null,null,null,null,null,null,null,null,null,null,null,null,null,null,null,null,null,null,null,null,null,null,null,null,null,null,null,null,null,null,null,null,null,null,null,null,null,null,null,null,null,null,null,null,null,null,null,null,null,null,null,null,null,null,null,null,null,null,null,null,null,null,null,null,null,null,null,null,null,null,null,null,null,null,null,null,null,null,null,null,null,null,null,null,null,null,null,null,null,null,null,null,null,null,null,null,null,null,null,null,null,null,null,null,null,null,null,null,null,null,null,null,null,null,null,null,null,null,null,null,null,null,null,null,null,null,null,null,null,null,null,null,null,null,null,null,null,null,null,null,null,null,null,null,null,null,null,null,null,null,null,null,null,null,null,null,null,null,null,null,null,null,null,null,null,null,null,null,null,null,null,null,null,null,null,null,null,null,null,null,null,null,null,null,null,null,null,null,null,null,null,null,null,null,null,null,null,null,null,null,null,null,null,null,null,null,null,null,null,null,null,null,null,null,null,null,null,null,null,null,null,null,null,null,null,null,null,null,null,null,null,null,null,null,null,null,null,null,null,null,null,null,null,null,null,null,null,null,null,null,null,null,null,null,null,null,null,null,null,null,null,null,null,null,null,null,null,null,null,null,null,null,null,null,null,null,null,null,null,null,null,null,null,null,null,null,null,null,null,null,null,null,null,null,null,null,null,null,null,null,null,null,null,null,null,null,null,null,null,null,null,null,null,null,null,null,null,null,null,null,null,null,null,null,null,null,null,null,null,null,null,null,null,null,null,null,null,null,null,null,null,null,null,null,null,null,null,null,null,null,null,null,null,null,null,null,null,null,null,null,null,null,null,null,null,null,null,null,null,null,null,null,null,null,null,null,null,null,null,null,null,null,null,null,null,null,null,null,null,null,null,null,null,null,null,null,null,null,null,null,null,null,null,null,null,null,null,null,null,null,null,null,null,null,null,null,null,null,null,null,null,null,null,null,null,null,null,null,null,null,null,null,null,null,null,null,null,null,null,null,null,null,null,null,null,null,null,null,null,null,null,null,null,null,null,null,null,null,null,null,null,null,null,null,null,null,null,null,null,null,null,null,null,null,null,null,null,null,null,null,null,null,null,null,null,null,null,null,null,null,null,null,null,null,null,null,null,null,null,null,null,null,null,null,null,null,null,null,null,null,null,null,null,null,null,null,null,null,null,null,null,null,null,null,null,null,null,null,null,null,null,null,null,null,null,null,null,null,null,null,null,null,null,null,null,null,null,null,null,null,null,null,null,null,null,null,null,null,null,null,null,null,null,null,null,null,null,null,null,null,null,null,null,null,null,null,null,null,null,null,null,null,null,null,null,null,null,null,null,null,null,null,null,null,null,null,null,null,null,null,null,null,null,null,null,null,null,null,null,null,null,null,null,null,null,null,null,null,null,null,null,null,null,null,null,null,null,null,null,null,null,null,null,null,null,null,null,null,null,null,null,null,null,null,null,null,null,null,null,null,null,null,null,null,null,null,null,null,null,null,null,null,null,null,null,null,null,null,null,null,null,null,null,null,null,null,null,null,null,null,null,null,null,null,null,null,null,null,null,null,null,null,null,null,null,null,null,null,null,null,null,null,null,null,null,null,null,null,null,null,null,null,null,null,null,null,null,null,null,null,null,null,null,null,null,null,null,null,null,null,null,null,null,null,null,null,null,null,null,null,null,null,null,null,null,null,null,null,null,null,null,null,null,null,null,null,null,null,null,null,null,null,null,null,null,null,null,null,null,null,null,null,null,null,null,null,null,null,null,null,null,null,null,null,null,null,null,null,null,null,null,null,null,null,null,null,null,null,null,null,null,null,null,null,null,null,null,null,null,null,null,null,null,null,null,null,null,null,null,null,null,null,null,null,null,null,null,null,null,null,null,null,null,null,null,null,null,null,null,null,null,null,null,null,null,null,null,null,null,null,null,null,null,null,null,null,null,null,null,null,null,null,null,null,null,null,null,null,null,null,null,null,null,null,null,null,null,null,null,null,null,null,null,null,null,null,null,null,null,null,null,null,null,null,null,null,null,null,null,null,null,null,null,null,null,null,null,null,null,null,null,null,null,null,null,null,null,null,null,null,null,null,null,null,null,null,null,null,null,null,null,null,null,null,null,null,null,null,null,null,null,null,null,null,null,null,null,null,null,null,null,null,null,null,null,null,null,null,null,null,null,null,null,null,null,null,null,null,null,null,null,null,null,null,null,null,null,null,null,null,null,null,null,null,null,null,null,null,null,null,null,null,null,null,null,null,null,null,null,null,null,null,null,null,null,null,null,null,null,null,null,null,null,null,null,null,null,null,null,null,null,null,null,null,null,null,null,null,null,null,null,null,null,null,null,null,null,null,null,null,null,null,null,null,null,null,null,null,null,null,null,null,null,null,null,null,null,null,null,null,null,null,null,null,null,null,null,null,null,null,null,null,null,null,null,null,null,null,null,null,null,null,null,null,null,null,null,null,null,null,null,null,null,null,null,null,null,null,null,null,null,null,null,null,null,null,null,null,null,null,null,null,null,null,null,null,null,null,null,null,null,null,null,null,null,null,null,null,null,null,null,null,null,null,null,null,null,null,null,null,null,null,null,null,null,null,null,null,null,null,null,null,null,null,null,null,null,null,null,null,null,null,null,null,null,null,null,null,null,null,null,null,null,null,null,null,null,null,null,null,null,null,null,null,null,null,null,null,null,null,null,null,null,null,null,null,null,null,null,null,null,null,null,null,null,null,null,null,null,null,null,null,null,null,null,null,null,null,null,null,null,null,null,null,null,null,null,null,null,null,null,null,null,null,null,null,null,null,null,null,null,null,null,null,null,null,null,null,null,null,null,null,null,null,null,null,null,null,null,null,null,null,null,null,null,null,null,null,null,null,null,null,null,null,null,null,null,null,null,null,null,null,null,null,null,null,null,null,null,null,null,null,null,null,null,null,null,null,null,null,null,null,null,null,null,null,null,null,null,null,null,null,null,null,null,null,null,null,null,null,null,null,null,null,null,null,null,null,null,null,null,null,null,null,null,null,null,null,null,null,null,null,null,null,null,null,null,null,null,null,null,null,null,null,null,null,null,null,null,null,null,null,null,null,null,null,null,null,null,null,null,null,null,null,null,null,null,null,null,null,null,null,null,null,null,null,null,null,null,null,null,null,null,null,null,null,null,null,null,null,null,null,null,null,null,null,null,null,null,null,null,null,null,null,null,null,null,null,null,null,null,null,null,null,null,null,null,null,null,null,null,null,null,null,null,null,null,null,null,null,null,null,null,null,null,null,null,null,null,null,null,null,null,null,null,null,null,null,null,null,null,null,null,null,null,null,null,null,null,null,null,null,null,null,null,null,null,null,null,null,null,null,null,null,null,null,null,null,null,null,null,null,null,null,null,null,null,null,null,null,null,null,null,null,null,null,null,null,null,null,null,null,null,null,null,null,null,null,null,null,null,null,null,null,null,null,null,null,null,null,null,null,null,null,null,null,null,null,null,null,null,null,null,null,null,null,null,null,null,null,null,null,null,null,null,null,null,null,null,null,null,null,null,null,null,null,null,null,null,null,null,null,null,null,null,null,null,null,null,null,null,null,null,null,null,null,null,null,null,null,null,null,null,null,null,null,null,null,null,null,null,null,null,null,null,null,null,null,null,null,null,null,null,null,null,null,null,null,null,null,null,null,null,null,null,null,null,null,null,null,null,null,null,null,null,null,null,null,null,null,null,null,null,null,null,null,null,null,null,null,null,null,null,null,null,null,null,null,null,null,null,null,null,null,null,null,null,null,null,null,null,null,null,null,null,null,null,null,null,null,null,null,null,null,null,null,null,null,null,null,null,null,null,null,null,null,null,null,null,null,null,null,null,null,null,null,null,null,null,null,null,null,null,null,null,null,null,null,null,null,null,null,null,null,null,null,null,null,null,null,null,null,null,null,null,null,null,null,null,null,null,null,null,null,null,null,null,null,null,null,null,null,null,null,null,null,null,null,null,null,null,null,null,null,null,null,null,null,null,null,null,null,null,null,null,null,null,null,null,null,null,null,null,null,null,null,null,null,null,null,null,null,null,null,null,null,null,null,null,null,null,null,null,null,null,null,null,null,null,null,null,null,null,null,null,null,null,null,null,null,null,null,null,null,null,null,null,null,null,null,null,null,null,null,null,null,null,null,null,null,null,null,null,null,null,null,null,null,null,null,null,null,null,null,null,null,null,null,null,null,null,null,null,null,null,null,null,null,null,null,null,null,null,null,null,null,null,null,null,null,null,null,null,null,null,null,null,null,null,null,null,null,null,null,null,null,null,null,null,null,null,null,null,null,null,null,null,null,null,null,null,null,null,null,null,null,null,null,null,null,null,null,null,null,null,null,null,null,null,null,null,null,null,null,null,null,null,null,null,null,null,null,null,null,null,null,null,null,null,null,null,null,null,null,null,null,null,null,null,null,null,null,null,null,null,null,null,null,null,null,null,null,null,null,null,null,null,null,null,null,null,null,null,null,null,null,null,null,null,null,null,null,null,null,null,null,null,null,null,null,null,null,null,null,null,null,null,null,null,null,null,null,null,null,null,null,null,null,null,null,null,null,null,null,null,null,null,null,null,null,null,null,null,null,null,null,null,null,null,null,null,null,null,null,null,null,null,null,null,null,null,null,null,null,null,null,null,null,null,null,null,null,null,null,null,null,null,null,null,null,null,null,null,null,null,null,null,null,null,null,null,null,null,null,null,null,null,null,null,null,null,null,null,null,null,null,null,null,null,null,null,null,null,null,null,null,null,null,null,null,null,null,null,null,null,null,null,null,null,null,null,null,null,null,null,null,null,null,null,null,null,null,null,null,null,null,null,null,null,null,null,null,null,null,null,null,null,null,null,null,null,null,null,null,null,null,null,null,null,null,null,null,null,null,null,null,null,null,null,null,null,null,null,null,null,null,null,null,null,null,null,null,null,null,null,null,null,null,null,null,null,null,null,null,null,null,null,null,null,null,null,null,null,null,null,null,null,null,null,null,null,null,null,null,null,null,null,null,null,null,null,null,null,null,null,null,null,null,null,null,null,null,null,null,null,null,null,null,null,null,null,null,null,null,null,null,null,null,null,null,null,null,null,null,null,null,null,null,null,null,null,null,null,null,null,null,null,null,null,null,null,null,null,null,null,null,null,null,null,null,null,null,null,null,null,null,null,null,null,null,null,null,null,null,null,null,null,null,null,null,null,null,null,null,null,null,null,null,null,null,null,null,null,null,null,null,null,null,null,null,null,null,null,null,null,null,null,null,null,null,null,null,null,null,null,null,null,null,null,null,null,null,null,null,null,null,null,null,null,null,null,null,null,null,null,null,null,null,null,null,null,null,null,null,null,null,null,null,null,null,null,null,null,null,null,null,null,null,null,null,null,null,null,null,null,null,null,null,null,null,null,null,null,null,null,null,null,null,null,null,null,null,null,null,null,null,null,null,null,null,null,null,null,null,null,null,null,null,null,null,null,null,null,null,null,null,null,null,null,null,null,null,null,null,null,null,null,null,null,null,null,null,null,null,null,null,null,null,null,null,null,null,null,null,null,null,null,null,null,null,null,null,null,null,null,null,null,null,null,null,null,null,null,null,null,null,null,null,null,null,null,null,null,null,null,null,null,null,null,null,null,null,null,null,null,null,null,null,null,null,null,null,null,null,null,null,null,null,null,null,null,null,null,null,null,null,null,null,null,null,null,null,null,null,null,null,null,null,null,null,null,null,null,null,null,null,null,null,null,null,null,null,null,null,null,null,null,null,null,null,null,null,null,null,null,null,null,null,null,null,null,null,null,null,null,null,null,null,null,null,null,null,null,null,null,null,null,null,null,null,null,null,null,null,null,null,null,null,null,null,null,null,null,null,null,null,null,null,null,null,null,null,null,null,null,null,null,null,null,null,null,null,null,null,null,null,null,null,null,null,null,null,null,null,null,null,null,null,null,null,null,null,null,null,null,null,null,null,null,null,null,null,null,null,null,null,null,null,null,null,null,null,null,null,null,null,null,null,null,null,null,null,null,null,null,null,null,null,null,null,null,null,null,null,null,null,null,null,null,null,null,null,null,null,null,null,null,null,null,null,null,null,null,null,null,null,null,null,null,null,null,null,null,null,null,null,null,null,null,null,null,null,null,null,null,null,null,null,null,null,null,null,null,null,null,null,null,null,null,null,null,null,null,null,null,null,null,null,null,null,null,null,null,null,null,null,null,null,null,null,null,null,null,null,null,null,null,null,null,null,null,null,null,null,null,null,null,null,null,null,null,null,null,null,null,null,null,null,null,null,null,null,null,null,null,null,null,null,null,null,null,null,null,null,null,null,null,null,null,null,null,null,null,null,null,null,null,null,null,null,null,null,null,null,null,null,null,null,null,null,null,null,null,null,null,null,null,null,null,null,null,null,null,null,null,null,null,null,null,null,null,null,null,null,null,null,null,null,null,null,null,null,null,null,null,null,null,null,null,null,null,null,null,null,null,null,null,null,null,null,null,null,null,null,null,null,null,null,null,null,null,null,null,null,null,null,null,null,null,null,null,null,null,null,null,null,null,null,null,null,null,null,null,null,null,null,null,null,null,null,null,null,null,null,null,null,null,null,null,null,null,null,null,null,null,null,null,null,null,null,null,null,null,null,null,null,null,null,null,null,null,null,null,null,null,null,null,null,null,null,null,null,null,null,null,null,null,null,null,null,null,null,null,null,null,null,null,null,null,null,null,null,null,null,null,null,null,null,null,null,null,null,null,null,null,null,null,null,null,null,null,null,null,null,null,null,null,null,null,null,null,null,null,null,null,null,null,null,null,null,null,null,null,null,null,null,null,null,null,null,null,null,null,null,null,null,null,null,null,null,null,null,null,null,null,null,null,null,null,null,null,null,null,null,null,null,null,null,null,null,null,null,null,null,null,null,null,null,null,null,null,null,null,null,null,null,null,null,null,null,null,null,null,null,null,null,null,null,null,null,null,null,null,null,null,null,null,null,null,null,null,null,null,null,null,null,null,null,null,null,null,null,null,null,null,null,null,null,null,null,null,null,null,null,null,null,null,null,null,null,null,null,null,null,null,null,null,null,null,null,null,null,null,null,null,null,null,null,null,null,null,null,null,null,null,null,null,null,null,null,null,null,null,null,null,null,null,null,null,null,null,null,null,null,null,null,null,null,null,null,null,null,null,null,null,null,null,null,null,null,null,null,null,null,null,null,null,null,null,null,null,null,null,null,null,null,null,null,null,null,null,null,null,null,null,null,null,null,null,null,null,null,null,null,null,null,null,null,null,null,null,null,null,null,null,null,null,null,null,null,null,null,null,null,null,null,null,null,null,null,null,null,null,null,null,null,null,null,null,null,null,null,null,null,null,null,null,null,null,null,null,null,null,null,null,null,null,null,null,null,null,null,null,null,null,null,null,null,null,null,null,null,null,null,null,null,null,null,null,null,null,null,null,null,null,null,null,null,null,null,null,null,null,null,null,null,null,null,null,null,null,null,null,null,null,null,null,null,null,null,null,null,null,null,null,null,null,null,null,null,null,null,null,null,null,null,null,null,null,null,null,null,null,null,null,null,null,null,null,null,null,null,null,null,null,null,null,null,null,null,null,null,null,null,null,null,null,null,null,null,null,null,null,null,null,null,null,null,null,null,null,null,null,null,null,null,null,null,null,null,null,null,null,null,null,null,null,null,null,null,null,null,null,null,null,null,null,null,null,null,null,null,null,null,null,null,null,null,null,null,null,null,null,null,null,null,null,null,null,null,null,null,null,null,null,null,null,null,null,null,null,null,null,null,null,null,null,null,null,null,null,null,null,null,null,null,null,null,null,null,null,null,null,null,null,null,null,null,null,null,null,null,null,null,null,null,null,null,null,null,null,null,null,null,null,null,null,null,null,null,null,null,null,null,null,null,null,null,null,null,null,null,null,null,null,null,null,null,null,null,null,null,null,null,null,null,null,null,null,null,null,null,null,null,null,null,null,null,null,null,null,null,null,null,null,null,null,null,null,null,null,null,null,null,null,null,null,null,null,null,null,null,null,null,null,null,null,null,null,null,null,null,null,null,null,null,null,null,null,null,null,null,null,null,null,null,null,null,null,null,null,null,null,null,null,null,null,null,null,null,null,null,null,null,null,null,null,null,null,null,null,null,null,null,null,null,null,null,null,null,null,null,null,null,null,null,null,null,null,null,null,null,null,null,null,null,null,null,null,null,null,null,null,null,null,null,null,null,null,null,null,null,null,null,null,null,null,null,null,null,null,null,null,null,null,null,null,null,null,null,null,null,null,null,null,null,null,null,null,null,null,null,null,null,null,null,null,null,null,null,null,null,null,null,null,null,null,null,null,null,null,null,null,null,null,null,null,null,null,null,null,null,null,null,null,null,null,null,null,null,null,null,null,null,null,null,null,null,null,null,null,null,null,null,null,null,null,null,null,null,null,null,null,null,null,null,null,null,null,null,null,null,null,null,null,null,null,null,null,null,null,null,null,null,null,null,null,null,null,null,null,null,null,null,null,null,null,null,null,null,null,null,null,null,null,null,null,null,null,null,null,null,null,null,null,null,null,null,null,null,null,null,null,null,null,null,null,null,null,null,null,null,null,null,null,null,null,null,null,null,null,null,null,null,null,null,null,null,null,null,null,null,null,null,null,null,null,null,null,null,null,null,null,null,null,null,null,null,null,null,null,null,null,null,null,null,null,null,null,null,null,null,null,null,null,null,null,null,null,null,null,null,null,null,null,null,null,null,null,null,null,null,null,null,null,null,null,null,null,null,null,null,null,null,null,null,null,null,null,null,null,null,null,null,null,null,null,null,null,null,null,null,null,null,null,null,null,null,null,null,null,null,null,null,null,null,null,null,null,null,null,null,null,null,null,null,null,null,null,null,null,null,null,null,null,null,null,null,null,null,null,null,null,null,null,null,null,null,null,null,null,null,null,null,null,null,null,null,null,null,null,null,null,null,null,null,null,null,null,null,null,null,null,null,null,null,null,null,null,null,null,null,null,null,null,null,null,null,null,null,null,null,null,null,null,null,null,null,null,null,null,null,null,null,null,null,null,null,null,null,null,null,null,null,null,null,null,null,null,null,null,null,null,null,null,null,null,null,null,null,null,null,null,null,null,null,null,null,null,null,null,null,null,null,null,null,null,null,null,null,null,null,null,null,null,null,null,null,null,null,null,null,null,null,null,null,null,null,null,null,null,null,null,null,null,null,null,null,null,null,null,null,null,null,null,null,null,null,null,null,null,null,null,null,null,null,null,null,null,null,null,null,null,null,null,null,null,null,null,null,null,null,null,null,null,null,null,null,null,null,null,null,null,null,null,null,null,null,null,null,null,null,null,null,null,null,null,null,null,null,null,null,null,null,null,null,null,null,null,null,null,null,null,null,null,null,null,null,null,null,null,null,null,null,null,null,null,null,null,null,null,null,null,null,null,null,null,null,null,null,null,null,null,null,null,null,null,null,null,null,null,null,null,null,null,null,null,null,null,null,null,null,null,null,null,null,null,null,null,null,null,null,null,null,null,null,null,null,null,null,null,null,null,null,null,null,null,null,null,null,null,null,null,null,null,null,null,null,null,null,null,null,null,null,null,null,null,null,null,null,null,null,null,null,null,null,null,null,null,null,null,null,null,null,null,null,null,null,null,null,null,null,null,null,null,null,null,null,null,null,null,null,null,null,null,null,null,null,null,null,null,null,null,null,null,null,null,null,null,null,null,null,null,null,null,null,null,null,null,null,null,null,null,null,null,null,null,null,null,null,null,null,null,null,null,null,null,null,null,null,null,null,null,null,null,null,null,null,null,null,null,null,null,null,null,null,null,null,null,null,null,null,null,null,null,null,null,null,null,null,null,null,null,null,null,null,null,null,null,null,null,null,null,null,null,null,null,null,null,null,null,null,null,null,null,null,null,null,null,null,null,null,null,null,null,null,null,null,null,null,null,null,null,null,null,null,null,null,null,null,null,null,null,null,null,null,null,null,null,null,null,null,null,null,null,null,null,null,null,null,null,null,null,null,null,null,null,null,null,null,null,null,null,null,null,null,null,null,null,null,null,null,null,null,null,null,null,null,null,null,null,null,null,null,null,null,null,null,null,null,null,null,null,null,null,null,null,null,null,null,null,null,null,null,null,null,null,null,null,null,null,null,null,null,null,null,null,null,null,null,null,null,null,null,null,null,null,null,null,null,null,null,null,null,null,null,null,null,null,null,null,null,null,null,null,null,null,null,null,null,null,null,null,null,null,null,null,null,null,null,null,null,null,null,null,null,null,null,null,null,null,null,null,null,null,null,null,null,null,null,null,null,null,null,null,null,null,null,null,null,null,null,null,null,null,null,null,null,null,null,null,null,null,null,null,null,null,null,null,null,null,null,null,null,null,null,null,null,null,null,null,null,null,null,null,null,null,null,null,null,null,null,null,null,null,null,null,null,null,null,null,null,null,null,null,null,null,null,null,null,null,null,null,null,null,null,null,null,null,null,null,null,null,null,null,null,null,null,null,null,null,null,null,null,null,null,null,null,null,null,null,null,null,null,null,null,null,null,null,null,null,null,null,null,null,null,null,null,null,null,null,null,null,null,null,null,null,null,null,null,null,null,null,null,null,null,null,null,null,null,null,null,null,null,null,null,null,null,null,null,null,null,null,null,null,null,null,null,null,null,null,null,null,null,null,null,null,null,null,null,null,null,null,null,null,null,null,null,null,null,null,null,null,null,null,null,null,null,null,null,null,null,null,null,null,null,null,null,null,null,null,null,null,null,null,null,null,null,null,null,null,null,null,null,null,null,null,null,null,null,null,null,null,null,null,null,null,null,null,null,null,null,null,null,null,null,null,null,null,null,null,null,null,null,null,null,null,null,null,null,null,null,null,null,null,null,null,null,null,null,null,null,null,null,null,null,null,null,null,null,null,null,null,null,null,null,null,null,null,null,null,null,null,null,null,null,null,null,null,null,null,null,null,null,null,null,null,null,null,null,null,null,null,null,null,null,null,null,null,null,null,null,null,null,null,null,null,null,null,null,null,null,null,null,null,null,null,null,null,null,null,null,null,null,null,null,null,null,null,null,null,null,null,null,null,null,null,null,null,null,null,null,null,null,null,null,null,null,null,null,null,null,null,null,null,null,null,null,null,null,null,null,null,null,null,null,null,null,null,null,null,null,null,null,null,null,null,null,null,null,null,null,null,null,null,null,null,null,null,null,null,null,null,null,null,null,null,null,null,null,null,null,null,null,null,null,null,null,null,null,null,null,null,null,null,null,null,null,null,null,null,null,null,null,null,null,null,null,null,null,null,null,null,null,null,null,null,null,null,null,null,null,null,null,null,null,null,null,null,null,null,null,null,null,null,null,null,null,null,null,null,null,null,null,null,null,null,null,null,null,null,null,null,null,null,null,null,null,null,null,null,null,null,null,null,null,null,null,null,null,null,null,null,null,null,null,null,null,null,null,null,null,null,null,null,null,null,null,null,null,null,null,null,null,null,null,null,null,null,null,null,null,null,null,null,null,null,null,null,null,null,null,null,null,null,null,null,null,null,null,null,null,null,null,null,null,null,null,null,null,null,null,null,null,null,null,null,null,null,null,null,null,null,null,null,null,null,null,null,null,null,null,null,null,null,null,null,null,null,null,null,null,null,null,null,null,null,null,null,null,null,null,null,null,null,null,null,null,null,null,null,null,null,null,null,null,null,null,null,null,null,null,null,null,null,null,null,null,null,null,null,null,null,null,null,null,null,null,null,null,null,null,null,null,null,null,null,null,null,null,null,null,null,null,null,null,null,null,null,null,null,null,null,null,null,null,null,null,null,null,null,null,null,null,null,null,null,null,null,null,null,null,null,null,null,null,null,null,null,null,null,null,null,null,null,null,null,null,null,null,null,null,null,null,null,null,null,null,null,null,null,null,null,null,null,null,null,null,null,null,null,null,null,null,null,null,null,null,null,null,null,null,null,null,null,null,null,null,null,null,null,null,null,null,null,null,null,null,null,null,null,null,null,null,null,null,null,null,null,null,null,null,null,null,null,null,null,null,null,null,null,null,null,null,null,null,null,null,null,null,null,null,null,null,null,null,null,null,null,null,null,null,null,null,null,null,null,null,null,null,null,null,null,null,null,null,null,null,null,null,null,null,null,null,null,null,null,null,null,null,null,null,null,null,null,null,null,null,null,null,null,null,null,null,null,null,null,null,null,null,null,null,null,null,null,null,null,null,null,null,null,null,null,null,null,null,null,null,null,null,null,null,null,null,null,null,null,null,null,null,null,null,null,null,null,null,null,null,null,null,null,null,null,null,null,null,null,null,null,null,null,null,null,null,null,null,null,null,null,null,null,null,null,null,null,null,null,null,null,null,null,null,null,null,null,null,null,null,null,null,null,null,null,null,null,null,null,null,null,null,null,null,null,null,null,null,null,null,null,null,null,null,null,null,null,null,null,null,null,null,null,null,null,null,null,null,null,null,null,null,null,null,null,null,null,null,null,null,null,null,null,null,null,null,null,null,null,null,null,null,null,null,null,null,null,null,null,null,null,null,null,null,null,null,null,null,null,null,null,null,null,null,null,null,null,null,null,null,null,null,null,null,null,null,null,null,null,null,null,null,null,null,null,null,null,null,null,null,null,null,null,null,null,null,null,null,null,null,null,null,null,null,null,null,null,null,null,null,null,null,null,null,null,null,null,null,null,null,null,null,null,null,null,null,null,null,null,null,null,null,null,null,null,null,null,null,null,null,null,null,null,null,null,null,null,null,null,null,null,null,null,null,null,null,null,null,null,null,null,null,null,null,null,null,null,null,null,null,null,null,null,null,null,null,null,null,null,null,null,null,null,null,null,null,null,null,null,null,null,null,null,null,null,null,null,null,null,null,null,null,null,null,null,null,null,null,null,null,null,null,null,null,null,null,null,null,null,null,null,null,null,null,null,null,null,null,null,null,null,null,null,null,null,null,null,null,null,null,null,null,null,null,null,null,null,null,null,null,null,null,null,null,null,null,null,null,null,null,null,null,null,null,null,null,null,null,null,null,null,null,null,null,null,null,null,null,null,null,null,null,null,null,null,null,null,null,null,null,null,null,null,null,null,null,null,null,null,null,null,null,null,null,null,null,null,null,null,null,null,null,null,null,null,null,null,null,null,null,null,null,null,null,null,null,null,null,null,null,null,null,null,null,null,null,null,null,null,null,null,null,null,null,null,null,null,null,null,null,null,null,null,null,null,null,null,null,null,null,null,null,null,null,null,null,null,null,null,null,null,null,null,null,null,null,null,null,null,null,null,null,null,null,null,null,null,null,null,null,null,null,null,null,null,null,null,null,null,null,null,null,null,null,null,null,null,null,null,null,null,null,null,null,null,null,null,null,null,null,null,null,null,null,null,null,null,null,null,null,null,null,null,null,null,null,null,null,null,null,null,null,null,null,null,null,null,null,null,null,null,null,null,null,null,null,null,null,null,null,null,null,null,null,null,null,null,null,null,null,null,null,null,null,null,null,null,null,null,null,null,null,null,null,null,null,null,null,null,null,null,null,null,null,null,null,null,null,null,null,null,null,null,null,null,null,null,null,null,null,null,null,null,null,null,null,null,null,null,null,null,null,null,null,null,null,null,null,null,null,null,null,null,null,null,null,null,null,null,null,null,null,null,null,null,null,null,null,null,null,null,null,null,null,null,null,null,null,null,null,null,null,null,null,null,null,null,null,null,null,null,null,null,null,null,null,null,null,null,null,null,null,null,null,null,null,null,null,null,null,null,null,null,null,null,null,null,null,null,null,null,null,null,null,null,null,null,null,null,null,null,null,null,null,null,null,null,null,null,null,null,null,null,null,null,null,null,null,null,null,null,null,null,null,null,null,null,null,null,null,null,null,null,null,null,null,null,null,null,null,null,null,null,null,null,null,null,null,null,null,null,null,null,null,null,null,null,null,null,null,null,null,null,null,null,null,null,null,null,null,null,null,null,null,null,null,null,null,null,null,null,null,null,null,null,null,null,null,null,null,null,null,null,null,null,null,null,null,null,null,null,null,null,null,null,null,null,null,null,null,null,null,null,null,null,null,null,null,null,null,null,null,null,null,null,null,null,null,null,null,null,null,null,null,null,null,null,null,null,null,null,null,null,null,null,null,null,null,null,null,null,null,null,null,null,null,null,null,null,null,null,null,null,null,null,null,null,null,null,null,null,null,null,null,null,null,null,null,null,null,null,null,null,null,null,null,null,null,null,null,null,null,null,null,null,null,null,null,null,null,null,null,null,null,null,null,null,null,null,null,null,null,null,null,null,null,null,null,null,null,null,null,null,null,null,null,null,null,null,null,null,null,null,null,null,null,null,null,null,null,null,null,null,null,null,null,null,null,null,null,null,null,null,null,null,null,null,null,null,null,null,null,null,null,null,null,null,null,null,null,null,null,null,null,null,null,null,null,null,null,null,null,null,null,null,null,null,null,null,null,null,null,null,null,null,null,null,null,null,null,null,null,null,null,null,null,null,null,null,null,null,null,null,null,null,null,null,null,null,null,null,null,null,null,null,null,null,null,null,null,null,null,null,null,null,null,null,null,null,null,null,null,null,null,null,null,null,null,null,null,null,null,null,null,null,null,null,null,null,null,null,null,null,null,null,null,null,null,null,null,null,null,null,null,null,null,null,null,null,null,null,null,null,null,null,null,null,null,null,null,null,null,null,null,null,null,null,null,null,null,null,null,null,null,null,null,null,null,null,null,null,null,null,null,null,null,null,null,null,null,null,null,null,null,null,null,null,null,null,null,null,null,null,null,null,null,null,null,null,null,null,null,null,null,null,null,null,null,null,null,null,null,null,null,null,null,null,null,null,null,null,null,null,null,null,null,null,null,null,null,null,null,null,null,null,null,null,null,null,null,null,null,null,null,null,null,null,null,null,null,null,null,null,null,null,null,null,null,null,null,null,null,null,null,null,null,null,null,null,null,null,null,null,null,null,null,null,null,null,null,null,null,null,null,null,null,null,null,null,null,null,null,null,null,null,null,null,null,null,null,null,null,null,null,null,null,null,null,null,null,null,null,null,null,null,null,null,null,null,null,null,null,null,null,null,null,null,null,null,null,null,null,null,null,null,null,null,null,null,null,null,null,null,null,null,null,null,null,null,null,null,null,null,null,null,null,null,null,null,null,null,null,null,null,null,null,null,null,null,null,null,null,null,null,null,null,null,null,null,null,null,null,null,null,null,null,null,null,null,null,null,null,null,null,null,null,null,null,null,null,null,null,null,null,null,null,null,null,null,null,null,null,null,null,null,null,null,null,null,null,null,null,null,null,null,null,null,null,null,null,null,null,null,null,null,null,null,null,null,null,null,null,null,null,null,null,null,null,null,null,null,null,null,null,null,null,null,null,null,null,null,null,null,null,null,null,null,null,null,null,null,null,null,null,null,null,null,null,null,null,null,null,null,null,null,null,null,null,null,null,null,null,null,null,null,null,null,null,null,null,null,null,null,null,null,null,null,null,null,null,null,null,null,null,null,null,null,null,null,null,null,null,null,null,null,null,null,null,null,null,null,null,null,null,null,null,null,null,null,null,null,null,null,null,null,null,null,null,null,null,null,null,null,null,null,null,null,null,null,null,null,null,null,null,null,null,null,null,null,null,null,null,null,null,null,null,null,null,null,null,null,null,null,null,null,null,null,null,null,null,null,null,null,null,null,null,null,null,null,null,null,null,null,null,null,null,null,null,null,null,null,null,null,null,null,null,null,null,null,null,null,null,null,null,null,null,null,null,null,null,null,null,null,null,null,null,null,null,null,null,null,null,null,null,null,null,null,null,null,null,null,null,null,null,null,null,null,null,null,null,null,null,null,null,null,null,null,null,null,null,null,null,null,null,null,null,null,null,null,null,null,null,null,null,null,null,null,null,null,null,null,null,null,null,null,null,null,null,null,null,null,null,null,null,null,null,null,null,null,null,null,null,null,null,null,null,null,null,null,null,null,null,null,null,null,null,null,null,null,null,null,null,null,null,null,null,null,null,null,null,null,null,null,null,null,null,null,null,null,null,null,null,null,null,null,null,null,null,null,null,null,null,null,null,null,null,null,null,null,null,null,null,null,null,null,null,null,null,null,null,null,null,null,null,null,null,null,null,null,null,null,null,null,null,null,null,null,null,null,null,null,null,null,null,null,null,null,null,null,null,null,null,null,null,null,null,null,null,null,null,null,null,null,null,null,null,null,null,null,null,null,null,null,null,null,null,null,null,null,null,null,null,null,null,null,null,null,null,null,null,null,null,null,null,null,null,null,null,null,null,null,null,null,null,null,null,null,null,null,null,null,null,null,null,null,null,null,null,null,null,null,null,null,null,null,null,null,null,null,null,null,null,null,null,null,null,null,null,null,null,null,null,null,null,null,null,null,null,null,null,null,null,null,null,null,null,null,null,null,null,null,null,null,null,null,null,null,null,null,null,null,null,null,null,null,null,null,null,null,null,null,null,null,null,null,null,null,null,null,null,null,null,null,null,null,null,null,null,null,null,null,null,null,null,null,null,null,null,null,null,null,null,null,null,null,null,null,null,null,null,null,null,null,null,null,null,null,null,null,null,null,null,null,null,null,null,null,null,null,null,null,null,null,null,null,null,null,null,null,null,null,null,null,null,null,null,null,null,null,null,null,null,null,null,null,null,null,null,null,null,null,null,null,null,null,null,null,null,null,null,null,null,null,null,null,null,null,null,null,null,null,null,null,null,null,null,null,null,null,null,null,null,null,null,null,null,null,null,null,null,null,null,null,null,null,null,null,null,null,null,null,null,null,null,null,null,null,null,null,null,null,null,null,null,null,null,null,null,null,null,null,null,null,null,null,null,null,null,null,null,null,null,null,null,null,null,null,null,null,null,null,null,null,null,null,null,null,null,null,null,null,null,null,null,null,null,null,null,null,null,null,null,null,null,null,null,null,null,null,null,null,null,null,null,null,null,null,null,null,null,null,null,null,null,null,null,null,null,null,null,null,null,null,null,null,null,null,null,null,null,null,null,null,null,null,null,null,null,null,null,null,null,null,null,null,null,null,null,null,null,null,null,null,null,null,null,null,null,null,null,null,null,null,null,null,null,null,null,null,null,null,null,null,null,null,null,null,null,null,null,null,null,null,null,null,null,null,null,null,null,null,null,null,null,null,null,null,null,null,null,null,null,null,null,null,null,null,null,null,null,null,null,null,null,null,null,null,null,null,null,null,null,null,null,null,null,null,null,null,null,null,null,null,null,null,null,null,null,null,null,null,null,null,null,null,null,null,null,null,null,null,null,null,null,null,null,null,null,null,null,null,null,null,null,null,null,null,null,null,null,null,null,null,null,null,null,null,null,null,null,null,null,null,null,null,null,null,null,null,null,null,null,null,null,null,null,null,null,null,null,null,null,null,null,null,null,null,null,null,null,null,null,null,null,null,null,null,null,null,null,null,null,null,null,null,null,null,null,null,null,null,null,null,null,null,null,null,null,null,null,null,null,null,null,null,null,null,null,null,null,null,null,null,null,null,null,null,null,null,null,null,null,null,null,null,null,null,null,null,null,null,null,null,null,null,null,null,null,null,null,null,null,null,null,null,null,null,null,null,null,null,null,null,null,null,null,null,null,null,null,null,null,null,null,null,null,null,null,null,null,null,null,null,null,null,null,null,null,null,null,null,null,null,null,null,null,null,null,null,null,null,null,null,null,null,null,null,null,null,null,null,null,null,null,null,null,null,null,null,null,null,null,null,null,null,null,null,null,null,null,null,null,null,null,null,null,null,null,null,null,null,null,null,null,null,null,null,null,null,null,null,null,null,null,null,null,null,null,null,null,null,null,null,null,null,null,null,null,null,null,null,null,null,null,null,null,null,null,null,null,null,null,null,null,null,null,null,null,null,null,null,null,null,null,null,null,null,null,null,null,null,null,null,null,null,null,null,null,null,null,null,null,null,null,null,null,null,null,null,null,null,null,null,null,null,null,null,null,null,null,null,null,null,null,null,null,null,null,null,null,null,null,null,null,null,null,null,null,null,null,null,null,null,null,null,null,null,null,null,null,null,null,null,null,null,null,null,null,null,null,null,null,null,null,null,null,null,null,null,null,null,null,null,null,null,null,null,null,null,null,null,null,null,null,null,null,null,null,null,null,null,null,null,null,null,null,null,null,null,null,null,null,null,null,null,null,null,null,null,null,null,null,null,null,null,null,null,null,null,null,null,null,null,null,null,null,null,null,null,null,null,null,null,null,null,null,null,null,null,null,null,null,null,null,null,null,null,null,null,null,null,null,null,null,null,null,null,null,null,null,null,null,null,null,null,null,null,null,null,null,null,null,null,null,null,null,null,null,null,null,null,null,null,null,null,null,null,null,null,null,null,null,null,null,null,null,null,null,null,null,null,null,null,null,null,null,null,null,null,null,null,null,null,null,null,null,null,null,null,null,null,null,null,null,null,null,null,null,null,null,null,null,null,null,null,null,null,null,null,null,null,null,null,null,null,null,null,null,null,null,null,null,null,null,null,null,null,null,null,null,null,null,null,null,null,null,null,null,null,null,null,null,null,null,null,null,null,null,null,null,null,null,null,null,null,null,null,null,null,null,null,null,null,null,null,null,null,null,null,null,null,null,null,null,null,null,null,null,null,null,null,null,null,null,null,null,null,null,null,null,null,null,null,null,null,null,null,null,null,null,null,null,null,null,null,null,null,null,null,null,null,null,null,null,null,null,null,null,null,null,null,null,null,null,null,null,null,null,null,null,null,null,null,null,null,null,null,null,null,null,null,null,null,null,null,null,null,null,null,null,null,null,null,null,null,null,null,null,null,null,null,null,null,null,null,null,null,null,null,null,null,null,null,null,null,null,null,null,null,null,null,null,null,null,null,null,null,null,null,null,null,null,null,null,null,null,null,null,null,null,null,null,null,null,null,null,null,null,null,null,null,null,null,null,null,null,null,null,null,null,null,null,null,null,null,null,null,null,null,null,null,null,null,null,null,null,null,null,null,null,null,null,null,null,null,null,null,null,null,null,null,null,null,null,null,null,null,null,null,null,null,null,null,null,null,null,null,null,null,null,null,null,null,null,null,null,null,null,null,null,null,null,null,null,null,null,null,null,null,null,null,null,null,null,null,null,null,null,null,null,null,null,null,null,null,null,null,null,null,null,null,null,null,null,null,null,null,null,null,null,null,null,null,null,null,null,null,null,null,null,null,null,null,null,null,null,null,null,null,null,null,null,null,null,null,null,null,null,null,null,null,null,null,null,null,null,null,null,null,null,null,null,null,null,null,null,null,null,null,null,null,null,null,null,null,null,null,null,null,null,null,null,null,null,null,null,null,null,null,null,null,null,null,null,null,null,null,null,null,null,null,null,null,null,null,null,null,null,null,null,null,null,null,null,null,null,null,null,null,null,null,null,null,null,null,null,null,null,null,null,null,null,null,null,null,null,null,null,null,null,null,null,null,null,null,null,null,null,null,null,null,null,null,null,null,null,null,null,null,null,null,null,null,null,null,null,null,null,null,null,null,null,null,null,null,null,null,null,null,null,null,null,null,null,null,null,null,null,null,null,null,null,null,null,null,null,null,null,null,null,null,null,null,null,null,null,null,null,null,null,null,null,null,null,null,null,null,null,null,null,null,null,null,null,null,null,null,null,null,null,null,null,null,null,null,null,null,null,null,null,null,null,null,null,null,null,null,null,null,null,null,null,null,null,null,null,null,null,null,null,null,null,null,null,null,null,null,null,null,null,null,null,null,null,null,null,null,null,null,null,null,null,null,null,null,null,null,null,null,null,null,null,null,null,null,null,null,null,null,null,null,null,null,null,null,null,null,null,null,null,null,null,null,null,null,null,null,null,null,null,null,null,null,null,null,null,null,null,null,null,null,null,null,null,null,null,null,null,null,null,null,null,null,null,null,null,null,null,null,null,null,null,null,null,null,null,null,null,null,null,null,null,null,null,null,null,null,null,null,null,null,null,null,null,null,null,null,null,null,null,null,null,null,null,null,null,null,null,null,null,null,null,null,null,null,null,null,null,null,null,null,null,null,null,null,null,null,null,null,null,null,null,null,null,null,null,null,null,null,null,null,null,null,null,null,null,null,null,null,null,null,null,null,null,null,null,null,null,null,null,null,null,null,null,null,null,null,null,null,null,null,null,null,null,null,null,null,null,null,null,null,null,null,null,null,null,null,null,null,null,null,null,null,null,null,null,null,null,null,null,null,null,null,null,null,null,null,null,null,null,null,null,null,null,null,null,null,null,null,null,null,null,null,null,null,null,null,null,null,null,null,null,null,null,null,null,null,null,null,null,null,null,null,null,null,null,null,null,null,null,null,null,null,null,null,null,null,null,null,null,null,null,null,null,null,null,null,null,null,null,null,null,null,null,null,null,null,null,null,null,null,null,null,null,null,null,null,null,null,null,null,null,null,null,null,null,null,null,null,null,null,null,null,null,null,null,null,null,null,null,null,null,null,null,null,null,null,null,null,null,null,null,null,null,null,null,null,null,null,null,null,null,null,null,null,null,null,null,null,null,null,null,null,null,null,null,null,null,null,null,null,null,null,null,null,null,null,null,null,null,null,null,null,null,null,null,null,null,null,null,null,null,null,null,null,null,null,null,null,null,null,null,null,null,null,null,null,null,null,null,null,null,null,null,null,null,null,null,null,null,null,null,null,null,null,null,null,null,null,null,null,null,null,null,null,null,null,null,null,null,null,null,null,null,null,null,null,null,null,null,null,null,null,null,null,null,null,null,null,null,null,null,null,null,null,null,null,null,null,null,null,null,null,null,null,null,null,null,null,null,null,null,null,null,null,null,null,null,null,null,null,null,null,null,null,null,null,null,null,null,null,null,null,null,null,null,null,null,null,null,null,null,null,null,null,null,null,null,null,null,null,null,null,null,null,null,null,null,null,null,null,null,null,null,null,null,null,null,null,null,null,null,null,null,null,null,null,null,null,null,null,null,null,null,null,null,null,null,null,null,null,null,null,null,null,null,null,null,null,null,null,null,null,null,null,null,null,null,null,null,null,null,null,null,null,null,null,null,null,null,null,null,null,null,null,null,null,null,null,null,null,null,null,null,null,null,null,null,null,null,null,null,null,null,null,null,null,null,null,null,null,null,null,null,null,null,null,null,null,null,null,null,null,null,null,null,null,null,null,null,null,null,null,null,null,null,null,null,null,null,null,null,null,null,null,null,null,null,null,null,null,null,null,null,null,null,null,null,null,null,null,null,null,null,null,null,null,null,null,null,null,null,null,null,null,null,null,null,null,null,null,null,null,null,null,null,null,null,null,null,null,null,null,null,null,null,null,null,null,null,null,null,null,null,null,null,null,null,null,null,null,null,null,null,null,null,null,null,null,null,null,null,null,null,null,null,null,null,null,null,null,null,null,null,null,null,null,null,null,null,null,null,null,null,null,null,null,null,null,null,null,null,null,null,null,null,null,null,null,null,null,null,null,null,null,null,null,null,null,null,null,null,null,null,null,null,null,null,null,null,null,null,null,null,null,null,null,null,null,null,null,null,null,null,null,null,null,null,null,null,null,null,null,null,null,null,null,null,null,null,null,null,null,null,null,null,null,null,null,null,null,null,null,null,null,null,null,null,null,null,null,null,null,null,null,null,null,null,null,null,null,null,null,null,null,null,null,null,null,null,null,null,null,null,null,null,null,null,null,null,null,null,null,null,null,null,null,null,null,null,null,null,null,null,null,null,null,null,null,null,null,null,null,null,null,null,null,null,null,null,null,null,null,null,null,null,null,null,null,null,null,null,null,null,null,null,null,null,null,null,null,null,null,null,null,null,null,null,null,null,null,null,null,null,null,null,null,null,null,null,null,null,null,null,null,null,null,null,null,null,null,null,null,null,null,null,null,null,null,null,null,null,null,null,null,null,null,null,null,null,null,null,null,null,null,null,null,null,null,null,null,null,null,null,null,null,null,null,null,null,null,null,null,null,null,null,null,null,null,null,null,null,null,null,null,null,null,null,null,null,null,null,null,null,null,null,null,null,null,null,null,null,null,null,null,null,null,null,null,null,null,null,null,null,null,null,null,null,null,null,null,null,null,null,null,null,null,null,null,null,null,null,null,null,null,null,null,null,null,null,null,null,null,null,null,null,null,null,null,null,null,null,null,null,null,null,null,null,null,null,null,null,null,null,null,null,null,null,null,null,null,null,null,null,null,null,null,null,null,null,null,null,null,null,null,null,null,null,null,null,null,null,null,null,null,null,null,null,null,null,null,null,null,null,null,null,null,null,null,null,null,null,null,null,null,null,null,null,null,null,null,null,null,null,null,null,null,null,null,null,null,null,null,null,null,null,null,null,null,null,null,null,null,null,null,null,null,null,null,null,null,null,null,null,null,null,null,null,null,null,null,null,null,null,null,null,null,null,null,null,null,null,null,null,null,null,null,null,null,null,null,null,null,null,null,null,null,null,null,null,null,null,null,null,null,null,null,null,null,null,null,null,null,null,null,null,null,null,null,null,null,null,null,null,null,null,null,null,null,null,null,null,null,null,null,null,null,null,null,null,null,null,null,null,null,null,null,null,null,null,null,null,null,null,null,null,null,null,null,null,null,null,null,null,null,null,null,null,null,null,null,null,null,null,null,null,null,null,null,null,null,null,null,null,null,null,null,null,null,null,null,null,null,null,null,null,null,null,null,null,null,null,null,null,null,null,null,null,null,null,null,null,null,null,null,null,null,null,null,null,null,null,null,null,null,null,null,null,null,null,null,null,null,null,null,null,null,null,null,null,null,null,null,null,null,null,null,null,null,null,null,null,null,null,null,null,null,null,null,null,null,null,null,null,null,null,null,null,null,null,null,null,null,null,null,null,null,null,null,null,null,null,null,null,null,null,null,null,null,null,null,null,null,null,null,null,null,null,null,null,null,null,null,null,null,null,null,null,null,null,null,null,null,null,null,null,null,null,null,null,null,null,null,null,null,null,null,null,null,null,null,null,null,null,null,null,null,null,null,null,null,null,null,null,null,null,null,null,null,null,null,null,null,null,null,null,null,null,null,null,null,null,null,null,null,null,null,null,null,null,null,null,null,null,null,null,null,null,null,null,null,null,null,null,null,null,null,null,null,null,null,null,null,null,null,null,null,null,null,null,null,null,null,null,null,null,null,null,null,null,null,null,null,null,null,null,null,null,null,null,null,null,null,null,null,null,null,null,null,null,null,null,null,null,null,null,null,null,null,null,null,null,null,null,null,null,null,null,null,null,null,null,null,null,null,null,null,null,null,null,null,null,null,null,null,null,null,null,null,null,null,null,null,null,null,null,null,null,null,null,null,null,null,null,null,null,null,null,null,null,null,null,null,null,null,null,null,null,null,null,null,null,null,null,null,null,null,null,null,null,null,null,null,null,null,null,null,null,null,null,null,null,null,null,null,null,null,null,null,null,null,null,null,null,null,null,null,null,null,null,null,null,null,null,null,null,null,null,null,null,null,null,null,null,null,null,null,null,null,null,null,null,null,null,null,null,null,null,null,null,null,null,null,null,null,null,null,null,null,null,null,null,null,null,null,null,null,null,null,null,null,null,null,null,null,null,null,null,null,null,null,null,null,null,null,null,null,null,null,null,null,null,null,null,null,null,null,null,null,null,null,null,null,null,null,null,null,null,null,null,null,null,null,null,null,null,null,null,null,null,null,null,null,null,null,null,null,null,null,null,null,null,null,null,null,null,null,null,null,null,null,null,null,null,null,null,null,null,null,null,null,null,null,null,null,null,null,null,null,null,null,null,null,null,null,null,null,null,null,null,null,null,null,null,null,null,null,null,null,null,null,null,null,null,null,null,null,null,null,null,null,null,null,null,null,null,null,null,null,null,null,null,null,null,null,null,null,null,null,null,null,null,null,null,null,null,null,null,null,null,null,null,null,null,null,null,null,null,null,null,null,null,null,null,null,null,null,null,null,null,null,null,null,null,null,null,null,null,null,null,null,null,null,null,null,null,null,null,null,null,null,null,null,null,null,null,null,null,null,null,null,null,null,null,null,null,null,null,null,null,null,null,null,null,null,null,null,null,null,null,null,null,null,null,null,null,null,null,null,null,null,null,null,null,null,null,null,null,null,null,null,null,null,null,null,null,null,null,null,null,null,null,null,null,null,null,null,null,null,null,null,null,null,null,null,null,null,null,null,null,null,null,null,null,null,null,null,null,null,null,null,null,null,null,null,null,null,null,null,null,null,null,null,null,null,null,null,null,null,null,null,null,null,null,null,null,null,null,null,null,null,null,null,null,null,null,null,null,null,null,null,null,null,null,null,null,null,null,null,null,null,null,null,null,null,null,null,null,null,null,null,null,null,null,null,null,null,null,null,null,null,null,null,null,null,null,null,null,null,null,null,null,null,null,null,null,null,null,null,null,null,null,null,null,null,null,null,null,null,null,null,null,null,null,null,null,null,null,null,null,null,null,null,null,null,null,null,null,null,null,null,null,null,null,null,null,null,null,null,null,null,null,null,null,null,null,null,null,null,null,null,null,null,null,null,null,null,null,null,null,null,null,null,null,null,null,null,null,null,null,null,null,null,null,null,null,null,null,null,null,null,null,null,null,null,null,null,null,null,null,null,null,null,null,null,null,null,null,null,null,null,null,null,null,null,null,null,null,null,null,null,null,null,null,null,null,null,null,null,null,null,null,null,null,null,null,null,null,null,null,null,null,null,null,null,null,null,null,null,null,null,null,null,null,null,null,null,null,null,null,null,null,null,null,null,null,null,null,null,null,null,null,null,null,null,null,null,null,null,null,null,null,null,null,null,null,null,null,null,null,null,null,null,null,null,null,null,null,null,null,null,null,null,null,null,null,null,null,null,null,null,null,null,null,null,null,null,null,null,null,null,null,null,null,null,null,null,null,null,null,null,null,null,null,null,null,null,null,null,null,null,null,null,null,null,null,null,null,null,null,null,null,null,null,null,null,null,null,null,null,null,null,null,null,null,null,null,null,null,null,null,null,null,null,null,null,null,null,null,null,null,null,null,null,null,null,null,null,null,null,null,null,null,null,null,null,null,null,null,null,null,null,null,null,null,null,null,null,null,null,null,null,null,null,null,null,null,null,null,null,null,null,null,null,null,null,null,null,null,null,null,null,null,null,null,null,null,null,null,null,null,null,null,null,null,null,null,null,null,null,null,null,null,null,null,null,null,null,null,null,null,null,null,null,null,null,null,null,null,null,null,null,null,null,null,null,null,null,null,null,null,null,null,null,null,null,null,null,null,null,null,null,null,null,null,null,null,null,null,null,null,null,null,null,null,null,null,null,null,null,null,null,null,null,null,null,null,null,null,null,null,null,null,null,null,null,null,null,null,null,null,null,null,null,null,null,null,null,null,null,null,null,null,null,null,null,null,null,null,null,null,null,null,null,null,null,null,null,null,null,null,null,null,null,null,null,null,null,null,null,null,null,null,null,null,null,null,null,null,null,null,null,null,null,null,null,null,null,null,null,null,null,null,null,null,null,null,null,null,null,null,null,null,null,null,null,null,null,null,null,null,null,null,null,null,null,null,null,null,null,null,null,null,null,null,null,null,null,null,null,null,null,null,null,null,null,null,null,null,null,null,null,null,null,null,null,null,null,null,null,null,null,null,null,null,null,null,null,null,null,null,null,null,null,null,null,null,null,null,null,null,null,null,null,null,null,null,null,null,null,null,null,null,null,null,null,null,null,null,null,null,null,null,null,null,null,null,null,null,null,null,null,null,null,null,null,null,null,null,null,null,null,null,null,null,null,null,null,null,null,null,null,null,null,null,null,null,null,null,null,null,null,null,null,null,null,null,null,null,null,null,null,null,null,null,null,null,null,null,null,null,null,null,null,null,null,null,null,null,null,null,null,null,null,null,null,null,null,null,null,null,null,null,null,null,null,null,null,null,null,null,null,null,null,null,null,null,null,null,null,null,null,null,null,null,null,null,null,null,null,null,null,null,null,null,null,null,null,null,null,null,null,null,null,null,null,null,null,null,null,null,null,null,null,null,null,null,null,null,null,null,null,null,null,null,null,null,null,null,null,null,null,null,null,null,null,null,null,null,null,null,null,null,null,null,null,null,null,null,null,null,null,null,null,null,null,null,null,null,null,null,null,null,null,null,null,null,null,null,null,null,null,null,null,null,null,null,null,null,null,null,null,null,null,null,null,null,null,null,null,null,null,null,null,null,null,null,null,null,null,null,null,null,null,null,null,null,null,null,null,null,null,null,null,null,null,null,null,null,null,null,null,null,null,null,null,null,null,null,null,null,null,null,null,null,null,null,null,null,null,null,null,null,null,null,null,null,null,null,null,null,null,null,null,null,null,null,null,null,null,null,null,null,null,null,null,null,null,null,null,null,null,null,null,null,null,null,null,null,null,null,null,null,null,null,null,null,null,null,null,null,null,null,null,null,null,null,null,null,null,null,null,null,null,null,null,null,null,null,null,null,null,null,null,null,null,null,null,null,null,null,null,null,null,null,null,null,null,null,null,null,null,null,null,null,null,null,null,null,null,null,null,null,null,null,null,null,null,null,null,null,null,null,null,null,null,null,null,null,null,null,null,null,null,null,null,null,null,null,null,null,null,null,null,null,null,null,null,null,null,null,null,null,null,null,null,null,null,null,null,null,null,null,null,null,null,null,null,null,null,null,null,null,null,null,null,null,null,null,null,null,null,null,null,null,null,null,null,null,null,null,null,null,null,null,null,null,null,null,null,null,null,null,null,null,null,null,null,null,null,null,null,null,null,null,null,null,null,null,null,null,null,null,null,null,null,null,null,null,null,null,null,null,null,null,null,null,null,null,null,null,null,null,null,null,null,null,null,null,null,null,null,null,null,null,null,null,null,null,null,null,null,null,null,null,null,null,null,null,null,null,null,null,null,null,null,null,null,null,null,null,null,null,null,null,null,null,null,null,null,null,null,null,null,null,null,null,null,null,null,null,null,null,null,null,null,null,null,null,null,null,null,null,null,null,null,null,null,null,null,null,null,null,null,null,null,null,null,null,null,null,null,null,null,null,null,null,null,null,null,null,null,null,null,null,null,null,null,null,null,null,null,null,null,null,null,null,null,null,null,null,null,null,null,null,null,null,null,null,null,null,null,null,null,null,null,null,null,null,null,null,null,null,null,null,null,null,null,null,null,null,null,null,null,null,null,null,null,null,null,null,null,null,null,null,null,null,null,null,null,null,null,null,null,null,null,null,null,null,null,null,null,null,null,null,null,null,null,null,null,null,null,null,null,null,null,null,null,null,null,null,null,null,null,null,null,null,null,null,null,null,null,null,null,null,null,null,null,null,null,null,null,null,null,null,null,null,null,null,null,null,null,null,null,null,null,null,null,null,null,null,null,null,null,null,null,null,null,null,null,null,null,null,null,null,null,null,null,null,null,null,null,null,null,null,null,null,null,null,null,null,null,null,null,null,null,null,null,null,null,null,null,null,null,null,null,null,null,null,null,null,null,null,null,null,null,null,null,null,null,null,null,null,null,null,null,null,null,null,null,null,null,null,null,null,null,null,null,null,null,null,null,null,null,null,null,null,null,null,null,null,null,null,null,null,null,null,null,null,null,null,null,null,null,null,null,null,null,null,null,null,null,null,null,null,null,null,null,null,null,null,null,null,null,null,null,null,null,null,null,null,null,null,null,null,null,null,null,null,null,null,null,null,null,null,null,null,null,null,null,null,null,null,null,null,null,null,null,null,null,null,null,null,null,null,null,null,null,null,null,null,null,null,null,null,null,null,null,null,null,null,null,null,null,null,null,null,null,null,null,null,null,null,null,null,null,null,null,null,null,null,null,null,null,null,null,null,null,null,null,null,null,null,null,null,null,null,null,null,null,null,null,null,null,null,null,null,null,null,null,null,null,null,null,null,null,null,null,null,null,null,null,null,null,null,null,null,null,null,null,null,null,null,null,null,null,null,null,null,null,null,null,null,null,null,null,null,null,null,null,null,null,null,null,null,null,null,null,null,null,null,null,null,null,null,null,null,null,null,null,null,null,null,null,null,null,null,null,null,null,null,null,null,null,null,null,null,null,null,null,null,null,null,null,null,null,null,null,null,null,null,null,null,null,null,null,null,null,null,null,null,null,null,null,null,null,null,null,null,null,null,null,null,null,null,null,null,null,null,null,null,null,null,null,null,null,null,null,null,null,null,null,null,null,null,null,null,null,null,null,null,null,null,null,null,null,null,null,null,null,null,null,null,null,null,null,null,null,null,null,null,null,null,null,null,null,null,null,null,null,null,null,null,null,null,null,null,null,null,null,null,null,null,null,null,null,null,null,null,null,null,null,null,null,null,null,null,null,null,null,null,null,null,null,null,null,null,null,null,null,null,null,null,null,null,null,null,null,null,null,null,null,null,null,null,null,null,null,null,null,null,null,null,null,null,null,null,null,null,null,null,null,null,null,null,null,null,null,null,null,null,null,null,null,null,null,null,null,null,null,null,null,null,null,null,null,null,null,null,null,null,null,null,null,null,null,null,null,null,null,null,null,null,null,null,null,null,null,null,null,null,null,null,null,null,null,null,null,null,null,null,null,null,null,null,null,null,null,null,null,null,null,null,null,null,null,null,null,null,null,null,null,null,null,null,null,null,null,null,null,null,null,null,null,null,null,null,null,null,null,null,null,null,null,null,null,null,null,null,null,null,null,null,null,null,null,null,null,null,null,null,null,null,null,null,null,null,null,null,null,null,null,null,null,null,null,null,null,null,null,null,null,null,null,null,null,null,null,null,null,null,null,null,null,null,null,null,null,null,null,null,null,null,null,null,null,null,null,null,null,null,null,null,null,null,null,null,null,null,null,null,null,null,null,null,null,null,null,null,null,null,null,null,null,null,null,null,null,null,null,null,null,null,null,null,null,null,null,null,null,null,null,null,null,null,null,null,null,null,null,null,null,null,null,null,null,null,null,null,null,null,null,null,null,null,null,null,null,null,null,null,null,null,null,null,null,null,null,null,null,null,null,null,null,null,null,null,null,null,null,null,null,null,null,null,null,null,null,null,null,null,null,null,null,null,null,null,null,null,null,null,null,null,null,null,null,null,null,null,null,null,null,null,null,null,null,null,null,null,null,null,null,null,null,null,null,null,null,null,null,null,null,null,null,null,null,null,null,null,null,null,null,null,null,null,null,null,null,null,null,null,null,null,null,null,null,null,null,null,null,null,null,null,null,null,null,null,null,null,null,null,null,null,null,null,null,null,null,null,null,null,null,null,null,null,null,null,null,null,null,null,null,null,null,null,null,null,null,null,null,null,null,null,null,null,null,null,null,null,null,null,null,null,null,null,null,null,null,null,null,null,null,null,null,null,null,null,null,null,null,null,null,null,null,null,null,null,null,null,null,null,null,null,null,null,null,null,null,null,null,null,null,null,null,null,null,null,null,null,null,null,null,null,null,null,null,null,null,null,null,null,null,null,null,null,null,null,null,null,null,null,null,null,null,null,null,null,null,null,null,null,null,null,null,null,null,null,null,null,null,null,null,null,null,null,null,null,null,null,null,null,null,null,null,null,null,null,null,null,null,null,null,null,null,null,null,null,null,null,null,null,null,null,null,null,null,null,null,null,null,null,null,null,null,null,null,null,null,null,null,null,null,null,null,null,null,null,null,null,null,null,null,null,null,null,null,null,null,null,null,null,null,null,null,null,null,null,null,null,null,null,null,null,null,null,null,null,null,null,null,null,null,null,null,null,null,null,null,null,null,null,null,null,null,null,null,null,null,null,null,null,null,null,null,null,null,null,null,null,null,null,null,null,null,null,null,null,null,null,null,null,null,null,null,null,null,null,null,null,null,null,null,null,null,null,null,null,null,null,null,null,null,null,null,null,null,null,null,null,null,null,null,null,null,null,null,null,null,null,null,null,null,null,null,null,null,null,null,null,null,null,null,null,null,null,null,null,null,null,null,null,null,null,null,null,null,null,null,null,null,null,null,null,null,null,null,null,null,null,null,null,null,null,null,null,null,null,null,null,null,null,null,null,null,null,null,null,null,null,null,null,null,null,null,null,null,null,null,null,null,null,null,null,null,null,null,null,null,null,null,null,null,null,null,null,null,null,null,null,null,null,null,null,null,null,null,null,null,null,null,null,null,null,null,null,null,null,null,null,null,null,null,null,null,null,null,null,null,null,null,null,null,null,null,null,null,null,null,null,null,null,null,null,null,null,null,null,null,null,null,null,null,null,null,null,null,null,null,null,null,null,null,null,null,null,null,null,null,null,null,null,null,null,null,null,null,null,null,null,null,null,null,null,null,null,null,null,null,null,null,null,null,null,null,null,null,null,null,null,null,null,null,null,null,null,null,null,null,null,null,null,null,null,null,null,null,null,null,null,null,null,null,null,null,null,null,null,null,null,null,null,null,null,null,null,null,null,null,null,null,null,null,null,null,null,null,null,null,null,null,null,null,null,null,null,null,null,null,null,null,null,null,null,null,null,null,null,null,null,null,null,null,null,null,null,null,null,null,null,null,null,null,null,null,null,null,null,null,null,null,null,null,null,null,null,null,null,null,null,null,null,null,null,null,null,null,null,null,null,null,null,null,null,null,null,null,null,null,null,null,null,null,null,null,null,null,null,null,null,null,null,null,null,null,null,null,null,null,null,null,null,null,null,null,null,null,null,null,null,null,null,null,null,null,null,null,null,null,null,null,null,null,null,null,null,null,null,null,null,null,null,null,null,null,null,null,null,null,null,null,null,null,null,null,null,null,null,null,null,null,null,null,null,null,null,null,null,null,null,null,null,null,null,null,null,null,null,null,null,null,null,null,null,null,null,null,null,null,null,null,null,null,null,null,null,null,null,null,null,null,null,null,null,null,null,null,null,null,null,null,null,null,null,null,null,null,null,null,null,null,null,null,null,null,null,null,null,null,null,null,null,null,null,null,null,null,null,null,null,null,null,null,null,null,null,null,null,null,null,null,null,null,null,null,null,null,null,null,null,null,null,null,null,null,null,null,null,null,null,null,null,null,null,null,null,null,null,null,null,null,null,null,null,null,null,null,null,null,null,null,null,null,null,null,null,null,null,null,null,null,null,null,null,null,null,null,null,null,null,null,null,null,null,null,null,null,null,null,null,null,null,null,null,null,null,null,null,null,null,null,null,null,null,null,null,null,null,null,null,null,null,null,null,null,null,null,null,null,null,null,null,null,null,null,null,null,null,null,null,null,null,null,null,null,null,null,null,null,null,null,null,null,null,null,null,null,null,null,null,null,null,null,null,null,null,null,null,null,null,null,null,null,null,null,null,null,null,null,null,null,null,null,null,null,null,null,null,null,null,null,null,null,null,null,null,null,null,null,null,null,null,null,null,null,null,null,null,null,null,null,null,null,null,null,null,null,null,null,null,null,null,null,null,null,null,null,null,null,null,null,null,null,null,null,null,null,null,null,null,null,null,null,null,null,null,null,null,null,null,null,null,null,null,null,null,null,null,null,null,null,null,null,null,null,null,null,null,null,null,null,null,null,null,null,null,null,null,null,null,null,null,null,null,null,null,null,null,null,null,null,null,null,null,null,null,null,null,null,null,null,null,null,null,null,null,null,null,null,null,null,null,null,null,null,null,null,null,null,null,null,null,null,null,null,null,null,null,null,null,null,null,null,null,null,null,null,null,null,null,null,null,null,null,null,null,null,null,null,null,null,null,null,null,null,null,null,null,null,null,null,null,null,null,null,null,null,null,null,null,null,null,null,null,null,null,null,null,null,null,null,null,null,null,null,null,null,null,null,null,null,null,null,null,null,null,null,null,null,null,null,null,null,null,null,null,null,null,null,null,null,null,null,null,null,null,null,null,null,null,null,null,null,null,null,null,null,null,null,null,null,null,null,null,null,null,null,null,null,null,null,null,null,null,null,null,null,null,null,null,null,null,null,null,null,null,null,null,null,null,null,null,null,null,null,null,null,null,null,null,null,null,null,null,null,null,null,null,null,null,null,null,null,null,null,null,null,null,null,null,null,null,null,null,null,null,null,null,null,null,null,null,null,null,null,null,null,null,null,null,null,null,null,null,null,null,null,null,null,null,null,null,null,null,null,null,null,null,null,null,null,null,null,null,null,null,null,null,null,null,null,null,null,null,null,null,null,null,null,null,null,null,null,null,null,null,null,null,null,null,null,null,null,null,null,null,null,null,null,null,null,null,null,null,null,null,null,null,null,null,null,null,null,null,null,null,null,null,null,null,null,null,null,null,null,null,null,null,null,null,null,null,null,null,null,null,null,null,null,null,null,null,null,null,null,null,null,null,null,null,null,null,null,null,null,null,null,null,null,null,null,null,null,null,null,null,null,null,null,null,null,null,null,null,null,null,null,null,null,null,null,null,null,null,null,null,null,null,null,null,null,null,null,null,null,null,null,null,null,null,null,null,null,null,null,null,null,null,null,null,null,null,null,null,null,null,null,null,null,null,null,null,null,null,null,null,null,null,null,null,null,null,null,null,null,null,null,null,null,null,null,null,null,null,null,null,null,null,null,null,null,null,null,null,null,null,null,null,null,null,null,null,null,null,null,null,null,null,null,null,null,null,null,null,null,null,null,null,null,null,null,null,null,null,null,null,null,null,null,null,null,null,null,null,null,null,null,null,null,null,null,null,null,null,null,null,null,null,null,null,null,null,null,null,null,null,null,null,null,null,null,null,null,null,null,null,null,null,null,null,null,null,null,null,null,null,null,null,null,null,null,null,null,null,null,null,null,null,null,null,null,null,null,null,null,null,null,null,null,null,null,null,null,null,null,null,null,null,null,null,null,null,null,null,null,null,null,null,null,null,null,null,null,null,null,null,null,null,null,null,null,null,null,null,null,null,null,null,null,null,null,null,null,null,null,null,null,null,null,null,null,null,null,null,null,null,null,null,null,null,null,null,null,null,null,null,null,null,null,null,null,null,null,null,null,null,null,null,null,null,null,null,null,null,null,null,null,null,null,null,null,null,null,null,null,null,null,null,null,null,null,null,null,null,null,null,null,null,null,null,null,null,null,null,null,null,null,null,null,null,null,null,null,null,null,null,null,null,null,null,null,null,null,null,null,null,null,null,null,null,null,null,null,null,null,null,null,null,null,null,null,null,null,null,null,null,null,null,null,null,null,null,null,null,null,null,null,null,null,null,null,null,null,null,null,null,null,null,null,null,null,null,null,null,null,null,null,null,null,null,null,null,null,null,null,null,null,null,null,null,null,null,null,null,null,null,null,null,null,null,null,null,null,null,null,null,null,null,null,null,null,null,null,null,null,null,null,null,null,null,null,null,null,null,null,null,null,null,null,null,null,null,null,null,null,null,null,null,null,null,null,null,null,null,null,null,null,null,null,null,null,null,null,null,null,null,null,null,null,null,null,null,null,null,null,null,null,null,null,null,null,null,null,null,null,null,null,null,null,null,null,null,null,null,null,null,null,null,null,null,null,null,null,null,null,null,null,null,null,null,null,null,null,null,null,null,null,null,null,null,null,null,null,null,null,null,null,null,null,null,null,null,null,null,null,null,null,null,null,null,null,null,null,null,null,null,null,null,null,null,null,null,null,null,null,null,null,null,null,null,null,null,null,null,null,null,null,null,null,null,null,null,null,null,null,null,null,null,null,null,null,null,null,null,null,null,null,null,null,null,null,null,null,null,null,null,null,null,null,null,null,null,null,null,null,null,null,null,null,null,null,null,null,null,null,null,null,null,null,null,null,null,null,null,null,null,null,null,null,null,null,null,null,null,null,null,null,null,null,null,null,null,null,null,null,null,null,null,null,null,null,null,null,null,null,null,null,null,null,null,null,null,null,null,null,null,null,null,null,null,null,null,null,null,null,null,null,null,null,null,null,null,null,null,null,null,null,null,null,null,null,null,null,null,null,null,null,null,null,null,null,null,null,null,null,null,null,null,null,null,null,null,null,null,null,null,null,null,null,null,null,null,null,null,null,null,null,null,null,null,null,null,null,null,null,null,null,null,null,null,null,null,null,null,null,null,null,null,null,null,null,null,null,null,null,null,null,null,null,null,null,null,null,null,null,null,null,null,null,null,null,null,null,null,null,null,null,null,null,null,null,null,null,null,null,null,null,null,null,null,null,null,null,null,null,null,null,null,null,null,null,null,null,null,null,null,null,null,null,null,null,null,null,null,null,null,null,null,null,null,null,null,null,null,null,null,null,null,null,null,null,null,null,null,null,null,null,null,null,null,null,null,null,null,null,null,null,null,null,null,null,null,null,null,null,null,null,null,null,null,null,null,null,null,null,null,null,null,null,null,null,null,null,null,null,null,null,null,null,null,null,null,null,null,null,null,null,null,null,null,null,null,null,null,null,null,null,null,null,null,null,null,null,null,null,null,null,null,null,null,null,null,null,null,null,null,null,null,null,null,null,null,null,null,null,null,null,null,null,null,null,null,null,null,null,null,null,null,null,null,null,null,null,null,null,null,null,null,null,null,null,null,null,null,null,null,null,null,null,null,null,null,null,null,null,null,null,null,null,null,null,null,null,null,null,null,null,null,null,null,null,null,null,null,null,null,null,null,null,null,null,null,null,null,null,null,null,null,null,null,null,null,null,null,null,null,null,null,null,null,null,null,null,null,null,null,null,null,null,null,null,null,null,null,null,null,null,null,null,null,null,null,null,null,null,null,null,null,null,null,null,null,null,null,null,null,null,null,null,null,null,null,null,null,null,null,null,null,null,null,null,null,null,null,null,null,null,null,null,null,null,null,null,null,null,null,null,null,null,null,null,null,null,null,null,null,null,null,null,null,null,null,null,null,null,null,null,null,null,null,null,null,null,null,null,null,null,null,null,null,null,null,null,null,null,null,null,null,null,null,null,null,null,null,null,null,null,null,null,null,null,null,null,null,null,null,null,null,null,null,null,null,null,null,null,null,null,null,null,null,null,null,null,null,null,null,null,null,null,null,null,null,null,null,null,null,null,null,null,null,null,null,null,null,null,null,null,null,null,null,null,null,null,null,null,null,null,null,null,null,null,null,null,null,null,null,null,null,null,null,null,null,null,null,null,null,null,null,null,null,null,null,null,null,null,null,null,null,null,null,null,null,null,null,null,null,null,null,null,null,null,null,null,null,null,null,null,null,null,null,null,null,null,null,null,null,null,null,null,null,null,null,null,null,null,null,null,null,null,null,null,null,null,null,null,null,null,null,null,null,null,null,null,null,null,null,null,null,null,null,null,null,null,null,null,null,null,null,null,null,null,null,null,null,null,null,null,null,null,null,null,null,null,null,null,null,null,null,null,null,null,null,null,null,null,null,null,null,null,null,null,null,null,null,null,null,null,null,null,null,null,null,null,null,null,null,null,null,null,null,null,null,null,null,null,null,null,null,null,null,null,null,null,null,null,null,null,null,null,null,null,null,null,null,null,null,null,null,null,null,null,null,null,null,null,null,null,null,null,null,null,null,null,null,null,null,null,null,null,null,null,null,null,null,null,null,null,null,null,null,null,null,null,null,null,null,null,null,null,null,null,null,null,null,null,null,null,null,null,null,null,null,null,null,null,null,null,null,null,null,null,null,null,null,null,null,null,null,null,null,null,null,null,null,null,null,null,null,null,null,null,null,null,null,null,null,null,null,null,null,null,null,null,null,null,null,null,null,null,null,null,null,null,null,null,null,null,null,null,null,null,null,null,null,null,null,null,null,null,null,null,null,null,null,null,null,null,null,null,null,null,null,null,null,null,null,null,null,null,null,null,null,null,null,null,null,null,null,null,null,null,null,null,null,null,null,null,null,null,null,null,null,null,null,null,null,null,null,null,null,null,null,null,null,null,null,null,null,null,null,null,null,null,null,null,null,null,null,null,null,null,null,null,null,null,null,null,null,null,null,null,null,null,null,null,null,null,null,null,null,null,null,null,null,null,null,null,null,null,null,null,null,null,null,null,null,null,null,null,null,null,null,null,null,null,null,null,null,null,null,null,null,null,null,null,null,null,null,null,null,null,null,null,null,null,null,null,null,null,null,null,null,null,null,null,null,null,null,null,null,null,null,null,null,null,null,"yes"]

{"sheet":"Order_DD","index":12,"n_rows":100,"n_cols":7,"rows_kept":100,"cut":false,"hidden":true,"merged":[]}
["Field Name","Start","End","Length","Type","Opt/Req","Default2Zero"]
["Record Length",1,4,4,"N","R","NO"]
["Originator Type",5,5,1,"A/N","R"]
["Firm Number",6,13,8,"A/N","R"]
["Fund Number",14,21,8,"A/N","R"]
["Record Type",22,24,3,"A/N","R"]
["NSCC Security Issue Number",25,40,16,"A/N","OC"]
["NSCC Sidepocket ID",41,43,3,"A/N","O"]
["Share Class",44,51,8,"A/N","O"]
["Security Identifier",52,52,1,"A/N","O"]
["Security Issue ID",53,64,12,"A/N","O"]
["Control Number",65,84,20,"A/N","R"]
["Correction Indicator",85,85,1,"A/N","O"]
["Submission Date",86,93,8,"N","R","NO"]
["Trade Date/Dealing Date – (Business Date)",94,101,8,"N","OC","NO"]
["Registration  Indicator",102,102,1,"A/N","OC"]
["NSCC Reject Indicator",103,103,1,"A/N","R"]
["NSCC Reject Reason Code 1",104,107,4,"A/N","R"]
["NSCC Reject Reason Code 2",108,111,4,"A/N","R"]
["NSCC Reject Reason Code 3",112,115,4,"A/N","R"]
["NSCC Reject Reason Code 4",116,119,4,"A/N","R"]
["Transaction Code",120,121,2,"A/N","R"]
["Settlement Date",122,129,8,"N","OC","NO"]
["Settlement Indicator",130,130,1,"A/N","R"]
["Settlement Date Override Indicator",131,131,1,"A/N","O "]
["Initial Documentation Status Indicator",132,132,1,"A/N","R"]
["Money Amount",133,148,16,"N","OC","NO"]
["Reporting Currency",149,151,3,"A/N","R"]
["Settlement Currency",152,154,3,"A/N","R"]
["Share Quantity",155,168,14,"N","OC","NO"]
["Network Control Indicator",169,169,1,"A/N","R"]
["Firm Account Number",170,189,20,"A/N","OC"]
["Fund Account Number",190,209,20,"A/N","OC"]
["Contract Note Date",210,217,8,"N","O","NO"]
["Series Roll Up Date",218,225,8,"N","O","NO"]
["Custodian Account Number",226,245,20,"A/N","O","NO"]
["Account Type",246,247,2,"A/N","R"]
["Account Registration Name",248,407,160,"A/N","OC"]
["Original Control Number",408,427,20,"A/N","O"]
["RIA/RR Indicator",428,428,1,"A/N","OC"]
["Introducing Broker Dealer Firm Name / Registered Investment Advisor Firm Name",429,463,35,"A/N","OC"]
["Account Representative/Advisor Name",464,478,15,"A/N","OC"]
["Account Representative/Advisor Number",479,487,9,"A/N","OC"]
["Branch ID Number",488,496,9,"A/N","OC"]
["Branch Address 1",497,531,35,"A/N","O"]
["Branch Address 2",532,566,35,"A/N","O"]
["Branch Address 3",567,601,35,"A/N","O"]
["Branch Address 4",602,636,35,"A/N","O"]
["Branch Address 5",637,671,35,"A/N","O"]
["Branch Postal Code/Zip Code",672,682,11,"A/N","OC"]
["Branch Country",683,685,3,"A/N","OC"]
["Related Trade Indicator 1",686,686,1,"A/N","O"]
["Related Account Number 1",687,706,20,"A/N","OC"]
["Dealer Concession/Manager Paid Placement Fee Percentage",707,712,6,"N","O"]
["Trading Model",713,713,1,"A/N","R"]
["AIP Firm Role",714,714,1,"A/N","OC"]
["NAV Account Indicator",715,715,1,"A/N","O"]
["Net/Gross Indicator",716,716,1,"A/N","OC"]
["Filler",717,718,2,"A/N","R"]
["Load Type Indicator",719,719,1,"A/N","O"]
["Breakpoint Change Reason Code",720,720,1,"A/N","O"]
["Commission/Placement Fee Amount",721,736,16,"N","OC","NO"]
["Commission/Placement Fee Percentage",737,742,6,"N","OC","NO"]
["Dealer Concession/Manager Paid Placement Fee Amount",743,758,16,"N","O"]
["Redemption Percentage",759,764,6,"N","O"]
["Share Lot Identifier 1",765,772,8,"N","O","NO"]
["Share Lot Identifier 2",773,780,8,"N","O","NO"]
["Share Lot Identifier 3",781,788,8,"N","O","NO"]
["Share Lot Identifier 4",789,796,8,"N","O","NO"]
["Share Lot Identifier 5",797,804,8,"N","O","NO"]
["Erisa Eligible Indicator",805,805,1,"A/N","O"]
["Erisa Percentage",806,811,6,"N","O","NO"]
["Erisa Pre-certified Indicator",812,812,1,"A/N","O"]
["Breakpoint Limit Number",813,814,2,"N","OC","NO"]
["Price Per Share",815,826,12,"N","O"]
["Series NSCC Security Issue Number",827,842,16,"A/N","OC"]
["Same Day Multiple Trade Indicator",843,843,1,"A/N","O"]
["Total Trade Amount Value",844,859,16,"N","O"]
["Related Trade Indicator 2",860,860,1,"A/N","O"]
["Related Account Number 2",861,880,20,"A/N","OC"]
["Related Trade Indicator 3",881,881,1,"A/N","O"]
["Related Account Number 3",882,901,20,"A/N","OC"]
["Related Trade Indicator 4",902,902,1,"A/N","O"]
["Related Account Number 4",903,922,20,"A/N","OC"]
["Related Trade Indicator 5",923,923,1,"A/N","O"]
["Related Account Number 5",924,943,20,"A/N","OC"]
["Firm CRD Number",944,953,10,"N","OC","NO"]
["Individual CRD/IARD Number",954,963,10,"N","OC","NO"]
["Trade Date/Dealing Date – (Calendar Date)",964,971,8,"N","O","NO"]
["Gross Amount of Trade",972,987,16,"N","OC","NO"]
["Accredited Investor Indicator",988,988,1,"A/N","O"]
["Qualified Client Indicator",989,989,1,"A/N","O"]
["Qualified Purchaser Indicator",990,990,1,"A/N","O"]
["Qualified Institutional Buyer Indicator",991,991,1,"A/N","O"]
["State of Sale",992,993,2,"A/N","O"]
["Redemption Reason Code",994,995,2,"A/N","OC"]
["CDSC Amount",996,1011,16,"N","O","NO"]
["Redemption Fee",1012,1027,16,"N","O","NO"]
["Cost Basis Option",1028,1029,2,"A/N","O"]
["Related Control Number",1030,1049,20,"A/N","O"]

{"sheet":"Order Ackn-Rej-Exit","index":13,"n_rows":4,"n_cols":16384,"rows_kept":4,"cut":false,"hidden":false,"merged":[[0,2,0,12]]}
["Last Update timestamp : 20-04-20 13:49:03 by Musielak, Victor A.",null,"003 = Firm Acknowledgement of Fund Order\n004 = Firm Reject of Fund Order\n005 = Fund Acknowledgement of Firm Order\n006 = Fund Reject of Firm Order\n009 = Firm Exit of Order \n010 = Fund Exit of Order \n036 = Fund Acknowledgement of Prepaid Order \n037 = Fund Reject of Prepaid Order \n038 = Firm Exit of Prepaid Order \n\nNote – Red=Required, Blue=Optional, Black=Optional Conditional (see Data Dictionary for condition)"]
["Record Length\n(R-4-N)","Originator Type\n(R-1-A/N)","Firm Number\n(R-8-A/N)","Fund Number\n(R-8-A/N)","Record Type\n(R-3-A/N)","NSCC Security Issue Number\n(OC-16-A/N)","NSCC Sidepocket ID\n(O-3-A/N)","Share Class\n(O-8-A/N)","Security Identifier\n(O-1-A/N)","Security Issue ID\n(O-12-A/N)","Control Number\n(R-20-A/N)","Re-acknowledgement Indicator\n(OC-1-A/N)","Submission Date\n(R-8-N)","Trade Date/Dealing Date – (Business Date)\n(OC-8-N)","Registration Indicator\n(OC-1-A/N)","NSCC Reject Indicator\n(R-1-A/N)","NSCC Reject Reason Code 1\n(R-4-A/N)","NSCC Reject Reason Code 2\n(R-4-A/N)","NSCC Reject Reason Code 3\n(R-4-A/N)","NSCC Reject Reason Code 4\n(R-4-A/N)","Transaction Code\n(S-2-A/N)","Settlement Date\n(O-8-N)","Settlement Indicator\n(S-1-A/N)","Settlement Date Override Indicator\n(S-1-A/N)","Filler\n(R-1-A/N)","Money Amount\n(S-16-N)","Reporting Currency\n(S-3-A/N)","Settlement Currency\n(S-3-A/N)","Share Quantity\n(S-14-N)","Net/Gross Indicator\n(S-1-A/N)","Firm Account Number\n(S-20-A/N)","Fund Account Number\n(S-20-A/N)","Contract Note Date\n(S-8-N)","Series Roll Up Date\n(S-8-N)","Trade Date/Dealing Date – (Calendar Date)\n(S-8-N)","Filler\n(R-49-A/N)","Original Control Number\n(S-20-A/N)","Filler\n(R-444-A/N)","Series NSCC Security Issue Number\n(OC-16-A/N)","Fund/Firm Reject-Exit Indicator\n(OC-1-A/N)","Fund/Firm Reject-Exit Reason Code 1\n(OC-4-A/N)","Fund/Firm Reject-Exit Reason Code 2\n(O-4-A/N)","Fund/Firm Reject-Exit Reason Code 3\n(O-4-A/N)","Fund/Firm Reject-Exit Reason Code 4\n(O-4-A/N)","Filler\n(R-1-A/N)","Payment Status Indicator\n(OC-1-A/N)","Equalization Amount\n(O-16-N)","Equalization Percentage\n(O-6-N)","Equalization Debit/Credit Indicator\n(OC-1-A/N)","Erisa Eligible Indicator\n(O-1-A/N)","Erisa Percentage\n(O-6-N)","Erisa Pre-certified Indicator\n(O-1-A/N)","ToBeExecuted"]
["0812","","","","","","|NoTag|","|NoTag|","|NoTag|","|NoTag|","","","","","","","","","","","|NoTag|","|NoTag|","|NoTag|","|NoTag|","|NoTag|","|NoTag|","|NoTag|","|NoTag|","|NoTag|","|NoTag|","|NoTag|","|NoTag|","|NoTag|","|NoTag|","|NoTag|","|NoTag|","|NoTag|","|NoTag|","","","","|NoTag|","|NoTag|","|NoTag|","|NoTag|","","|NoTag|","|NoTag|","","|NoTag|","|NoTag|","|NoTag|","No"]
[null,null,null,null,null,null,null,null,null,null,null,null,null,null,null,null,null,null,null,null,null,null,null,null,null,null,null,null,null,null,null,null,null,null,null,null,null,null,null,null,null,null,null,null,null,null,null,null,null,null,null,null,null,null,null,null,null,null,null,null,null,null,null,null,null,null,null,null,null,null,null,null,null,null,null,null,null,null,null,null,null,null,null,null,null,null,null,null,null,null,null,null,null,null,null,null,null,null,null,null,null,null,null,null,null,null,null,null,null,null,null,null,null,null,null,null,null,null,null,null,null,null,null,null,null,null,null,null,null,null,null,null,null,null,null,null,null,null,null,null,null,null,null,null,null,null,null,null,null,null,null,null,null,null,null,null,null,null,null,null,null,null,null,null,null,null,null,null,null,null,null,null,null,null,null,null,null,null,null,null,null,null,null,null,null,null,null,null,null,null,null,null,null,null,null,null,null,null,null,null,null,null,null,null,null,null,null,null,null,null,null,null,null,null,null,null,null,null,null,null,null,null,null,null,null,null,null,null,null,null,null,null,null,null,null,null,null,null,null,null,null,null,null,null,null,null,null,null,null,null,null,null,null,null,null,null,null,null,null,null,null,null,null,null,null,null,null,null,null,null,null,null,null,null,null,null,null,null,null,null,null,null,null,null,null,null,null,null,null,null,null,null,null,null,null,null,null,null,null,null,null,null,null,null,null,null,null,null,null,null,null,null,null,null,null,null,null,null,null,null,null,null,null,null,null,null,null,null,null,null,null,null,null,null,null,null,null,null,null,null,null,null,null,null,null,null,null,null,null,null,null,null,null,null,null,null,null,null,null,null,null,null,null,null,null,null,null,null,null,null,null,null,null,null,null,null,null,null,null,null,null,null,null,null,null,null,null,null,null,null,null,null,null,null,null,null,null,null,null,null,null,null,null,null,null,null,null,null,null,null,null,null,null,null,null,null,null,null,null,null,null,null,null,null,null,null,null,null,null,null,null,null,null,null,null,null,null,null,null,null,null,null,null,null,null,null,null,null,null,null,null,null,null,null,null,null,null,null,null,null,null,null,null,null,null,null,null,null,null,null,null,null,null,null,null,null,null,null,null,null,null,null,null,null,null,null,null,null,null,null,null,null,null,null,null,null,null,null,null,null,null,null,null,null,null,null,null,null,null,null,null,null,null,null,null,null,null,null,null,null,null,null,null,null,null,null,null,null,null,null,null,null,null,null,null,null,null,null,null,null,null,null,null,null,null,null,null,null,null,null,null,null,null,null,null,null,null,null,null,null,null,null,null,null,null,null,null,null,null,null,null,null,null,null,null,null,null,null,null,null,null,null,null,null,null,null,null,null,null,null,null,null,null,null,null,null,null,null,null,null,null,null,null,null,null,null,null,null,null,null,null,null,null,null,null,null,null,null,null,null,null,null,null,null,null,null,null,null,null,null,null,null,null,null,null,null,null,null,null,null,null,null,null,null,null,null,null,null,null,null,null,null,null,null,null,null,null,null,null,null,null,null,null,null,null,null,null,null,null,null,null,null,null,null,null,null,null,null,null,null,null,null,null,null,null,null,null,null,null,null,null,null,null,null,null,null,null,null,null,null,null,null,null,null,null,null,null,null,null,null,null,null,null,null,null,null,null,null,null,null,null,null,null,null,null,null,null,null,null,null,null,null,null,null,null,null,null,null,null,null,null,null,null,null,null,null,null,null,null,null,null,null,null,null,null,null,null,null,null,null,null,null,null,null,null,null,null,null,null,null,null,null,null,null,null,null,null,null,null,null,null,null,null,null,null,null,null,null,null,null,null,null,null,null,null,null,null,null,null,null,null,null,null,null,null,null,null,null,null,null,null,null,null,null,null,null,null,null,null,null,null,null,null,null,null,null,null,null,null,null,null,null,null,null,null,null,null,null,null,null,null,null,null,null,null,null,null,null,null,null,null,null,null,null,null,null,null,null,null,null,null,null,null,null,null,null,null,null,null,null,null,null,null,null,null,null,null,null,null,null,null,null,null,null,null,null,null,null,null,null,null,null,null,null,null,null,null,null,null,null,null,null,null,null,null,null,null,null,null,null,null,null,null,null,null,null,null,null,null,null,null,null,null,null,null,null,null,null,null,null,null,null,null,null,null,null,null,null,null,null,null,null,null,null,null,null,null,null,null,null,null,null,null,null,null,null,null,null,null,null,null,null,null,null,null,null,null,null,null,null,null,null,null,null,null,null,null,null,null,null,null,null,null,null,null,null,null,null,null,null,null,null,null,null,null,null,null,null,null,null,null,null,null,null,null,null,null,null,null,null,null,null,null,null,null,null,null,null,null,null,null,null,null,null,null,null,null,null,null,null,null,null,null,null,null,null,null,null,null,null,null,null,null,null,null,null,null,null,null,null,null,null,null,null,null,null,null,null,null,null,null,null,null,null,null,null,null,null,null,null,null,null,null,null,null,null,null,null,null,null,null,null,null,null,null,null,null,null,null,null,null,null,null,null,null,null,null,null,null,null,null,null,null,null,null,null,null,null,null,null,null,null,null,null,null,null,null,null,null,null,null,null,null,null,null,null,null,null,null,null,null,null,null,null,null,null,null,null,null,null,null,null,null,null,null,null,null,null,null,null,null,null,null,null,null,null,null,null,null,null,null,null,null,null,null,null,null,null,null,null,null,null,null,null,null,null,null,null,null,null,null,null,null,null,null,null,null,null,null,null,null,null,null,null,null,null,null,null,null,null,null,null,null,null,null,null,null,null,null,null,null,null,null,null,null,null,null,null,null,null,null,null,null,null,null,null,null,null,null,null,null,null,null,null,null,null,null,null,null,null,null,null,null,null,null,null,null,null,null,null,null,null,null,null,null,null,null,null,null,null,null,null,null,null,null,null,null,null,null,null,null,null,null,null,null,null,null,null,null,null,null,null,null,null,null,null,null,null,null,null,null,null,null,null,null,null,null,null,null,null,null,null,null,null,null,null,null,null,null,null,null,null,null,null,null,null,null,null,null,null,null,null,null,null,null,null,null,null,null,null,null,null,null,null,null,null,null,null,null,null,null,null,null,null,null,null,null,null,null,null,null,null,null,null,null,null,null,null,null,null,null,null,null,null,null,null,null,null,null,null,null,null,null,null,null,null,null,null,null,null,null,null,null,null,null,null,null,null,null,null,null,null,null,null,null,null,null,null,null,null,null,null,null,null,null,null,null,null,null,null,null,null,null,null,null,null,null,null,null,null,null,null,null,null,null,null,null,null,null,null,null,null,null,null,null,null,null,null,null,null,null,null,null,null,null,null,null,null,null,null,null,null,null,null,null,null,null,null,null,null,null,null,null,null,null,null,null,null,null,null,null,null,null,null,null,null,null,null,null,null,null,null,null,null,null,null,null,null,null,null,null,null,null,null,null,null,null,null,null,null,null,null,null,null,null,null,null,null,null,null,null,null,null,null,null,null,null,null,null,null,null,null,null,null,null,null,null,null,null,null,null,null,null,null,null,null,null,null,null,null,null,null,null,null,null,null,null,null,null,null,null,null,null,null,null,null,null,null,null,null,null,null,null,null,null,null,null,null,null,null,null,null,null,null,null,null,null,null,null,null,null,null,null,null,null,null,null,null,null,null,null,null,null,null,null,null,null,null,null,null,null,null,null,null,null,null,null,null,null,null,null,null,null,null,null,null,null,null,null,null,null,null,null,null,null,null,null,null,null,null,null,null,null,null,null,null,null,null,null,null,null,null,null,null,null,null,null,null,null,null,null,null,null,null,null,null,null,null,null,null,null,null,null,null,null,null,null,null,null,null,null,null,null,null,null,null,null,null,null,null,null,null,null,null,null,null,null,null,null,null,null,null,null,null,null,null,null,null,null,null,null,null,null,null,null,null,null,null,null,null,null,null,null,null,null,null,null,null,null,null,null,null,null,null,null,null,null,null,null,null,null,null,null,null,null,null,null,null,null,null,null,null,null,null,null,null,null,null,null,null,null,null,null,null,null,null,null,null,null,null,null,null,null,null,null,null,null,null,null,null,null,null,null,null,null,null,null,null,null,null,null,null,null,null,null,null,null,null,null,null,null,null,null,null,null,null,null,null,null,null,null,null,null,null,null,null,null,null,null,null,null,null,null,null,null,null,null,null,null,null,null,null,null,null,null,null,null,null,null,null,null,null,null,null,null,null,null,null,null,null,null,null,null,null,null,null,null,null,null,null,null,null,null,null,null,null,null,null,null,null,null,null,null,null,null,null,null,null,null,null,null,null,null,null,null,null,null,null,null,null,null,null,null,null,null,null,null,null,null,null,null,null,null,null,null,null,null,null,null,null,null,null,null,null,null,null,null,null,null,null,null,null,null,null,null,null,null,null,null,null,null,null,null,null,null,null,null,null,null,null,null,null,null,null,null,null,null,null,null,null,null,null,null,null,null,null,null,null,null,null,null,null,null,null,null,null,null,null,null,null,null,null,null,null,null,null,null,null,null,null,null,null,null,null,null,null,null,null,null,null,null,null,null,null,null,null,null,null,null,null,null,null,null,null,null,null,null,null,null,null,null,null,null,null,null,null,null,null,null,null,null,null,null,null,null,null,null,null,null,null,null,null,null,null,null,null,null,null,null,null,null,null,null,null,null,null,null,null,null,null,null,null,null,null,null,null,null,null,null,null,null,null,null,null,null,null,null,null,null,null,null,null,null,null,null,null,null,null,null,null,null,null,null,null,null,null,null,null,null,null,null,null,null,null,null,null,null,null,null,null,null,null,null,null,null,null,null,null,null,null,null,null,null,null,null,null,null,null,null,null,null,null,null,null,null,null,null,null,null,null,null,null,null,null,null,null,null,null,null,null,null,null,null,null,null,null,null,null,null,null,null,null,null,null,null,null,null,null,null,null,null,null,null,null,null,null,null,null,null,null,null,null,null,null,null,null,null,null,null,null,null,null,null,null,null,null,null,null,null,null,null,null,null,null,null,null,null,null,null,null,null,null,null,null,null,null,null,null,null,null,null,null,null,null,null,null,null,null,null,null,null,null,null,null,null,null,null,null,null,null,null,null,null,null,null,null,null,null,null,null,null,null,null,null,null,null,null,null,null,null,null,null,null,null,null,null,null,null,null,null,null,null,null,null,null,null,null,null,null,null,null,null,null,null,null,null,null,null,null,null,null,null,null,null,null,null,null,null,null,null,null,null,null,null,null,null,null,null,null,null,null,null,null,null,null,null,null,null,null,null,null,null,null,null,null,null,null,null,null,null,null,null,null,null,null,null,null,null,null,null,null,null,null,null,null,null,null,null,null,null,null,null,null,null,null,null,null,null,null,null,null,null,null,null,null,null,null,null,null,null,null,null,null,null,null,null,null,null,null,null,null,null,null,null,null,null,null,null,null,null,null,null,null,null,null,null,null,null,null,null,null,null,null,null,null,null,null,null,null,null,null,null,null,null,null,null,null,null,null,null,null,null,null,null,null,null,null,null,null,null,null,null,null,null,null,null,null,null,null,null,null,null,null,null,null,null,null,null,null,null,null,null,null,null,null,null,null,null,null,null,null,null,null,null,null,null,null,null,null,null,null,null,null,null,null,null,null,null,null,null,null,null,null,null,null,null,null,null,null,null,null,null,null,null,null,null,null,null,null,null,null,null,null,null,null,null,null,null,null,null,null,null,null,null,null,null,null,null,null,null,null,null,null,null,null,null,null,null,null,null,null,null,null,null,null,null,null,null,null,null,null,null,null,null,null,null,null,null,null,null,null,null,null,null,null,null,null,null,null,null,null,null,null,null,null,null,null,null,null,null,null,null,null,null,null,null,null,null,null,null,null,null,null,null,null,null,null,null,null,null,null,null,null,null,null,null,null,null,null,null,null,null,null,null,null,null,null,null,null,null,null,null,null,null,null,null,null,null,null,null,null,null,null,null,null,null,null,null,null,null,null,null,null,null,null,null,null,null,null,null,null,null,null,null,null,null,null,null,null,null,null,null,null,null,null,null,null,null,null,null,null,null,null,null,null,null,null,null,null,null,null,null,null,null,null,null,null,null,null,null,null,null,null,null,null,null,null,null,null,null,null,null,null,null,null,null,null,null,null,null,null,null,null,null,null,null,null,null,null,null,null,null,null,null,null,null,null,null,null,null,null,null,null,null,null,null,null,null,null,null,null,null,null,null,null,null,null,null,null,null,null,null,null,null,null,null,null,null,null,null,null,null,null,null,null,null,null,null,null,null,null,null,null,null,null,null,null,null,null,null,null,null,null,null,null,null,null,null,null,null,null,null,null,null,null,null,null,null,null,null,null,null,null,null,null,null,null,null,null,null,null,null,null,null,null,null,null,null,null,null,null,null,null,null,null,null,null,null,null,null,null,null,null,null,null,null,null,null,null,null,null,null,null,null,null,null,null,null,null,null,null,null,null,null,null,null,null,null,null,null,null,null,null,null,null,null,null,null,null,null,null,null,null,null,null,null,null,null,null,null,null,null,null,null,null,null,null,null,null,null,null,null,null,null,null,null,null,null,null,null,null,null,null,null,null,null,null,null,null,null,null,null,null,null,null,null,null,null,null,null,null,null,null,null,null,null,null,null,null,null,null,null,null,null,null,null,null,null,null,null,null,null,null,null,null,null,null,null,null,null,null,null,null,null,null,null,null,null,null,null,null,null,null,null,null,null,null,null,null,null,null,null,null,null,null,null,null,null,null,null,null,null,null,null,null,null,null,null,null,null,null,null,null,null,null,null,null,null,null,null,null,null,null,null,null,null,null,null,null,null,null,null,null,null,null,null,null,null,null,null,null,null,null,null,null,null,null,null,null,null,null,null,null,null,null,null,null,null,null,null,null,null,null,null,null,null,null,null,null,null,null,null,null,null,null,null,null,null,null,null,null,null,null,null,null,null,null,null,null,null,null,null,null,null,null,null,null,null,null,null,null,null,null,null,null,null,null,null,null,null,null,null,null,null,null,null,null,null,null,null,null,null,null,null,null,null,null,null,null,null,null,null,null,null,null,null,null,null,null,null,null,null,null,null,null,null,null,null,null,null,null,null,null,null,null,null,null,null,null,null,null,null,null,null,null,null,null,null,null,null,null,null,null,null,null,null,null,null,null,null,null,null,null,null,null,null,null,null,null,null,null,null,null,null,null,null,null,null,null,null,null,null,null,null,null,null,null,null,null,null,null,null,null,null,null,null,null,null,null,null,null,null,null,null,null,null,null,null,null,null,null,null,null,null,null,null,null,null,null,null,null,null,null,null,null,null,null,null,null,null,null,null,null,null,null,null,null,null,null,null,null,null,null,null,null,null,null,null,null,null,null,null,null,null,null,null,null,null,null,null,null,null,null,null,null,null,null,null,null,null,null,null,null,null,null,null,null,null,null,null,null,null,null,null,null,null,null,null,null,null,null,null,null,null,null,null,null,null,null,null,null,null,null,null,null,null,null,null,null,null,null,null,null,null,null,null,null,null,null,null,null,null,null,null,null,null,null,null,null,null,null,null,null,null,null,null,null,null,null,null,null,null,null,null,null,null,null,null,null,null,null,null,null,null,null,null,null,null,null,null,null,null,null,null,null,null,null,null,null,null,null,null,null,null,null,null,null,null,null,null,null,null,null,null,null,null,null,null,null,null,null,null,null,null,null,null,null,null,null,null,null,null,null,null,null,null,null,null,null,null,null,null,null,null,null,null,null,null,null,null,null,null,null,null,null,null,null,null,null,null,null,null,null,null,null,null,null,null,null,null,null,null,null,null,null,null,null,null,null,null,null,null,null,null,null,null,null,null,null,null,null,null,null,null,null,null,null,null,null,null,null,null,null,null,null,null,null,null,null,null,null,null,null,null,null,null,null,null,null,null,null,null,null,null,null,null,null,null,null,null,null,null,null,null,null,null,null,null,null,null,null,null,null,null,null,null,null,null,null,null,null,null,null,null,null,null,null,null,null,null,null,null,null,null,null,null,null,null,null,null,null,null,null,null,null,null,null,null,null,null,null,null,null,null,null,null,null,null,null,null,null,null,null,null,null,null,null,null,null,null,null,null,null,null,null,null,null,null,null,null,null,null,null,null,null,null,null,null,null,null,null,null,null,null,null,null,null,null,null,null,null,null,null,null,null,null,null,null,null,null,null,null,null,null,null,null,null,null,null,null,null,null,null,null,null,null,null,null,null,null,null,null,null,null,null,null,null,null,null,null,null,null,null,null,null,null,null,null,null,null,null,null,null,null,null,null,null,null,null,null,null,null,null,null,null,null,null,null,null,null,null,null,null,null,null,null,null,null,null,null,null,null,null,null,null,null,null,null,null,null,null,null,null,null,null,null,null,null,null,null,null,null,null,null,null,null,null,null,null,null,null,null,null,null,null,null,null,null,null,null,null,null,null,null,null,null,null,null,null,null,null,null,null,null,null,null,null,null,null,null,null,null,null,null,null,null,null,null,null,null,null,null,null,null,null,null,null,null,null,null,null,null,null,null,null,null,null,null,null,null,null,null,null,null,null,null,null,null,null,null,null,null,null,null,null,null,null,null,null,null,null,null,null,null,null,null,null,null,null,null,null,null,null,null,null,null,null,null,null,null,null,null,null,null,null,null,null,null,null,null,null,null,null,null,null,null,null,null,null,null,null,null,null,null,null,null,null,null,null,null,null,null,null,null,null,null,null,null,null,null,null,null,null,null,null,null,null,null,null,null,null,null,null,null,null,null,null,null,null,null,null,null,null,null,null,null,null,null,null,null,null,null,null,null,null,null,null,null,null,null,null,null,null,null,null,null,null,null,null,null,null,null,null,null,null,null,null,null,null,null,null,null,null,null,null,null,null,null,null,null,null,null,null,null,null,null,null,null,null,null,null,null,null,null,null,null,null,null,null,null,null,null,null,null,null,null,null,null,null,null,null,null,null,null,null,null,null,null,null,null,null,null,null,null,null,null,null,null,null,null,null,null,null,null,null,null,null,null,null,null,null,null,null,null,null,null,null,null,null,null,null,null,null,null,null,null,null,null,null,null,null,null,null,null,null,null,null,null,null,null,null,null,null,null,null,null,null,null,null,null,null,null,null,null,null,null,null,null,null,null,null,null,null,null,null,null,null,null,null,null,null,null,null,null,null,null,null,null,null,null,null,null,null,null,null,null,null,null,null,null,null,null,null,null,null,null,null,null,null,null,null,null,null,null,null,null,null,null,null,null,null,null,null,null,null,null,null,null,null,null,null,null,null,null,null,null,null,null,null,null,null,null,null,null,null,null,null,null,null,null,null,null,null,null,null,null,null,null,null,null,null,null,null,null,null,null,null,null,null,null,null,null,null,null,null,null,null,null,null,null,null,null,null,null,null,null,null,null,null,null,null,null,null,null,null,null,null,null,null,null,null,null,null,null,null,null,null,null,null,null,null,null,null,null,null,null,null,null,null,null,null,null,null,null,null,null,null,null,null,null,null,null,null,null,null,null,null,null,null,null,null,null,null,null,null,null,null,null,null,null,null,null,null,null,null,null,null,null,null,null,null,null,null,null,null,null,null,null,null,null,null,null,null,null,null,null,null,null,null,null,null,null,null,null,null,null,null,null,null,null,null,null,null,null,null,null,null,null,null,null,null,null,null,null,null,null,null,null,null,null,null,null,null,null,null,null,null,null,null,null,null,null,null,null,null,null,null,null,null,null,null,null,null,null,null,null,null,null,null,null,null,null,null,null,null,null,null,null,null,null,null,null,null,null,null,null,null,null,null,null,null,null,null,null,null,null,null,null,null,null,null,null,null,null,null,null,null,null,null,null,null,null,null,null,null,null,null,null,null,null,null,null,null,null,null,null,null,null,null,null,null,null,null,null,null,null,null,null,null,null,null,null,null,null,null,null,null,null,null,null,null,null,null,null,null,null,null,null,null,null,null,null,null,null,null,null,null,null,null,null,null,null,null,null,null,null,null,null,null,null,null,null,null,null,null,null,null,null,null,null,null,null,null,null,null,null,null,null,null,null,null,null,null,null,null,null,null,null,null,null,null,null,null,null,null,null,null,null,null,null,null,null,null,null,null,null,null,null,null,null,null,null,null,null,null,null,null,null,null,null,null,null,null,null,null,null,null,null,null,null,null,null,null,null,null,null,null,null,null,null,null,null,null,null,null,null,null,null,null,null,null,null,null,null,null,null,null,null,null,null,null,null,null,null,null,null,null,null,null,null,null,null,null,null,null,null,null,null,null,null,null,null,null,null,null,null,null,null,null,null,null,null,null,null,null,null,null,null,null,null,null,null,null,null,null,null,null,null,null,null,null,null,null,null,null,null,null,null,null,null,null,null,null,null,null,null,null,null,null,null,null,null,null,null,null,null,null,null,null,null,null,null,null,null,null,null,null,null,null,null,null,null,null,null,null,null,null,null,null,null,null,null,null,null,null,null,null,null,null,null,null,null,null,null,null,null,null,null,null,null,null,null,null,null,null,null,null,null,null,null,null,null,null,null,null,null,null,null,null,null,null,null,null,null,null,null,null,null,null,null,null,null,null,null,null,null,null,null,null,null,null,null,null,null,null,null,null,null,null,null,null,null,null,null,null,null,null,null,null,null,null,null,null,null,null,null,null,null,null,null,null,null,null,null,null,null,null,null,null,null,null,null,null,null,null,null,null,null,null,null,null,null,null,null,null,null,null,null,null,null,null,null,null,null,null,null,null,null,null,null,null,null,null,null,null,null,null,null,null,null,null,null,null,null,null,null,null,null,null,null,null,null,null,null,null,null,null,null,null,null,null,null,null,null,null,null,null,null,null,null,null,null,null,null,null,null,null,null,null,null,null,null,null,null,null,null,null,null,null,null,null,null,null,null,null,null,null,null,null,null,null,null,null,null,null,null,null,null,null,null,null,null,null,null,null,null,null,null,null,null,null,null,null,null,null,null,null,null,null,null,null,null,null,null,null,null,null,null,null,null,null,null,null,null,null,null,null,null,null,null,null,null,null,null,null,null,null,null,null,null,null,null,null,null,null,null,null,null,null,null,null,null,null,null,null,null,null,null,null,null,null,null,null,null,null,null,null,null,null,null,null,null,null,null,null,null,null,null,null,null,null,null,null,null,null,null,null,null,null,null,null,null,null,null,null,null,null,null,null,null,null,null,null,null,null,null,null,null,null,null,null,null,null,null,null,null,null,null,null,null,null,null,null,null,null,null,null,null,null,null,null,null,null,null,null,null,null,null,null,null,null,null,null,null,null,null,null,null,null,null,null,null,null,null,null,null,null,null,null,null,null,null,null,null,null,null,null,null,null,null,null,null,null,null,null,null,null,null,null,null,null,null,null,null,null,null,null,null,null,null,null,null,null,null,null,null,null,null,null,null,null,null,null,null,null,null,null,null,null,null,null,null,null,null,null,null,null,null,null,null,null,null,null,null,null,null,null,null,null,null,null,null,null,null,null,null,null,null,null,null,null,null,null,null,null,null,null,null,null,null,null,null,null,null,null,null,null,null,null,null,null,null,null,null,null,null,null,null,null,null,null,null,null,null,null,null,null,null,null,null,null,null,null,null,null,null,null,null,null,null,null,null,null,null,null,null,null,null,null,null,null,null,null,null,null,null,null,null,null,null,null,null,null,null,null,null,null,null,null,null,null,null,null,null,null,null,null,null,null,null,null,null,null,null,null,null,null,null,null,null,null,null,null,null,null,null,null,null,null,null,null,null,null,null,null,null,null,null,null,null,null,null,null,null,null,null,null,null,null,null,null,null,null,null,null,null,null,null,null,null,null,null,null,null,null,null,null,null,null,null,null,null,null,null,null,null,null,null,null,null,null,null,null,null,null,null,null,null,null,null,null,null,null,null,null,null,null,null,null,null,null,null,null,null,null,null,null,null,null,null,null,null,null,null,null,null,null,null,null,null,null,null,null,null,null,null,null,null,null,null,null,null,null,null,null,null,null,null,null,null,null,null,null,null,null,null,null,null,null,null,null,null,null,null,null,null,null,null,null,null,null,null,null,null,null,null,null,null,null,null,null,null,null,null,null,null,null,null,null,null,null,null,null,null,null,null,null,null,null,null,null,null,null,null,null,null,null,null,null,null,null,null,null,null,null,null,null,null,null,null,null,null,null,null,null,null,null,null,null,null,null,null,null,null,null,null,null,null,null,null,null,null,null,null,null,null,null,null,null,null,null,null,null,null,null,null,null,null,null,null,null,null,null,null,null,null,null,null,null,null,null,null,null,null,null,null,null,null,null,null,null,null,null,null,null,null,null,null,null,null,null,null,null,null,null,null,null,null,null,null,null,null,null,null,null,null,null,null,null,null,null,null,null,null,null,null,null,null,null,null,null,null,null,null,null,null,null,null,null,null,null,null,null,null,null,null,null,null,null,null,null,null,null,null,null,null,null,null,null,null,null,null,null,null,null,null,null,null,null,null,null,null,null,null,null,null,null,null,null,null,null,null,null,null,null,null,null,null,null,null,null,null,null,null,null,null,null,null,null,null,null,null,null,null,null,null,null,null,null,null,null,null,null,null,null,null,null,null,null,null,null,null,null,null,null,null,null,null,null,null,null,null,null,null,null,null,null,null,null,null,null,null,null,null,null,null,null,null,null,null,null,null,null,null,null,null,null,null,null,null,null,null,null,null,null,null,null,null,null,null,null,null,null,null,null,null,null,null,null,null,null,null,null,null,null,null,null,null,null,null,null,null,null,null,null,null,null,null,null,null,null,null,null,null,null,null,null,null,null,null,null,null,null,null,null,null,null,null,null,null,null,null,null,null,null,null,null,null,null,null,null,null,null,null,null,null,null,null,null,null,null,null,null,null,null,null,null,null,null,null,null,null,null,null,null,null,null,null,null,null,null,null,null,null,null,null,null,null,null,null,null,null,null,null,null,null,null,null,null,null,null,null,null,null,null,null,null,null,null,null,null,null,null,null,null,null,null,null,null,null,null,null,null,null,null,null,null,null,null,null,null,null,null,null,null,null,null,null,null,null,null,null,null,null,null,null,null,null,null,null,null,null,null,null,null,null,null,null,null,null,null,null,null,null,null,null,null,null,null,null,null,null,null,null,null,null,null,null,null,null,null,null,null,null,null,null,null,null,null,null,null,null,null,null,null,null,null,null,null,null,null,null,null,null,null,null,null,null,null,null,null,null,null,null,null,null,null,null,null,null,null,null,null,null,null,null,null,null,null,null,null,null,null,null,null,null,null,null,null,null,null,null,null,null,null,null,null,null,null,null,null,null,null,null,null,null,null,null,null,null,null,null,null,null,null,null,null,null,null,null,null,null,null,null,null,null,null,null,null,null,null,null,null,null,null,null,null,null,null,null,null,null,null,null,null,null,null,null,null,null,null,null,null,null,null,null,null,null,null,null,null,null,null,null,null,null,null,null,null,null,null,null,null,null,null,null,null,null,null,null,null,null,null,null,null,null,null,null,null,null,null,null,null,null,null,null,null,null,null,null,null,null,null,null,null,null,null,null,null,null,null,null,null,null,null,null,null,null,null,null,null,null,null,null,null,null,null,null,null,null,null,null,null,null,null,null,null,null,null,null,null,null,null,null,null,null,null,null,null,null,null,null,null,null,null,null,null,null,null,null,null,null,null,null,null,null,null,null,null,null,null,null,null,null,null,null,null,null,null,null,null,null,null,null,null,null,null,null,null,null,null,null,null,null,null,null,null,null,null,null,null,null,null,null,null,null,null,null,null,null,null,null,null,null,null,null,null,null,null,null,null,null,null,null,null,null,null,null,null,null,null,null,null,null,null,null,null,null,null,null,null,null,null,null,null,null,null,null,null,null,null,null,null,null,null,null,null,null,null,null,null,null,null,null,null,null,null,null,null,null,null,null,null,null,null,null,null,null,null,null,null,null,null,null,null,null,null,null,null,null,null,null,null,null,null,null,null,null,null,null,null,null,null,null,null,null,null,null,null,null,null,null,null,null,null,null,null,null,null,null,null,null,null,null,null,null,null,null,null,null,null,null,null,null,null,null,null,null,null,null,null,null,null,null,null,null,null,null,null,null,null,null,null,null,null,null,null,null,null,null,null,null,null,null,null,null,null,null,null,null,null,null,null,null,null,null,null,null,null,null,null,null,null,null,null,null,null,null,null,null,null,null,null,null,null,null,null,null,null,null,null,null,null,null,null,null,null,null,null,null,null,null,null,null,null,null,null,null,null,null,null,null,null,null,null,null,null,null,null,null,null,null,null,null,null,null,null,null,null,null,null,null,null,null,null,null,null,null,null,null,null,null,null,null,null,null,null,null,null,null,null,null,null,null,null,null,null,null,null,null,null,null,null,null,null,null,null,null,null,null,null,null,null,null,null,null,null,null,null,null,null,null,null,null,null,null,null,null,null,null,null,null,null,null,null,null,null,null,null,null,null,null,null,null,null,null,null,null,null,null,null,null,null,null,null,null,null,null,null,null,null,null,null,null,null,null,null,null,null,null,null,null,null,null,null,null,null,null,null,null,null,null,null,null,null,null,null,null,null,null,null,null,null,null,null,null,null,null,null,null,null,null,null,null,null,null,null,null,null,null,null,null,null,null,null,null,null,null,null,null,null,null,null,null,null,null,null,null,null,null,null,null,null,null,null,null,null,null,null,null,null,null,null,null,null,null,null,null,null,null,null,null,null,null,null,null,null,null,null,null,null,null,null,null,null,null,null,null,null,null,null,null,null,null,null,null,null,null,null,null,null,null,null,null,null,null,null,null,null,null,null,null,null,null,null,null,null,null,null,null,null,null,null,null,null,null,null,null,null,null,null,null,null,null,null,null,null,null,null,null,null,null,null,null,null,null,null,null,null,null,null,null,null,null,null,null,null,null,null,null,null,null,null,null,null,null,null,null,null,null,null,null,null,null,null,null,null,null,null,null,null,null,null,null,null,null,null,null,null,null,null,null,null,null,null,null,null,null,null,null,null,null,null,null,null,null,null,null,null,null,null,null,null,null,null,null,null,null,null,null,null,null,null,null,null,null,null,null,null,null,null,null,null,null,null,null,null,null,null,null,null,null,null,null,null,null,null,null,null,null,null,null,null,null,null,null,null,null,null,null,null,null,null,null,null,null,null,null,null,null,null,null,null,null,null,null,null,null,null,null,null,null,null,null,null,null,null,null,null,null,null,null,null,null,null,null,null,null,null,null,null,null,null,null,null,null,null,null,null,null,null,null,null,null,null,null,null,null,null,null,null,null,null,null,null,null,null,null,null,null,null,null,null,null,null,null,null,null,null,null,null,null,null,null,null,null,null,null,null,null,null,null,null,null,null,null,null,null,null,null,null,null,null,null,null,null,null,null,null,null,null,null,null,null,null,null,null,null,null,null,null,null,null,null,null,null,null,null,null,null,null,null,null,null,null,null,null,null,null,null,null,null,null,null,null,null,null,null,null,null,null,null,null,null,null,null,null,null,null,null,null,null,null,null,null,null,null,null,null,null,null,null,null,null,null,null,null,null,null,null,null,null,null,null,null,null,null,null,null,null,null,null,null,null,null,null,null,null,null,null,null,null,null,null,null,null,null,null,null,null,null,null,null,null,null,null,null,null,null,null,null,null,null,null,null,null,null,null,null,null,null,null,null,null,null,null,null,null,null,null,null,null,null,null,null,null,null,null,null,null,null,null,null,null,null,null,null,null,null,null,null,null,null,null,null,null,null,null,null,null,null,null,null,null,null,null,null,null,null,null,null,null,null,null,null,null,null,null,null,null,null,null,null,null,null,null,null,null,null,null,null,null,null,null,null,null,null,null,null,null,null,null,null,null,null,null,null,null,null,null,null,null,null,null,null,null,null,null,null,null,null,null,null,null,null,null,null,null,null,null,null,null,null,null,null,null,null,null,null,null,null,null,null,null,null,null,null,null,null,null,null,null,null,null,null,null,null,null,null,null,null,null,null,null,null,null,null,null,null,null,null,null,null,null,null,null,null,null,null,null,null,null,null,null,null,null,null,null,null,null,null,null,null,null,null,null,null,null,null,null,null,null,null,null,null,null,null,null,null,null,null,null,null,null,null,null,null,null,null,null,null,null,null,null,null,null,null,null,null,null,null,null,null,null,null,null,null,null,null,null,null,null,null,null,null,null,null,null,null,null,null,null,null,null,null,null,null,null,null,null,null,null,null,null,null,null,null,null,null,null,null,null,null,null,null,null,null,null,null,null,null,null,null,null,null,null,null,null,null,null,null,null,null,null,null,null,null,null,null,null,null,null,null,null,null,null,null,null,null,null,null,null,null,null,null,null,null,null,null,null,null,null,null,null,null,null,null,null,null,null,null,null,null,null,null,null,null,null,null,null,null,null,null,null,null,null,null,null,null,null,null,null,null,null,null,null,null,null,null,null,null,null,null,null,null,null,null,null,null,null,null,null,null,null,null,null,null,null,null,null,null,null,null,null,null,null,null,null,null,null,null,null,null,null,null,null,null,null,null,null,null,null,null,null,null,null,null,null,null,null,null,null,null,null,null,null,null,null,null,null,null,null,null,null,null,null,null,null,null,null,null,null,null,null,null,null,null,null,null,null,null,null,null,null,null,null,null,null,null,null,null,null,null,null,null,null,null,null,null,null,null,null,null,null,null,null,null,null,null,null,null,null,null,null,null,null,null,null,null,null,null,null,null,null,null,null,null,null,null,null,null,null,null,null,null,null,null,null,null,null,null,null,null,null,null,null,null,null,null,null,null,null,null,null,null,null,null,null,null,null,null,null,null,null,null,null,null,null,null,null,null,null,null,null,null,null,null,null,null,null,null,null,null,null,null,null,null,null,null,null,null,null,null,null,null,null,null,null,null,null,null,null,null,null,null,null,null,null,null,null,null,null,null,null,null,null,null,null,null,null,null,null,null,null,null,null,null,null,null,null,null,null,null,null,null,null,null,null,null,null,null,null,null,null,null,null,null,null,null,null,null,null,null,null,null,null,null,null,null,null,null,null,null,null,null,null,null,null,null,null,null,null,null,null,null,null,null,null,null,null,null,null,null,null,null,null,null,null,null,null,null,null,null,null,null,null,null,null,null,null,null,null,null,null,null,null,null,null,null,null,null,null,null,null,null,null,null,null,null,null,null,null,null,null,null,null,null,null,null,null,null,null,null,null,null,null,null,null,null,null,null,null,null,null,null,null,null,null,null,null,null,null,null,null,null,null,null,null,null,null,null,null,null,null,null,null,null,null,null,null,null,null,null,null,null,null,null,null,null,null,null,null,null,null,null,null,null,null,null,null,null,null,null,null,null,null,null,null,null,null,null,null,null,null,null,null,null,null,null,null,null,null,null,null,null,null,null,null,null,null,null,null,null,null,null,null,null,null,null,null,null,null,null,null,null,null,null,null,null,null,null,null,null,null,null,null,null,null,null,null,null,null,null,null,null,null,null,null,null,null,null,null,null,null,null,null,null,null,null,null,null,null,null,null,null,null,null,null,null,null,null,null,null,null,null,null,null,null,null,null,null,null,null,null,null,null,null,null,null,null,null,null,null,null,null,null,null,null,null,null,null,null,null,null,null,null,null,null,null,null,null,null,null,null,null,null,null,null,null,null,null,null,null,null,null,null,null,null,null,null,null,null,null,null,null,null,null,null,null,null,null,null,null,null,null,null,null,null,null,null,null,null,null,null,null,null,null,null,null,null,null,null,null,null,null,null,null,null,null,null,null,null,null,null,null,null,null,null,null,null,null,null,null,null,null,null,null,null,null,null,null,null,null,null,null,null,null,null,null,null,null,null,null,null,null,null,null,null,null,null,null,null,null,null,null,null,null,null,null,null,null,null,null,null,null,null,null,null,null,null,null,null,null,null,null,null,null,null,null,null,null,null,null,null,null,null,null,null,null,null,null,null,null,null,null,null,null,null,null,null,null,null,null,null,null,null,null,null,null,null,null,null,null,null,null,null,null,null,null,null,null,null,null,null,null,null,null,null,null,null,null,null,null,null,null,null,null,null,null,null,null,null,null,null,null,null,null,null,null,null,null,null,null,null,null,null,null,null,null,null,null,null,null,null,null,null,null,null,null,null,null,null,null,null,null,null,null,null,null,null,null,null,null,null,null,null,null,null,null,null,null,null,null,null,null,null,null,null,null,null,null,null,null,null,null,null,null,null,null,null,null,null,null,null,null,null,null,null,null,null,null,null,null,null,null,null,null,null,null,null,null,null,null,null,null,null,null,null,null,null,null,null,null,null,null,null,null,null,null,null,null,null,null,null,null,null,null,null,null,null,null,null,null,null,null,null,null,null,null,null,null,null,null,null,null,null,null,null,null,null,null,null,null,null,null,null,null,null,null,null,null,null,null,null,null,null,null,null,null,null,null,null,null,null,null,null,null,null,null,null,null,null,null,null,null,null,null,null,null,null,null,null,null,null,null,null,null,null,null,null,null,null,null,null,null,null,null,null,null,null,null,null,null,null,null,null,null,null,null,null,null,null,null,null,null,null,null,null,null,null,null,null,null,null,null,null,null,null,null,null,null,null,null,null,null,null,null,null,null,null,null,null,null,null,null,null,null,null,null,null,null,null,null,null,null,null,null,null,null,null,null,null,null,null,null,null,null,null,null,null,null,null,null,null,null,null,null,null,null,null,null,null,null,null,null,null,null,null,null,null,null,null,null,null,null,null,null,null,null,null,null,null,null,null,null,null,null,null,null,null,null,null,null,null,null,null,null,null,null,null,null,null,null,null,null,null,null,null,null,null,null,null,null,null,null,null,null,null,null,null,null,null,null,null,null,null,null,null,null,null,null,null,null,null,null,null,null,null,null,null,null,null,null,null,null,null,null,null,null,null,null,null,null,null,null,null,null,null,null,null,null,null,null,null,null,null,null,null,null,null,null,null,null,null,null,null,null,null,null,null,null,null,null,null,null,null,null,null,null,null,null,null,null,null,null,null,null,null,null,null,null,null,null,null,null,null,null,null,null,null,null,null,null,null,null,null,null,null,null,null,null,null,null,null,null,null,null,null,null,null,null,null,null,null,null,null,null,null,null,null,null,null,null,null,null,null,null,null,null,null,null,null,null,null,null,null,null,null,null,null,null,null,null,null,null,null,null,null,null,null,null,null,null,null,null,null,null,null,null,null,null,null,null,null,null,null,null,null,null,null,null,null,null,null,null,null,null,null,null,null,null,null,null,null,null,null,null,null,null,null,null,null,null,null,null,null,null,null,null,null,null,null,null,null,null,null,null,null,null,null,null,null,null,null,null,null,null,null,null,null,null,null,null,null,null,null,null,null,null,null,null,null,null,null,null,null,null,null,null,null,null,null,null,null,null,null,null,null,null,null,null,null,null,null,null,null,null,null,null,null,null,null,null,null,null,null,null,null,null,null,null,null,null,null,null,null,null,null,null,null,null,null,null,null,null,null,null,null,null,null,null,null,null,null,null,null,null,null,null,null,null,null,null,null,null,null,null,null,null,null,null,null,null,null,null,null,null,null,null,null,null,null,null,null,null,null,null,null,null,null,null,null,null,null,null,null,null,null,null,null,null,null,null,null,null,null,null,null,null,null,null,null,null,null,null,null,null,null,null,null,null,null,null,null,null,null,null,null,null,null,null,null,null,null,null,null,null,null,null,null,null,null,null,null,null,null,null,null,null,null,null,null,null,null,null,null,null,null,null,null,null,null,null,null,null,null,null,null,null,null,null,null,null,null,null,null,null,null,null,null,null,null,null,null,null,null,null,null,null,null,null,null,null,null,null,null,null,null,null,null,null,null,null,null,null,null,null,null,null,null,null,null,null,null,null,null,null,null,null,null,null,null,null,null,null,null,null,null,null,null,null,null,null,null,null,null,null,null,null,null,null,null,null,null,null,null,null,null,null,null,null,null,null,null,null,null,null,null,null,null,null,null,null,null,null,null,null,null,null,null,null,null,null,null,null,null,null,null,null,null,null,null,null,null,null,null,null,null,null,null,null,null,null,null,null,null,null,null,null,null,null,null,null,null,null,null,null,null,null,null,null,null,null,null,null,null,null,null,null,null,null,null,null,null,null,null,null,null,null,null,null,null,null,null,null,null,null,null,null,null,null,null,null,null,null,null,null,null,null,null,null,null,null,null,null,null,null,null,null,null,null,null,null,null,null,null,null,null,null,null,null,null,null,null,null,null,null,null,null,null,null,null,null,null,null,null,null,null,null,null,null,null,null,null,null,null,null,null,null,null,null,null,null,null,null,null,null,null,null,null,null,null,null,null,null,null,null,null,null,null,null,null,null,null,null,null,null,null,null,null,null,null,null,null,null,null,null,null,null,null,null,null,null,null,null,null,null,null,null,null,null,null,null,null,null,null,null,null,null,null,null,null,null,null,null,null,null,null,null,null,null,null,null,null,null,null,null,null,null,null,null,null,null,null,null,null,null,null,null,null,null,null,null,null,null,null,null,null,null,null,null,null,null,null,null,null,null,null,null,null,null,null,null,null,null,null,null,null,null,null,null,null,null,null,null,null,null,null,null,null,null,null,null,null,null,null,null,null,null,null,null,null,null,null,null,null,null,null,null,null,null,null,null,null,null,null,null,null,null,null,null,null,null,null,null,null,null,null,null,null,null,null,null,null,null,null,null,null,null,null,null,null,null,null,null,null,null,null,null,null,null,null,null,null,null,null,null,null,null,null,null,null,null,null,null,null,null,null,null,null,null,null,null,null,null,null,null,null,null,null,null,null,null,null,null,null,null,null,null,null,null,null,null,null,null,null,null,null,null,null,null,null,null,null,null,null,null,null,null,null,null,null,null,null,null,null,null,null,null,null,null,null,null,null,null,null,null,null,null,null,null,null,null,null,null,null,null,null,null,null,null,null,null,null,null,null,null,null,null,null,null,null,null,null,null,null,null,null,null,null,null,null,null,null,null,null,null,null,null,null,null,null,null,null,null,null,null,null,null,null,null,null,null,null,null,null,null,null,null,null,null,null,null,null,null,null,null,null,null,null,null,null,null,null,null,null,null,null,null,null,null,null,null,null,null,null,null,null,null,null,null,null,null,null,null,null,null,null,null,null,null,null,null,null,null,null,null,null,null,null,null,null,null,null,null,null,null,null,null,null,null,null,null,null,null,null,null,null,null,null,null,null,null,null,null,null,null,null,null,null,null,null,null,null,null,null,null,null,null,null,null,null,null,null,null,null,null,null,null,null,null,null,null,null,null,null,null,null,null,null,null,null,null,null,null,null,null,null,null,null,null,null,null,null,null,null,null,null,null,null,null,null,null,null,null,null,null,null,null,null,null,null,null,null,null,null,null,null,null,null,null,null,null,null,null,null,null,null,null,null,null,null,null,null,null,null,null,null,null,null,null,null,null,null,null,null,null,null,null,null,null,null,null,null,null,null,null,null,null,null,null,null,null,null,null,null,null,null,null,null,null,null,null,null,null,null,null,null,null,null,null,null,null,null,null,null,null,null,null,null,null,null,null,null,null,null,null,null,null,null,null,null,null,null,null,null,null,null,null,null,null,null,null,null,null,null,null,null,null,null,null,null,null,null,null,null,null,null,null,null,null,null,null,null,null,null,null,null,null,null,null,null,null,null,null,null,null,null,null,null,null,null,null,null,null,null,null,null,null,null,null,null,null,null,null,null,null,null,null,null,null,null,null,null,null,null,null,null,null,null,null,null,null,null,null,null,null,null,null,null,null,null,null,null,null,null,null,null,null,null,null,null,null,null,null,null,null,null,null,null,null,null,null,null,null,null,null,null,null,null,null,null,null,null,null,null,null,null,null,null,null,null,null,null,null,null,null,null,null,null,null,null,null,null,null,null,null,null,null,null,null,null,null,null,null,null,null,null,null,null,null,null,null,null,null,null,null,null,null,null,null,null,null,null,null,null,null,null,null,null,null,null,null,null,null,null,null,null,null,null,null,null,null,null,null,null,null,null,null,null,null,null,null,null,null,null,null,null,null,null,null,null,null,null,null,null,null,null,null,null,null,null,null,null,null,null,null,null,null,null,null,null,null,null,null,null,null,null,null,null,null,null,null,null,null,null,null,null,null,null,null,null,null,null,null,null,null,null,null,null,null,null,null,null,null,null,null,null,null,null,null,null,null,null,null,null,null,null,null,null,null,null,null,null,null,null,null,null,null,null,null,null,null,null,null,null,null,null,null,null,null,null,null,null,null,null,null,null,null,null,null,null,null,null,null,null,null,null,null,null,null,null,null,null,null,null,null,null,null,null,null,null,null,null,null,null,null,null,null,null,null,null,null,null,null,null,null,null,null,null,null,null,null,null,null,null,null,null,null,null,null,null,null,null,null,null,null,null,null,null,null,null,null,null,null,null,null,null,null,null,null,null,null,null,null,null,null,null,null,null,null,null,null,null,null,null,null,null,null,null,null,null,null,null,null,null,null,null,null,null,null,null,null,null,null,null,null,null,null,null,null,null,null,null,null,null,null,null,null,null,null,null,null,null,null,null,null,null,null,null,null,null,null,null,null,null,null,null,null,null,null,null,null,null,null,null,null,null,null,null,null,null,null,null,null,null,null,null,null,null,null,null,null,null,null,null,null,null,null,null,null,null,null,null,null,null,null,null,null,null,null,null,null,null,null,null,null,null,null,null,null,null,null,null,null,null,null,null,null,null,null,null,null,null,null,null,null,null,null,null,null,null,null,null,null,null,null,null,null,null,null,null,null,null,null,null,null,null,null,null,null,null,null,null,null,null,null,null,null,null,null,null,null,null,null,null,null,null,null,null,null,null,null,null,null,null,null,null,null,null,null,null,null,null,null,null,null,null,null,null,null,null,null,null,null,null,null,null,null,null,null,null,null,null,null,null,null,null,null,null,null,null,null,null,null,null,null,null,null,null,null,null,null,null,null,null,null,null,null,null,null,null,null,null,null,null,null,null,null,null,null,null,null,null,null,null,null,null,null,null,null,null,null,null,null,null,null,null,null,null,null,null,null,null,null,null,null,null,null,null,null,null,null,null,null,null,null,null,null,null,null,null,null,null,null,null,null,null,null,null,null,null,null,null,null,null,null,null,null,null,null,null,null,null,null,null,null,null,null,null,null,null,null,null,null,null,null,null,null,null,null,null,null,null,null,null,null,null,null,null,null,null,null,null,null,null,null,null,null,null,null,null,null,null,null,null,null,null,null,null,null,null,null,null,null,null,null,null,null,null,null,null,null,null,null,null,null,null,null,null,null,null,null,null,null,null,null,null,null,null,null,null,null,null,null,null,null,null,null,null,null,null,null,null,null,null,null,null,null,null,null,null,null,null,null,null,null,null,null,null,null,null,null,null,null,null,null,null,null,null,null,null,null,null,null,null,null,null,null,null,null,null,null,null,null,null,null,null,null,null,null,null,null,null,null,null,null,null,null,null,null,null,null,null,null,null,null,null,null,null,null,null,null,null,null,null,null,null,null,null,null,null,null,null,null,null,null,null,null,null,null,null,null,null,null,null,null,null,null,null,null,null,null,null,null,null,null,null,null,null,null,null,null,null,null,null,null,null,null,null,null,null,null,null,null,null,null,null,null,null,null,null,null,null,null,null,null,null,null,null,null,null,null,null,null,null,null,null,null,null,null,null,null,null,null,null,null,null,null,null,null,null,null,null,null,null,null,null,null,null,null,null,null,null,null,null,null,null,null,null,null,null,null,null,null,null,null,null,null,null,null,null,null,null,null,null,null,null,null,null,null,null,null,null,null,null,null,null,null,null,null,null,null,null,null,null,null,null,null,null,null,null,null,null,null,null,null,null,null,null,null,null,null,null,null,null,null,null,null,null,null,null,null,null,null,null,null,null,null,null,null,null,null,null,null,null,null,null,null,null,null,null,null,null,null,null,null,null,null,null,null,null,null,null,null,null,null,null,null,null,null,null,null,null,null,null,null,null,null,null,null,null,null,null,null,null,null,null,null,null,null,null,null,null,null,null,null,null,null,null,null,null,null,null,null,null,null,null,null,null,null,null,null,null,null,null,null,null,null,null,null,null,null,null,null,null,null,null,null,null,null,null,null,null,null,null,null,null,null,null,null,null,null,null,null,null,null,null,null,null,null,null,null,null,null,null,null,null,null,null,null,null,null,null,null,null,null,null,null,null,null,null,null,null,null,null,null,null,null,null,null,null,null,null,null,null,null,null,null,null,null,null,null,null,null,null,null,null,null,null,null,null,null,null,null,null,null,null,null,null,null,null,null,null,null,null,null,null,null,null,null,null,null,null,null,null,null,null,null,null,null,null,null,null,null,null,null,null,null,null,null,null,null,null,null,null,null,null,null,null,null,null,null,null,null,null,null,null,null,null,null,null,null,null,null,null,null,null,null,null,null,null,null,null,null,null,null,null,null,null,null,null,null,null,null,null,null,null,null,null,null,null,null,null,null,null,null,null,null,null,null,null,null,null,null,null,null,null,null,null,null,null,null,null,null,null,null,null,null,null,null,null,null,null,null,null,null,null,null,null,null,null,null,null,null,null,null,null,null,null,null,null,null,null,null,null,null,null,null,null,null,null,null,null,null,null,null,null,null,null,null,null,null,null,null,null,null,null,null,null,null,null,null,null,null,null,null,null,null,null,null,null,null,null,null,null,null,null,null,null,null,null,null,null,null,null,null,null,null,null,null,null,null,null,null,null,null,null,null,null,null,null,null,null,null,null,null,null,null,null,null,null,null,null,null,null,null,null,null,null,null,null,null,null,null,null,null,null,null,null,null,null,null,null,null,null,null,null,null,null,null,null,null,null,null,null,null,null,null,null,null,null,null,null,null,null,null,null,null,null,null,null,null,null,null,null,null,null,null,null,null,null,null,null,null,null,null,null,null,null,null,null,null,null,null,null,null,null,null,null,null,null,null,null,null,null,null,null,null,null,null,null,null,null,null,null,null,null,null,null,null,null,null,null,null,null,null,null,null,null,null,null,null,null,null,null,null,null,null,null,null,null,null,null,null,null,null,null,null,null,null,null,null,null,null,null,null,null,null,null,null,null,null,null,null,null,null,null,null,null,null,null,null,null,null,null,null,null,null,null,null,null,null,null,null,null,null,null,null,null,null,null,null,null,null,null,null,null,null,null,null,null,null,null,null,null,null,null,null,null,null,null,null,null,null,null,null,null,null,null,null,null,null,null,null,null,null,null,null,null,null,null,null,null,null,null,null,null,null,null,null,null,null,null,null,null,null,null,null,null,null,null,null,null,null,null,null,null,null,null,null,null,null,null,null,null,null,null,null,null,null,null,null,null,null,null,null,null,null,null,null,null,null,null,null,null,null,null,null,null,null,null,null,null,null,null,null,null,null,null,null,null,null,null,null,null,null,null,null,null,null,null,null,null,null,null,null,null,null,null,null,null,null,null,null,null,null,null,null,null,null,null,null,null,null,null,null,null,null,null,null,null,null,null,null,null,null,null,null,null,null,null,null,null,null,null,null,null,null,null,null,null,null,null,null,null,null,null,null,null,null,null,null,null,null,null,null,null,null,null,null,null,null,null,null,null,null,null,null,null,null,null,null,null,null,null,null,null,null,null,null,null,null,null,null,null,null,null,null,null,null,null,null,null,null,null,null,null,null,null,null,null,null,null,null,null,null,null,null,null,null,null,null,null,null,null,null,null,null,null,null,null,null,null,null,null,null,null,null,null,null,null,null,null,null,null,null,null,null,null,null,null,null,null,null,null,null,null,null,null,null,null,null,null,null,null,null,null,null,null,null,null,null,null,null,null,null,null,null,null,null,null,null,null,null,null,null,null,null,null,null,null,null,null,null,null,null,null,null,null,null,null,null,null,null,null,null,null,null,null,null,null,null,null,null,null,null,null,null,null,null,null,null,null,null,null,null,null,null,null,null,null,null,null,null,null,null,null,null,null,null,null,null,null,null,null,null,null,null,null,null,null,null,null,null,null,null,null,null,null,null,null,null,null,null,null,null,null,null,null,null,null,null,null,null,null,null,null,null,null,null,null,null,null,null,null,null,null,null,null,null,null,null,null,null,null,null,null,null,null,null,null,null,null,null,null,null,null,null,null,null,null,null,null,null,null,null,null,null,null,null,null,null,null,null,null,null,null,null,null,null,null,null,null,null,null,null,null,null,null,null,null,null,null,null,null,null,null,null,null,null,null,null,null,null,null,null,null,null,null,null,null,null,null,null,null,null,null,null,null,null,null,null,null,null,null,null,null,null,null,null,null,null,null,null,null,null,null,null,null,null,null,null,null,null,null,null,null,null,null,null,null,null,null,null,null,null,null,null,null,null,null,null,null,null,null,null,null,null,null,null,null,null,null,null,null,null,null,null,null,null,null,null,null,null,null,null,null,null,null,null,null,null,null,null,null,null,null,null,null,null,null,null,null,null,null,null,null,null,null,null,null,null,null,null,null,null,null,null,null,null,null,null,null,null,null,null,null,null,null,null,null,null,null,null,null,null,null,null,null,null,null,null,null,null,null,null,null,null,null,null,null,null,null,null,null,null,null,null,null,null,null,null,null,null,null,null,null,null,null,null,null,null,null,null,null,null,null,null,null,null,null,null,null,null,null,null,null,null,null,null,null,null,null,null,null,null,null,null,null,null,null,null,null,null,null,null,null,null,null,null,null,null,null,null,null,null,null,null,null,null,null,null,null,null,null,null,null,null,null,null,null,null,null,null,null,null,null,null,null,null,null,null,null,null,null,null,null,null,null,null,null,null,null,null,null,null,null,null,null,null,null,null,null,null,null,null,null,null,null,null,null,null,null,null,null,null,null,null,null,null,null,null,null,null,null,null,null,null,null,null,null,null,null,null,null,null,null,null,null,null,null,null,null,null,null,null,null,null,null,null,null,null,null,null,null,null,null,null,null,null,null,null,null,null,null,null,null,null,null,null,null,null,null,null,null,null,null,null,null,null,null,null,null,null,null,null,null,null,null,null,null,null,null,null,null,null,null,null,null,null,null,null,null,null,null,null,null,null,null,null,null,null,null,null,null,null,null,null,null,null,null,null,null,null,null,null,null,null,null,null,null,null,null,null,null,null,null,null,null,null,null,null,null,null,null,null,null,null,null,null,null,null,null,null,null,null,null,null,null,null,null,null,null,null,null,null,null,null,null,null,null,null,null,null,null,null,null,null,null,null,null,null,null,null,null,null,null,null,null,null,null,null,null,null,null,null,null,null,null,null,null,null,null,null,null,null,null,null,null,null,null,null,null,null,null,null,null,null,null,null,null,null,null,null,null,null,null,null,null,null,null,null,null,null,null,null,null,null,null,null,null,null,null,null,null,null,null,null,null,null,null,null,null,null,null,null,null,null,null,null,null,null,null,null,null,null,null,null,null,null,null,null,null,null,null,null,null,null,null,null,null,null,null,null,null,null,null,null,null,null,null,null,null,null,null,null,null,null,null,null,null,null,null,null,null,null,null,null,null,null,null,null,null,null,null,null,null,null,null,null,null,null,null,null,null,null,null,null,null,null,null,null,null,null,null,null,null,null,null,null,null,null,null,null,null,null,null,null,null,null,null,null,null,null,null,null,null,null,null,null,null,null,null,null,null,null,null,null,null,null,null,null,null,null,null,null,null,null,null,null,null,null,null,null,null,null,null,null,null,null,null,null,null,null,null,null,null,null,null,null,null,null,null,null,null,null,null,null,null,null,null,null,null,null,null,null,null,null,null,null,null,null,null,null,null,null,null,null,null,null,null,null,null,null,null,null,null,null,null,null,null,null,null,null,null,null,null,null,null,null,null,null,null,null,null,null,null,null,null,null,null,null,null,null,null,null,null,null,null,null,null,null,null,null,null,null,null,null,null,null,null,null,null,null,null,null,null,null,null,null,null,null,null,null,null,null,null,null,null,null,null,null,null,null,null,null,null,null,null,null,null,null,null,null,null,null,null,null,null,null,null,null,null,null,null,null,null,null,null,null,null,null,null,null,null,null,null,null,null,null,null,null,null,null,null,null,null,null,null,null,null,null,null,null,null,null,null,null,null,null,null,null,null,null,null,null,null,null,null,null,null,null,null,null,null,null,null,null,null,null,null,null,null,null,null,null,null,null,null,null,null,null,null,null,null,null,null,null,null,null,null,null,null,null,null,null,null,null,null,null,null,null,null,null,null,null,null,null,null,null,null,null,null,null,null,null,null,null,null,null,null,null,null,null,null,null,null,null,null,null,null,null,null,null,null,null,null,null,null,null,null,null,null,null,null,null,null,null,null,null,null,null,null,null,null,null,null,null,null,null,null,null,null,null,null,null,null,null,null,null,null,null,null,null,null,null,null,null,null,null,null,null,null,null,null,null,null,null,null,null,null,null,null,null,null,null,null,null,null,null,null,null,null,null,null,null,null,null,null,null,null,null,null,null,null,null,null,null,null,null,null,null,null,null,null,null,null,null,null,null,null,null,null,null,null,null,null,null,null,null,null,null,null,null,null,null,null,null,null,null,null,null,null,null,null,null,null,null,null,null,null,null,null,null,null,null,null,null,null,null,null,null,null,null,null,null,null,null,null,null,null,null,null,null,null,null,null,null,null,null,null,null,null,null,null,null,null,null,null,null,null,null,null,null,null,null,null,null,null,null,null,null,null,null,null,null,null,null,null,null,null,null,null,null,null,null,null,null,null,null,null,null,null,null,null,null,null,null,null,null,null,null,null,null,null,null,null,null,null,null,null,null,null,null,null,null,null,null,null,null,null,null,null,null,null,null,null,null,null,null,null,null,null,null,null,null,null,null,null,null,null,null,null,null,null,null,null,null,null,null,null,null,null,null,null,null,null,null,null,null,null,null,null,null,null,null,null,null,null,null,null,null,null,null,null,null,null,null,null,null,null,null,null,null,null,null,null,null,null,null,null,null,null,null,null,null,null,null,null,null,null,null,null,null,null,null,null,null,null,null,null,null,null,null,null,null,null,null,null,null,null,null,null,null,null,null,null,null,null,null,null,null,null,null,null,null,null,null,null,null,null,null,null,null,null,null,null,null,null,null,null,null,null,null,null,null,null,null,null,null,null,null,null,null,null,null,null,null,null,null,null,null,null,null,null,null,null,null,null,null,null,null,null,null,null,null,null,null,null,null,null,null,null,null,null,null,null,null,null,null,null,null,null,null,null,null,null,null,null,null,null,null,null,null,null,null,null,null,null,null,null,null,null,null,null,null,null,null,null,null,null,null,null,null,null,null,null,null,null,null,null,null,null,null,null,null,null,null,null,null,null,null,null,null,null,null,null,null,null,null,null,null,null,null,null,null,null,null,null,null,null,null,null,null,null,null,null,null,null,null,null,null,null,null,null,null,null,null,null,null,null,null,null,null,null,null,null,null,null,null,null,null,null,null,null,null,null,null,null,null,null,null,null,null,null,null,null,null,null,null,null,null,null,null,null,null,null,null,null,null,null,null,null,null,null,null,null,null,null,null,null,null,null,null,null,null,null,null,null,null,null,null,null,null,null,null,null,null,null,null,null,null,null,null,null,null,null,null,null,null,null,null,null,null,null,null,null,null,null,null,null,null,null,null,null,null,null,null,null,null,null,null,null,null,null,null,null,null,null,null,null,null,null,null,null,null,null,null,null,null,null,null,null,null,null,null,null,null,null,null,null,null,null,null,null,null,null,null,null,null,null,null,null,null,null,null,null,null,null,null,null,null,null,null,null,null,null,null,null,null,null,null,null,null,null,null,null,null,null,null,null,null,null,null,null,null,null,null,null,null,null,null,null,null,null,null,null,null,null,null,null,null,null,null,null,null,null,null,null,null,null,null,null,null,null,null,null,null,null,null,null,null,null,null,null,null,null,null,null,null,null,null,null,null,null,null,null,null,null,null,null,null,null,null,null,null,null,null,null,null,null,null,null,null,null,null,null,null,null,null,null,null,null,null,null,null,null,null,null,null,null,null,null,null,null,null,null,null,null,null,null,null,null,null,null,null,null,null,null,null,null,null,null,null,null,null,null,null,null,null,null,null,null,null,null,null,null,null,null,null,null,null,null,null,null,null,null,null,null,null,null,null,null,null,null,null,null,null,null,null,null,null,null,null,null,null,null,null,null,null,null,null,null,null,null,null,null,null,null,null,null,null,null,null,null,null,null,null,null,null,null,null,null,null,null,null,null,null,null,null,null,null,null,null,null,null,null,null,null,null,null,null,null,null,null,null,null,null,null,null,null,null,null,null,null,null,null,null,null,null,null,null,null,null,null,null,null,null,null,null,null,null,null,null,null,null,null,null,null,null,null,null,null,null,null,null,null,null,null,null,null,null,null,null,null,null,null,null,null,null,null,null,null,null,null,null,null,null,null,null,null,null,null,null,null,null,null,null,null,null,null,null,null,null,null,null,null,null,null,null,null,null,null,null,null,null,null,null,null,null,null,null,null,null,null,null,null,null,null,null,null,null,null,null,null,null,null,null,null,null,null,null,null,null,null,null,null,null,null,null,null,null,null,null,null,null,null,null,null,null,null,null,null,null,null,null,null,null,null,null,null,null,null,null,null,null,null,null,null,null,null,null,null,null,null,null,null,null,null,null,null,null,null,null,null,null,null,null,null,null,null,null,null,null,null,null,null,null,null,null,null,null,null,null,null,null,null,null,null,null,null,null,null,null,null,null,null,null,null,null,null,null,null,null,null,null,null,null,null,null,null,null,null,null,null,null,null,null,null,null,null,null,null,null,null,null,null,null,null,null,null,null,null,null,null,null,null,null,null,null,null,null,null,null,null,null,null,null,null,null,null,null,null,null,null,null,null,null,null,null,null,null,null,null,null,null,null,null,null,null,null,null,null,null,null,null,null,null,null,null,null,null,null,null,null,null,null,null,null,null,null,null,null,null,null,null,null,null,null,null,null,null,null,null,null,null,null,null,null,null,null,null,null,null,null,null,null,null,null,null,null,null,null,null,null,null,null,null,null,null,null,null,null,null,null,null,null,null,null,null,null,null,null,null,null,null,null,null,null,null,null,null,null,null,null,null,null,null,null,null,null,null,null,null,null,null,null,null,null,null,null,null,null,null,null,null,null,null,null,null,null,null,null,null,null,null,null,null,null,null,null,null,null,null,null,null,null,null,null,null,null,null,null,null,null,null,null,null,null,null,null,null,null,null,null,null,null,null,null,null,null,null,null,null,null,null,null,null,null,null,null,null,null,null,null,null,null,null,null,null,null,null,null,null,null,null,null,null,null,null,null,null,null,null,null,null,null,null,null,null,null,null,null,null,null,null,null,null,null,null,null,null,null,null,null,null,null,null,null,null,null,null,null,null,null,null,null,null,null,null,null,null,null,null,null,null,null,null,null,null,null,null,null,null,null,null,null,null,null,null,null,null,null,null,null,null,null,null,null,null,null,null,null,null,null,null,null,null,null,null,null,null,null,null,null,null,null,null,null,null,null,null,null,null,null,null,null,null,null,null,null,null,null,null,null,null,null,null,null,null,null,null,null,null,null,null,null,null,null,null,null,null,null,null,null,null,null,null,null,null,null,null,null,null,null,null,null,null,null,null,null,null,null,null,null,null,null,null,null,null,null,null,null,null,null,null,null,null,null,null,null,null,null,null,null,null,null,null,null,null,null,null,null,null,null,null,null,null,null,null,null,null,null,null,null,null,null,null,null,null,null,null,null,null,null,null,null,null,null,null,null,null,null,null,null,null,null,null,null,null,null,null,null,null,null,null,null,null,null,null,null,null,null,null,null,null,null,null,null,null,null,null,null,null,null,null,null,null,null,null,null,null,null,null,null,null,null,null,null,null,null,null,null,null,null,null,null,null,null,null,null,null,null,null,null,null,null,null,null,null,null,null,null,null,null,null,null,null,null,null,null,null,null,null,null,null,null,null,null,null,null,null,null,null,null,null,null,null,null,null,null,null,null,null,null,null,null,null,null,null,null,null,null,null,null,null,null,null,null,null,null,null,null,null,null,null,null,null,null,null,null,null,null,null,null,null,null,null,null,null,null,null,null,null,null,null,null,null,null,null,null,null,null,null,null,null,null,null,null,null,null,null,null,null,null,null,null,null,null,null,null,null,null,null,null,null,null,null,null,null,null,null,null,null,null,null,null,null,null,null,null,null,null,null,null,null,null,null,null,null,null,null,null,null,null,null,null,null,null,null,null,null,null,null,null,null,null,null,null,null,null,null,null,null,null,null,null,null,null,null,null,null,null,null,null,null,null,null,null,null,null,null,null,null,null,null,null,null,null,null,null,null,null,null,null,null,null,null,null,null,null,null,null,null,null,null,null,null,null,null,null,null,null,null,null,null,null,null,null,null,null,null,null,null,null,null,null,null,null,null,null,null,null,null,null,null,null,null,null,null,null,null,null,null,null,null,null,null,null,null,null,null,null,null,null,null,null,null,null,null,null,null,null,null,null,null,null,null,null,null,null,null,null,null,null,null,null,null,null,null,null,null,null,null,null,null,null,null,null,null,null,null,null,null,null,null,null,null,null,null,null,null,null,null,null,null,null,null,null,null,null,null,null,null,null,null,null,null,null,null,null,null,null,null,null,null,null,null,null,null,null,null,null,null,null,null,null,null,null,null,null,null,null,null,null,null,null,null,null,null,null,null,null,null,null,null,null,null,null,null,null,null,null,null,null,null,null,null,null,null,null,null,null,null,null,null,null,null,null,null,null,null,null,null,null,null,null,null,null,null,null,null,null,null,null,null,null,null,null,null,null,null,null,null,null,null,null,null,null,null,null,null,null,null,null,null,null,null,null,null,null,null,null,null,null,null,null,null,null,null,null,null,null,null,null,null,null,null,null,null,null,null,null,null,null,null,null,null,null,null,null,null,null,null,null,null,null,null,null,null,null,null,null,null,null,null,null,null,null,null,null,null,null,null,null,null,null,null,null,null,null,null,null,null,null,null,null,null,null,null,null,null,null,null,null,null,null,null,null,null,null,null,null,null,null,null,null,null,null,null,null,null,null,null,null,null,null,null,null,null,null,null,null,null,null,null,null,null,null,null,null,null,null,null,null,null,null,null,null,null,null,null,null,null,null,null,null,null,null,null,null,null,null,null,null,null,null,null,null,null,null,null,null,null,null,null,null,null,null,null,null,null,null,null,null,null,null,null,null,null,null,null,null,null,null,null,null,null,null,null,null,null,null,null,null,null,null,null,null,null,null,null,null,null,null,null,null,null,null,null,null,null,null,null,null,null,null,null,null,null,null,null,null,null,null,null,null,null,null,null,null,null,null,null,null,null,null,null,null,null,null,null,null,null,null,null,null,null,null,null,null,null,null,null,null,null,null,null,null,null,null,null,null,null,null,null,null,null,null,null,null,null,null,null,null,null,null,null,null,null,null,null,null,null,null,null,null,null,null,null,null,null,null,null,null,null,null,null,null,null,null,null,null,null,null,null,null,null,null,null,null,null,null,null,null,null,null,null,null,null,null,null,null,null,null,null,null,null,null,null,null,null,null,null,null,null,null,null,null,null,null,null,null,null,null,null,null,null,null,null,null,null,null,null,null,null,null,null,null,null,null,null,null,null,null,null,null,null,null,null,null,null,null,null,null,null,null,null,null,null,null,null,null,null,null,null,null,null,null,null,null,null,null,null,null,null,null,null,null,null,null,null,null,null,null,null,null,null,null,null,null,null,null,null,null,null,null,null,null,null,null,null,null,null,null,null,null,null,null,null,null,null,null,null,null,null,null,null,null,null,null,null,null,null,null,null,null,null,null,null,null,null,null,null,null,null,null,null,null,null,null,null,null,null,null,null,null,null,null,null,null,null,null,null,null,null,null,null,null,null,null,null,null,null,null,null,null,null,null,null,null,null,null,null,null,null,null,null,null,null,null,null,null,null,null,null,null,null,null,null,null,null,null,null,null,null,null,null,null,null,null,null,null,null,null,null,null,null,null,null,null,null,null,null,null,null,null,null,null,null,null,null,null,null,null,null,null,null,null,null,null,null,null,null,null,null,null,null,null,null,null,null,null,null,null,null,null,null,null,null,null,null,null,null,null,null,null,null,null,null,null,null,null,null,null,null,null,null,null,null,null,null,null,null,null,null,null,null,null,null,null,null,null,null,null,null,null,null,null,null,null,null,null,null,null,null,null,null,null,null,null,null,null,null,null,null,null,null,null,null,null,null,null,null,null,null,null,null,null,null,null,null,null,null,null,null,null,null,null,null,null,null,null,null,null,null,null,null,null,null,null,null,null,null,null,null,null,null,null,null,null,null,null,null,null,null,null,null,null,null,null,null,null,null,null,null,null,null,null,null,null,null,null,null,null,null,null,null,null,null,null,null,null,null,null,null,null,null,null,null,null,null,null,null,null,null,null,null,null,null,null,null,null,null,null,null,null,null,null,null,null,null,null,null,null,null,null,null,null,null,null,null,null,null,null,null,null,null,null,null,null,null,null,null,null,null,null,null,null,null,null,null,null,null,null,null,null,null,null,null,null,null,null,null,null,null,null,null,null,null,null,null,null,null,null,null,null,null,null,null,null,null,null,null,null,null,null,null,null,null,null,null,null,null,null,null,null,null,null,null,null,null,null,null,null,null,null,null,null,null,null,null,null,null,null,null,null,null,null,null,null,null,null,null,null,null,null,null,null,null,null,null,null,null,null,null,null,null,null,null,null,null,null,null,null,null,null,null,null,null,null,null,null,null,null,null,null,null,null,null,null,null,null,null,null,null,null,null,null,null,null,null,null,null,null,null,null,null,null,null,null,null,null,null,null,null,null,null,null,null,null,null,null,null,null,null,null,null,null,null,null,null,null,null,null,null,null,null,null,null,null,null,null,null,null,null,null,null,null,null,null,null,null,null,null,null,null,null,null,null,null,null,null,null,null,null,null,null,null,null,null,null,null,null,null,null,null,null,null,null,null,null,null,null,null,null,null,null,null,null,null,null,null,null,null,null,null,null,null,null,null,null,null,null,null,null,null,null,null,null,null,null,null,null,null,null,null,null,null,null,null,null,null,null,null,null,null,null,null,null,null,null,null,null,null,null,null,null,null,null,null,null,null,null,null,null,null,null,null,null,null,null,null,null,null,null,null,null,null,null,null,null,null,null,null,null,null,null,null,null,null,null,null,null,null,null,null,null,null,null,null,null,null,null,null,null,null,null,null,null,null,null,null,null,null,null,null,null,null,null,null,null,null,null,null,null,null,null,null,null,null,null,null,null,null,null,null,null,null,null,null,null,null,null,null,null,null,null,null,null,null,null,null,null,null,null,null,null,null,null,null,null,null,null,null,null,null,null,null,null,null,null,null,null,null,null,null,null,null,null,null,null,null,null,null,null,null,null,null,null,null,null,null,null,null,null,null,null,null,null,null,null,null,null,null,null,null,null,null,null,null,null,null,null,null,null,null,null,null,null,null,null,null,null,null,null,null,null,null,null,null,null,null,null,null,null,null,null,null,null,null,null,null,null,null,null,null,null,null,null,null,null,null,null,null,null,null,null,null,null,null,null,null,null,null,null,null,null,null,null,null,null,null,null,null,null,null,null,null,null,null,null,null,null,null,null,null,null,null,null,null,null,null,null,null,null,null,null,null,null,null,null,null,null,null,null,null,null,null,null,null,null,null,null,null,null,null,null,null,null,null,null,null,null,null,null,null,null,null,null,null,null,null,null,null,null,null,null,null,null,null,null,null,null,null,null,null,null,null,null,null,null,null,null,null,null,null,null,null,null,null,null,null,null,null,null,null,null,null,null,null,null,null,null,null,null,null,null,null,null,null,null,null,null,null,null,null,null,null,null,null,null,null,null,null,null,null,null,null,null,null,null,null,null,null,null,null,null,null,null,null,null,null,null,null,null,null,null,null,null,null,null,null,null,null,null,null,null,null,null,null,null,null,null,null,null,null,null,null,null,null,null,null,null,null,null,null,null,null,null,null,null,null,null,null,null,null,null,null,null,null,null,null,null,null,null,null,null,null,null,null,null,null,null,null,null,null,null,null,null,null,null,null,null,null,null,null,null,null,null,null,null,null,null,null,null,null,null,null,null,null,null,null,null,null,null,null,null,null,null,null,null,null,null,null,null,null,null,null,null,null,null,null,null,null,null,null,null,null,null,null,null,null,null,null,null,null,null,null,null,null,null,null,null,null,null,null,null,null,null,null,null,null,null,null,null,null,null,null,null,null,null,null,null,null,null,null,null,null,null,null,null,null,null,null,null,null,null,null,null,null,null,null,null,null,null,null,null,null,null,null,null,null,null,null,null,null,null,null,null,null,null,null,null,null,null,null,null,null,null,null,null,null,null,null,null,null,null,null,null,null,null,null,null,null,null,null,null,null,null,null,null,null,null,null,null,null,null,null,null,null,null,null,null,null,null,null,null,null,null,null,null,null,null,null,null,null,null,null,null,null,null,null,null,null,null,null,null,null,null,null,null,null,null,null,null,null,null,null,null,null,null,null,null,null,null,null,null,null,null,null,null,null,null,null,null,null,null,null,null,null,null,null,null,null,null,null,null,null,null,null,null,null,null,null,null,null,null,null,null,null,null,null,null,null,null,null,null,null,null,null,null,null,null,null,null,null,null,null,null,null,null,null,null,null,null,null,null,null,null,null,null,null,null,null,null,null,null,null,null,null,null,null,null,null,null,null,null,null,null,null,null,null,null,null,null,null,null,null,null,null,null,null,null,null,null,null,null,null,null,null,null,null,null,null,null,null,null,null,null,null,null,null,null,null,null,null,null,null,null,null,null,null,null,null,null,null,null,null,null,null,null,null,null,null,null,null,null,null,null,null,null,null,null,null,null,null,null,null,null,null,null,null,null,null,null,null,null,null,null,null,null,null,null,null,null,null,null,null,null,null,null,null,null,null,null,null,null,null,null,null,null,null,null,null,null,null,null,null,null,null,null,null,null,null,null,null,null,null,null,null,null,null,null,null,null,null,null,null,null,null,null,null,null,null,null,null,null,null,null,null,null,null,null,null,null,null,null,null,null,null,null,null,null,null,null,null,null,null,null,null,null,null,null,null,null,null,null,null,null,null,null,null,null,null,null,null,null,null,null,null,null,null,null,null,null,null,null,null,null,null,null,null,null,null,null,null,null,null,null,null,null,null,null,null,null,null,null,null,null,null,null,null,null,null,null,null,null,null,null,null,null,null,null,null,null,null,null,null,null,null,null,null,null,null,null,null,null,null,null,null,null,null,null,null,null,null,null,null,null,null,null,"y"]

{"sheet":"Order Ackn-Rej-Exit_DD","index":14,"n_rows":53,"n_cols":7,"rows_kept":53,"cut":false,"hidden":true,"merged":[]}
["Field Name","Start","End","Length","Type","Opt/Req","Default2Zero"]
["Record Length",1,4,4,"N","R","NO"]
["Originator Type",5,5,1,"A/N","R"]
["Firm Number",6,13,8,"A/N","R"]
["Fund Number",14,21,8,"A/N","R"]
["Record Type",22,24,3,"A/N","R"]
["NSCC Security Issue Number",25,40,16,"A/N","OC"]
["NSCC Sidepocket ID",41,43,3,"A/N","O"]
["Share Class",44,51,8,"A/N","O"]
["Security Identifier",52,52,1,"A/N","O"]
["Security Issue ID",53,64,12,"A/N","O"]
["Control Number",65,84,20,"A/N","R"]
["Re-acknowledgement Indicator",85,85,1,"A/N","OC"]
["Submission Date",86,93,8,"N","R","NO"]
["Trade Date/Dealing Date – (Business Date)",94,101,8,"N","OC","NO"]
["Registration Indicator",102,102,1,"A/N","OC"]
["NSCC Reject Indicator",103,103,1,"A/N","R"]
["NSCC Reject Reason Code 1",104,107,4,"A/N","R"]
["NSCC Reject Reason Code 2",108,111,4,"A/N","R"]
["NSCC Reject Reason Code 3",112,115,4,"A/N","R"]
["NSCC Reject Reason Code 4",116,119,4,"A/N","R"]
["Transaction Code",120,121,2,"A/N","S"]
["Settlement Date",122,129,8,"N","O","NO"]
["Settlement Indicator",130,130,1,"A/N","S"]
["Settlement Date Override Indicator",131,131,1,"A/N","S"]
["Filler",132,132,1,"A/N","R"]
["Money Amount",133,148,16,"N","S","NO"]
["Reporting Currency",149,151,3,"A/N","S"]
["Settlement Currency",152,154,3,"A/N","S"]
["Share Quantity",155,168,14,"N","S","NO"]
["Net/Gross Indicator",169,169,1,"A/N","S"]
["Firm Account Number",170,189,20,"A/N","S"]
["Fund Account Number",190,209,20,"A/N","S"]
["Contract Note Date",210,217,8,"N","S","NO"]
["Series Roll Up Date",218,225,8,"N","S","NO"]
["Trade Date/Dealing Date – (Calendar Date)",226,233,8,"N","S","NO"]
["Filler",234,282,49,"A/N","R"]
["Original Control Number",283,302,20,"A/N","S"]
["Filler",303,746,444,"A/N","R"]
["Series NSCC Security Issue Number",747,762,16,"A/N","OC"]
["Fund/Firm Reject-Exit Indicator",763,763,1,"A/N","OC"]
["Fund/Firm Reject-Exit Reason Code 1",764,767,4,"A/N","OC"]
["Fund/Firm Reject-Exit Reason Code 2",768,771,4,"A/N","O"]
["Fund/Firm Reject-Exit Reason Code 3",772,775,4,"A/N","O"]
["Fund/Firm Reject-Exit Reason Code 4",776,779,4,"A/N","O"]
["Filler",780,780,1,"A/N","R"]
["Payment Status Indicator",781,781,1,"A/N","OC"]
["Equalization Amount",782,797,16,"N","O"]
["Equalization Percentage",798,803,6,"N","O"]
["Equalization Debit/Credit Indicator",804,804,1,"A/N","OC"]
["Erisa Eligible Indicator",805,805,1,"A/N","O"]
["Erisa Percentage",806,811,6,"N","O","NO"]
["Erisa Pre-certified Indicator",812,812,1,"A/N","O"]

{"sheet":"OrderCorrConf","index":15,"n_rows":3,"n_cols":116,"rows_kept":3,"cut":false,"hidden":false,"merged":[[0,2,0,12]]}
["Last Update timestamp : 23-04-26 11:32:41 by Musielak, Victor A.",null,"007 = Confirmation \n008 = Correction \n040 = Prepaid Confirmation \n041 = Prepaid Correction\n042 = Contract Note\n\nNote – Red=Required, Blue=Optional, Black=Optional Conditional (see Data Dictionary for condition)"]
["Record Length\n(R-4-N)","Originator Type\n(R-1-A/N)","Firm Number\n(R-8-A/N)","Fund Number\n(R-8-A/N)","Record Type\n(R-3-A/N)","NSCC Security Issue Number\n(OC-16-A/N)","NSCC Sidepocket ID\n(O-3-A/N)","Share Class\n(O-8-A/N)","Security Identifier\n(O-1-A/N)","Security Issue ID\n(O-12-A/N)","Control Number\n(R-20-A/N)","Correction Indicator\n(OC-1-A/N)","Submission Date\n(R-8-N)","Trade Date/Dealing Date – (Business Date)\n(OC-8-N)","Registration  Indicator\n(OC-1-A/N)","NSCC Reject Indicator\n(R-1-A/N)","NSCC Reject Reason Code 1\n(R-4-A/N)","NSCC Reject Reason Code 2\n(R-4-A/N)","NSCC Reject Reason Code 3\n(R-4-A/N)","NSCC Reject Reason Code 4\n(R-4-A/N)","Transaction Code\n(R-2-A/N)","Settlement Date\n(OC-8-N)","Settlement Indicator\n(R-1-A/N)","Settlement Date Override Indicator\n(O-1-A/N)","Contract Note Indicator\n(OC-1-A/N)","Money Amount\n(OC-16-N)","Reporting Currency\n(R-3-A/N)","Settlement Currency\n(R-3-A/N)","Share Quantity\n(OC-14-N)","Network Control Indicator\n(R-1-A/N)","Firm Account Number\n(OC-20-A/N)","Fund Account Number\n(OC-20-A/N)","Contract Note Date\n(OC-8-N)","Series Roll Up Date\n(O-8-N)","Custodian Account Number\n(O-20-A/N)","Account Type\n(R-2-A/N)","Account Registration Name\n(OC-160-A/N)","Original Control Number\n(O-20-A/N)","RIA/RR Indicator\n(OC-1-A/N)","Introducing Broker Dealer Firm Name / Registered Investment Advisor Firm Name\n(OC-35-A/N)","Account Representative/Advisor Name\n(OC-15-A/N)","Account Representative/Advisor Number\n(OC-9-A/N)","Branch ID Number\n(OC-9-A/N)","Trading Model\n(OC-1-A/N)","AIP Firm Role\n(OC-1-A/N)","Firm CRD Number\n(OC-10-N)","Individual CRD/IARD Number\n(OC-10-N)","NAV Account Indicator\n(O-1-A/N)","Trade Date/Dealing Date – (Calendar Date)\n(OC-8-N)","Gross Amount of Trade\n(OC-16-N)","Accredited Investor Indicator\n(O-1-A/N)","Qualified Client Indicator\n(O-1-A/N)","Qualified Purchaser Indicator\n(O-1-A/N)","Qualified Institutional Buyer Indicator\n(O-1-A/N)","State of Sale\n(O-2-A/N)","Redemption Reason Code\n(OC-2-A/N)","CDSC Amount\n(O-16-N)","Redemption Fee\n(O-16-N)","Cost Basis Option\n(O-2-A/N)","Redemption Percentage\n(O-6-N)","Reconfirmation Indicator\n(OC-1-A/N)","Net/Gross Indicator\n(OC-1-A/N)","Related Control Number\n(O-20-A/N)","Total Commitment Amount\n(OC-16-N)","Fulfilled Commitment Amount\n(O-16-N)","Remaining Commitment Amount\n(O-16-N)","Filler\n(R-48-A/N)","Related Trade Indicator 1\n(O-1-A/N)","Related Account Number 1\n(OC-20-A/N)","Dealer Concession/Manager Paid Placement Fee Percentage\n(O-6-N)","Filler\n(R-6-A/N)","Load Type Indicator\n(O-1-A/N)","Breakpoint Change Reason Code\n(O-1-A/N)","Commission/Placement Fee Amount\n(OC-16-N)","Commission/Placement Fee Percentage\n(OC-6-N)","Dealer Concession/Manager Paid Placement Fee Amount\n(O-16-N)","Number of Business Days Until Valuation\n(O-3-N)","Valuation Date\n(O-8-N)","Value Price\n(O-12-N)","Confirm Share Quantity\n(O-14-N)","Estimated or Actual Value Confirm\n(O-1-A/N)","Tender Offer Subject to Holdback Indicator\n(O-1-A/N)","Number of Business Days for Holdback\n(OC-3-N)","Holdback Release Date\n(OC-8-N)","Holdback Percentage\n(OC-6-N)","Interest Rate on Holdback\n(O-8-N)","Interest Paid on Holdback\n(O-16-N)","Tender Offer Oversold Indicator\n(O-1-A/N)","Tender Offer Pro Rata Indicator\n(OC-1-A/N)","Percent of ProRata Allocation\n(OC-6-N)","Automatic Holdback Refund Indicator\n(OC-1-A/N)","Share Lot Identifier 1\n(O-8-N)","Share Lot Identifier 2\n(O-8-N)","Share Lot Identifier 3\n(O-8-N)","Share Lot Identifier 4\n(O-8-N)","Share Lot Identifier 5\n(O-8-N)","Equalization Amount\n(O-16-N)","Equalization Percentage\n(O-6-N)","Equalization Debit/Credit Indicator\n(OC-1-A/N)","Erisa Eligible Indicator\n(O-1-A/N)","Erisa Percentage\n(O-6-N)","Erisa Pre-certified Indicator\n(O-1-A/N)","Series NSCC Security Issue Number\n(OC-16-A/N)","Breakpoint Limit Number\n(OC-2-N)","Price Per Share\n(OC-12-N)","Same Day Multiple Trade Indicator\n(O-1-A/N)","Total Trade Amount Value\n(O-16-N)","Related Trade Indicator 2\n(O-1-A/N)","Related Account Number 2\n(OC-20-A/N)","Related Trade Indicator 3\n(O-1-A/N)","Related Account Number 3\n(OC-20-A/N)","Related Trade Indicator 4\n(O-1-A/N)","Related Account Number 4\n(OC-20-A/N)","Related Trade Indicator 5\n(O-1-A/N)","Related Account Number 5\n(OC-20-A/N)","ToBeExecuted"]
["1073","","","","","","|NoTag|","|NoTag|","|NoTag|","|NoTag|","","","","","","","","","","","","","","|NoTag|","","","","","","","","","","|NoTag|","|NoTag|","","","|NoTag|","","","","","","","","","","|NoTag|","","","|NoTag|","|NoTag|","|NoTag|","|NoTag|","|NoTag|","","|NoTag|","|NoTag|","|NoTag|","|NoTag|","","","|NoTag|","","|NoTag|","|NoTag|","|NoTag|","|NoTag|","","|NoTag|","|NoTag|","|NoTag|","|NoTag|","","","|NoTag|","|NoTag|","|NoTag|","|NoTag|","|NoTag|","|NoTag|","|NoTag|","","","","|NoTag|","|NoTag|","|NoTag|","","","","|NoTag|","|NoTag|","|NoTag|","|NoTag|","|NoTag|","|NoTag|","|NoTag|","","|NoTag|","|NoTag|","|NoTag|","","","","|NoTag|","|NoTag|","|NoTag|","","|NoTag|","","|NoTag|","","|NoTag|",null,"No"]

{"sheet":"OrderCorrConf_DD","index":16,"n_rows":116,"n_cols":7,"rows_kept":116,"cut":false,"hidden":true,"merged":[]}
["Field Name","Start","End","Length","Type","Opt/Req","Default2Zero"]
["Record Length",1,4,4,"N","R","NO"]
["Originator Type",5,5,1,"A/N","R"]
["Firm Number",6,13,8,"A/N","R"]
["Fund Number",14,21,8,"A/N","R"]
["Record Type",22,24,3,"A/N","R"]
["NSCC Security Issue Number",25,40,16,"A/N","OC"]
["NSCC Sidepocket ID",41,43,3,"A/N","O"]
["Share Class",44,51,8,"A/N","O"]
["Security Identifier",52,52,1,"A/N","O"]
["Security Issue ID",53,64,12,"A/N","O"]
["Control Number",65,84,20,"A/N","R"]
["Correction Indicator",85,85,1,"A/N","OC"]
["Submission Date",86,93,8,"N","R","NO"]
["Trade Date/Dealing Date – (Business Date)",94,101,8,"N","OC","NO"]
["Registration  Indicator",102,102,1,"A/N","OC"]
["NSCC Reject Indicator",103,103,1,"A/N","R"]
["NSCC Reject Reason Code 1",104,107,4,"A/N","R"]
["NSCC Reject Reason Code 2",108,111,4,"A/N","R"]
["NSCC Reject Reason Code 3",112,115,4,"A/N","R"]
["NSCC Reject Reason Code 4",116,119,4,"A/N","R"]
["Transaction Code",120,121,2,"A/N","R"]
["Settlement Date",122,129,8,"N","OC","NO"]
["Settlement Indicator",130,130,1,"A/N","R"]
["Settlement Date Override Indicator",131,131,1,"A/N","O "]
["Contract Note Indicator",132,132,1,"A/N","OC"]
["Money Amount",133,148,16,"N","OC","NO"]
["Reporting Currency",149,151,3,"A/N","R"]
["Settlement Currency",152,154,3,"A/N","R"]
["Share Quantity",155,168,14,"N","OC","NO"]
["Network Control Indicator",169,169,1,"A/N","R"]
["Firm Account Number",170,189,20,"A/N","OC"]
["Fund Account Number",190,209,20,"A/N","OC"]
["Contract Note Date",210,217,8,"N","OC","NO"]
["Series Roll Up Date",218,225,8,"N","O","NO"]
["Custodian Account Number",226,245,20,"A/N","O"]
["Account Type",246,247,2,"A/N","R"]
["Account Registration Name",248,407,160,"A/N","OC"]
["Original Control Number",408,427,20,"A/N","O"]
["RIA/RR Indicator",428,428,1,"A/N","OC"]
["Introducing Broker Dealer Firm Name / Registered Investment Advisor Firm Name",429,463,35,"A/N","OC"]
["Account Representative/Advisor Name",464,478,15,"A/N","OC"]
["Account Representative/Advisor Number",479,487,9,"A/N","OC"]
["Branch ID Number",488,496,9,"A/N","OC"]
["Trading Model",497,497,1,"A/N","OC"]
["AIP Firm Role",498,498,1,"A/N","OC"]
["Firm CRD Number",499,508,10,"N","OC","NO"]
["Individual CRD/IARD Number",509,518,10,"N","OC","NO"]
["NAV Account Indicator",519,519,1,"A/N","O"]
["Trade Date/Dealing Date – (Calendar Date)",520,527,8,"N","OC","NO"]
["Gross Amount of Trade",528,543,16,"N","OC","NO"]
["Accredited Investor Indicator",544,544,1,"A/N","O"]
["Qualified Client Indicator",545,545,1,"A/N","O"]
["Qualified Purchaser Indicator",546,546,1,"A/N","O"]
["Qualified Institutional Buyer Indicator",547,547,1,"A/N","O"]
["State of Sale",548,549,2,"A/N","O"]
["Redemption Reason Code",550,551,2,"A/N","OC"]
["CDSC Amount",552,567,16,"N","O","NO"]
["Redemption Fee",568,583,16,"N","O","NO"]
["Cost Basis Option",584,585,2,"A/N","O"]
["Redemption Percentage",586,591,6,"N","O","NO"]
["Reconfirmation Indicator",592,592,1,"A/N","OC"]
["Net/Gross Indicator",593,593,1,"A/N","OC"]
["Related Control Number",594,613,20,"A/N","O"]
["Total Commitment Amount",614,629,16,"N","OC","NO"]
["Fulfilled Commitment Amount",630,645,16,"N","O","NO"]
["Remaining Commitment Amount",646,661,16,"N","O","NO"]
["Filler",662,709,48,"A/N","R"]
["Related Trade Indicator 1",710,710,1,"A/N","O"]
["Related Account Number 1",711,730,20,"A/N","OC"]
["Dealer Concession/Manager Paid Placement Fee Percentage",731,736,6,"N","O"]
["Filler",737,742,6,"A/N","R"]
["Load Type Indicator",743,743,1,"A/N","O"]
["Breakpoint Change Reason Code",744,744,1,"A/N","O"]
["Commission/Placement Fee Amount",745,760,16,"N","OC","NO"]
["Commission/Placement Fee Percentage",761,766,6,"N","OC","NO"]
["Dealer Concession/Manager Paid Placement Fee Amount",767,782,16,"N","O"]
["Number of Business Days Until Valuation",783,785,3,"N","O","NO"]
["Valuation Date",786,793,8,"N","O","NO"]
["Value Price",794,805,12,"N","O"]
["Confirm Share Quantity",806,819,14,"N","O"]
["Estimated or Actual Value Confirm",820,820,1,"A/N","O"]
["Tender Offer Subject to Holdback Indicator",821,821,1,"A/N","O"]
["Number of Business Days for Holdback",822,824,3,"N","OC","NO"]
["Holdback Release Date",825,832,8,"N","OC","NO"]
["Holdback Percentage",833,838,6,"N","OC"]
["Interest Rate on Holdback",839,846,8,"N","O"]
["Interest Paid on Holdback",847,862,16,"N","O"]
["Tender Offer Oversold Indicator",863,863,1,"A/N","O"]
["Tender Offer Pro Rata Indicator",864,864,1,"A/N","OC"]
["Percent of ProRata Allocation",865,870,6,"N","OC"]
["Automatic Holdback Refund Indicator",871,871,1,"A/N","OC"]
["Share Lot Identifier 1",872,879,8,"N","O","NO"]
["Share Lot Identifier 2",880,887,8,"N","O","NO"]
["Share Lot Identifier 3",888,895,8,"N","O","NO"]
["Share Lot Identifier 4",896,903,8,"N","O","NO"]
["Share Lot Identifier 5",904,911,8,"N","O","NO"]
["Equalization Amount",912,927,16,"N","O"]
["Equalization Percentage",928,933,6,"N","O"]
["Equalization Debit/Credit Indicator",934,934,1,"A/N","OC"]
["Erisa Eligible Indicator",935,935,1,"A/N","O"]
["Erisa Percentage",936,941,6,"N","O","NO"]
["Erisa Pre-certified Indicator",942,942,1,"A/N","O"]
["Series NSCC Security Issue Number",943,958,16,"A/N","OC"]
["Breakpoint Limit Number",959,960,2,"N","OC","NO"]
["Price Per Share",961,972,12,"N","OC"]
["Same Day Multiple Trade Indicator",973,973,1,"A/N","O"]
["Total Trade Amount Value",974,989,16,"N","O"]
["Related Trade Indicator 2",990,990,1,"A/N","O"]
["Related Account Number 2",991,1010,20,"A/N","OC"]
["Related Trade Indicator 3",1011,1011,1,"A/N","O"]
["Related Account Number 3",1012,1031,20,"A/N","OC"]
["Related Trade Indicator 4",1032,1032,1,"A/N","O"]
["Related Account Number 4",1033,1052,20,"A/N","OC"]
["Related Trade Indicator 5",1053,1053,1,"A/N","O"]
["Related Account Number 5",1054,1073,20,"A/N","OC"]

{"sheet":"Payment","index":17,"n_rows":3,"n_cols":43,"rows_kept":3,"cut":false,"hidden":false,"merged":[[0,2,0,12]]}
["Last Update timestamp : 20-04-20 12:25:56 by Musielak, Victor A.",null,"030 = Payment   \n\nNote – Red=Required, Blue=Optional, Black=Optional Conditional (see Data Dictionary for condition)"]
["Record Length\n(R-4-N)","Originator Type\n(R-1-A/N)","Firm Number\n(R-8-A/N)","Fund Number\n(R-8-A/N)","Record Type\n(R-3-A/N)","NSCC Security Issue Number\n(OC-16-A/N)","NSCC Sidepocket ID\n(O-3-A/N)","Share Class\n(O-8-A/N)","Security Identifier\n(O-1-A/N)","Security Issue ID\n(O-12-A/N)","Control Number\n(R-20-A/N)","Filler\n(R-1-A/N)","Submission Date\n(R-8-N)","Trade Date/Dealing Date\n(R-8-N)","Filler\n(R-1-A/N)","NSCC Reject Indicator\n(R-1-A/N)","NSCC Reject Reason Code 1\n(R-4-A/N)","NSCC Reject Reason Code 2\n(R-4-A/N)","NSCC Reject Reason Code 3\n(R-4-A/N)","NSCC Reject Reason Code 4\n(R-4-A/N)","Transaction Code\n(R-2-A/N)","Filler\n(R-8-A/N)","Settlement Indicator\n(R-1-A/N)","Filler\n(R-1-A/N)","Initial Documentation Status Indicator\n(R-1-A/N)","Money Amount\n(R-16-N)","Reporting Currency\n(R-3-A/N)","Settlement Currency\n(R-3-A/N)","Share Quantity\n(O-14-N)","Network Control Indicator\n(R-1-A/N)","Firm Account Number\n(OC-20-A/N)","Fund Account Number\n(OC-20-A/N)","Filler\n(R-8-A/N)","Payment Date\n(R-8-N)","Documentation Date\n(O-8-N)","Price/Valuation Date\n(O-8-N)","Share Lot Identifier 1\n(O-8-N)","Share Lot Identifier 2\n(O-8-N)","Share Lot Identifier 3\n(O-8-N)","Share Lot Identifier 4\n(O-8-N)","Share Lot Identifier 5\n(O-8-N)","Series NSCC Security Issue Number\n(OC-16-A/N)","ToBeExecuted"]
["0297","","","","","","|NoTag|","|NoTag|","|NoTag|","|NoTag|","","|NoTag|","","","|NoTag|","","","","","","","|NoTag|","","|NoTag|","","","","","|NoTag|","","","","|NoTag|","","|NoTag|","|NoTag|","|NoTag|","|NoTag|","|NoTag|","|NoTag|","|NoTag|","","No"]

{"sheet":"Payment_DD","index":18,"n_rows":43,"n_cols":7,"rows_kept":43,"cut":false,"hidden":true,"merged":[]}
["Field Name","Start","End","Length","Type","Opt/Req","Default2Zero"]
["Record Length",1,4,4,"N","R","NO"]
["Originator Type",5,5,1,"A/N","R"]
["Firm Number",6,13,8,"A/N","R"]
["Fund Number",14,21,8,"A/N","R"]
["Record Type",22,24,3,"A/N","R"]
["NSCC Security Issue Number",25,40,16,"A/N","OC"]
["NSCC Sidepocket ID",41,43,3,"A/N","O"]
["Share Class",44,51,8,"A/N","O"]
["Security Identifier",52,52,1,"A/N","O"]
["Security Issue ID",53,64,12,"A/N","O"]
["Control Number",65,84,20,"A/N","R"]
["Filler",85,85,1,"A/N","R"]
["Submission Date",86,93,8,"N","R","NO"]
["Trade Date/Dealing Date",94,101,8,"N","R","NO"]
["Filler",102,102,1,"A/N","R"]
["NSCC Reject Indicator",103,103,1,"A/N","R"]
["NSCC Reject Reason Code 1",104,107,4,"A/N","R"]
["NSCC Reject Reason Code 2",108,111,4,"A/N","R"]
["NSCC Reject Reason Code 3",112,115,4,"A/N","R"]
["NSCC Reject Reason Code 4",116,119,4,"A/N","R"]
["Transaction Code",120,121,2,"A/N","R"]
["Filler",122,129,8,"A/N","R"]
["Settlement Indicator",130,130,1,"A/N","R"]
["Filler",131,131,1,"A/N","R"]
["Initial Documentation Status Indicator",132,132,1,"A/N","R"]
["Money Amount",133,148,16,"N","R","NO"]
["Reporting Currency",149,151,3,"A/N","R"]
["Settlement Currency",152,154,3,"A/N","R"]
["Share Quantity",155,168,14,"N","O"]
["Network Control Indicator",169,169,1,"A/N","R"]
["Firm Account Number",170,189,20,"A/N","OC"]
["Fund Account Number",190,209,20,"A/N","OC"]
["Filler",210,217,8,"A/N","R"]
["Payment Date",218,225,8,"N","R","NO"]
["Documentation Date",226,233,8,"N","O","NO"]
["Price/Valuation Date",234,241,8,"N","O","NO"]
["Share Lot Identifier 1",242,249,8,"N","O","NO"]
["Share Lot Identifier 2",250,257,8,"N","O","NO"]
["Share Lot Identifier 3",258,265,8,"N","O","NO"]
["Share Lot Identifier 4",266,273,8,"N","O","NO"]
["Share Lot Identifier 5",274,281,8,"N","O","NO"]
["Series NSCC Security Issue Number",282,297,16,"A/N","OC"]

{"sheet":"Payment Acknowledgement","index":19,"n_rows":3,"n_cols":38,"rows_kept":3,"cut":false,"hidden":false,"merged":[[0,2,0,12]]}
["Last Update timestamp : 20-04-20 12:26:24 by Musielak, Victor A.",null,"031 – Payment Acknowledgement\n\nNote – Red=Required, Blue=Optional, Black=Optional Conditional (see Data Dictionary for condition)"]
["Record Length\n(R-4-N)","Originator Type\n(R-1-A/N)","Firm Number\n(R-8-A/N)","Fund Number\n(R-8-A/N)","Record Type\n(R-3-A/N)","NSCC Security Issue Number\n(OC-16-A/N)","NSCC Sidepocket ID\n(O-3-A/N)","Share Class\n(O-8-A/N)","Security Identifier\n(O-1-A/N)","Security Issue ID\n(O-12-A/N)","Control Number\n(R-20-A/N)","Filler\n(R-1-A/N)","Submission Date\n(R-8-N)","Trade Date/Dealing Date\n(R-8-N)","Filler\n(R-1-A/N)","Series NSCC Security Issue Number\n(OC-16-A/N)","NSCC Reject Indicator\n(R-1-A/N)","NSCC Reject Reason Code 1\n(R-4-A/N)","NSCC Reject Reason Code 2\n(R-4-A/N)","NSCC Reject Reason Code 3\n(R-4-A/N)","NSCC Reject Reason Code 4\n(R-4-A/N)","Transaction Code\n(S-2-A/N)","Filler\n(R-8-A/N)","Settlement Indicator\n(S-1-A/N)","Filler\n(R-1-A/N)","Initial Documentation Status Indicator\n(S-1-A/N)","Money Amount\n(S-16-N)","Reporting Currency\n(S-3-A/N)","Settlement Currency\n(S-3-A/N)","Share Quantity\n(S-14-N)","Network Control Indicator\n(S-1-A/N)","Firm Account Number\n(S-20-A/N)","Fund Account Number\n(S-20-A/N)","Filler\n(R-8-A/N)","Payment Date\n(S-8-N)","Documentation Due Date\n(S-8-N)","Price/Valuation Date\n(S-8-N)","ToBeExecuted"]
["0257","","","","","","|NoTag|","|NoTag|","|NoTag|","|NoTag|","","|NoTag|","","","|NoTag|","","","","","","","|NoTag|","|NoTag|","|NoTag|","|NoTag|","|NoTag|","|NoTag|","|NoTag|","|NoTag|","|NoTag|","|NoTag|","|NoTag|","|NoTag|","|NoTag|","|NoTag|","|NoTag|","|NoTag|","No"]

{"sheet":"Payment Acknowledgement_DD","index":20,"n_rows":38,"n_cols":7,"rows_kept":38,"cut":false,"hidden":true,"merged":[]}
["Field Name","Start","End","Length","Type","Opt/Req","Default2Zero"]
["Record Length",1,4,4,"N","R","NO"]
["Originator Type",5,5,1,"A/N","R"]
["Firm Number",6,13,8,"A/N","R"]
["Fund Number",14,21,8,"A/N","R"]
["Record Type",22,24,3,"A/N","R"]
["NSCC Security Issue Number",25,40,16," A/N","OC"]
["NSCC Sidepocket ID",41,43,3,"A/N","O"]
["Share Class",44,51,8,"A/N","O"]
["Security Identifier",52,52,1,"A/N","O"]
["Security Issue ID",53,64,12,"A/N","O"]
["Control Number",65,84,20,"A/N","R"]
["Filler",85,85,1,"A/N","R"]
["Submission Date",86,93,8,"N","R","NO"]
["Trade Date/Dealing Date",94,101,8,"N","R","NO"]
["Filler",102,102,1,"A/N","R"]
["Series NSCC Security Issue Number",103,118,16,"A/N","OC"]
["NSCC Reject Indicator",119,119,1,"A/N","R"]
["NSCC Reject Reason Code 1",120,123,4,"A/N","R"]
["NSCC Reject Reason Code 2",124,127,4,"A/N","R"]
["NSCC Reject Reason Code 3",128,131,4,"A/N","R"]
["NSCC Reject Reason Code 4",132,135,4,"A/N","R"]
["Transaction Code",136,137,2,"A/N","S"]
["Filler",138,145,8,"A/N","R"]
["Settlement Indicator",146,146,1,"A/N","S"]
["Filler",147,147,1,"A/N","R"]
["Initial Documentation Status Indicator",148,148,1,"A/N","S"]
["Money Amount",149,164,16,"N","S"]
["Reporting Currency",165,167,3,"A/N","S"]
["Settlement Currency",168,170,3,"A/N","S"]
["Share Quantity",171,184,14,"N","S"]
["Network Control Indicator",185,185,1,"A/N","S"]
["Firm Account Number",186,205,20,"A/N","S"]
["Fund Account Number",206,225,20,"A/N","S"]
["Filler",226,233,8,"A/N","R"]
["Payment Date",234,241,8,"N","S","NO"]
["Documentation Due Date",242,249,8,"N","S","NO"]
["Price/Valuation Date",250,257,8,"N","S","NO"]

{"sheet":"Exchange-Switch","index":21,"n_rows":3,"n_cols":75,"rows_kept":3,"cut":false,"hidden":false,"merged":[[0,2,0,9]]}
["Last Update timestamp : 21-05-17 13:25:03 by Musielak, Victor A.",null,"015 = Firm Exchange  \n016 = Fund Exchange  \n018 = Fund Confirmation of Exchange   \n\nNote – Red=Required, Blue=Optional, Black=Optional Conditional (see Data Dictionary for condition)"]
["Record Length\n(R-4-N)","Originator Type\n(R-1-A/N)","Firm Number\n(R-8-A/N)","Fund Number\n(R-8-A/N)","Record Type\n(R-3-A/N)","NSCC Security Issue Number Exchange From\n(OC-16-A/N)","NSCC Sidepocket ID From\n(O-3-A/N)","Share Class From\n(O-8-A/N)","Security Identifier Exchange From\n(O-1-A/N)","Security Issue ID Exchange From\n(O-12-A/N)","Control Number\n(R-20-A/N)","Filler\n(R-1-A/N)","Submission Date\n(R-8-N)","Trade Date\n(R-8-N)","Filler\n(R-1-A/N)","NSCC Reject Indicator\n(R-1-A/N)","NSCC Reject Reason Code 1\n(R-4-A/N)","NSCC Reject Reason Code 2\n(R-4-A/N)","NSCC Reject Reason Code 3\n(R-4-A/N)","NSCC Reject Reason Code 4\n(R-4-A/N)","Transaction Code\n(R-2-A/N)","Settlement Date\n(R-8-N)","Settlement Indicator\n(R-1-A/N)","Filler\n(R-1-A/N)","Exchange Type\n(R-1-A/N)","Exchange From - Money Amount\n(R-16-N)","Filler\n(R-6-A/N)","Exchange From - Share Quantity\n(O-14-N)","Network Control Indicator\n(R-1-A/N)","Exchange From - Firm Account Number\n(OC-20-A/N)","Exchange From - Fund Account Number\n(OC-20-A/N)","Series NSCC Security Issue Number Exchange From\n(OC-16-A/N)","Account Type\n(O-2-A/N)","Account Registration Name\n(O-160-A/N)","Original Control Number\n(OC-20-A/N)","Filler\n(R-28-A/N)","Account Representative/Advisor Name\n(O-15-A/N)","Account Representative/Advisor Number\n(O-9-A/N)","Filler\n(R-232-A/N)","Related Trade Indicator\n(O-1-A/N)","Related Account Number\n(OC-20-A/N)","Related Account Security Issue ID\n(OC-12-A/N)","Load Type Indicator\n(O-1-A/N)","Breakpoint Change Reason Code\n(O-1-A/N)","Exchange From - Commission/Placement Fee Amount\n(OC-16-N)","Exchange From - Commission/Placement Fee Percentage\n(OC-6-N)","Exchange From - Dealer Concession/Manager Paid Placement Fee Amount\n(O-16-N)","Exchange From - Price Per Share\n(O-12-N)","Custodian Name\n(O-40-A/N)","Custodian Tax Identification Number\n(O-9-A/N)","Share Lot Identifier 1 From\n(O-8-N)","Share Lot Identifier 2 From\n(O-8-N)","Share Lot Identifier 3 From\n(O-8-N)","Share Lot Identifier 4 From\n(O-8-N)","Share Lot Identifier 5 From\n(O-8-N)","NSCC Security Issue  Number Exchange To\n(OC-16-A/N)","NSCC Sidepocket ID To\n(O-3-A/N)","Share Class To\n(O-8-A/N)","Security Identifier Exchange To\n(O-1-A/N)","Security Issue ID  Exchange To\n(O-12-A/N)","Exchange To - Money Amount\n(R-16-N)","Exchange To - Share Quantity\n(O-14-N)","Exchange To - Firm Account Number\n(OC-20-A/N)","Exchange To - Fund Account Number\n(OC-20-A/N)","Series NSCC Security Issue Number Exchange To\n(OC-16-A/N)","Exchange To - Commission/Placement Fee Amount\n(OC-16-N)","Exchange To - Commission/Placement Fee Percentage\n(OC-6-N)","Exchange To - Dealer Concession/Manager Paid Placement Fee Amount\n(O-16-N)","Exchange To - Price Per Share\n(R-12-N)","Share Lot Identifier 1 To\n(O-8-N)","Share Lot Identifier 2 To\n(O-8-N)","Share Lot Identifier 3 To\n(O-8-N)","Share Lot Identifier 4 To\n(O-8-N)","Share Lot Identifier 5 To\n(O-8-N)","ToBeExecuted"]
["1081","","","","","","|NoTag|","|NoTag|","|NoTag|","|NoTag|","","|NoTag|","","","|NoTag|","","","","","","","","","|NoTag|","","","|NoTag|","|NoTag|","","","","","|NoTag|","|NoTag|","","|NoTag|","|NoTag|","|NoTag|","|NoTag|","|NoTag|","","","|NoTag|","|NoTag|","","","|NoTag|","|NoTag|","|NoTag|","|NoTag|","|NoTag|","|NoTag|","|NoTag|","|NoTag|","|NoTag|","","|NoTag|","|NoTag|","|NoTag|","|NoTag|","","|NoTag|","","","","","","|NoTag|","","|NoTag|","|NoTag|","|NoTag|","|NoTag|","|NoTag|","No"]

{"sheet":"Exchange-Switch_DD","index":22,"n_rows":75,"n_cols":7,"rows_kept":75,"cut":false,"hidden":true,"merged":[]}
["Field Name","Start","End","Length","Type","Opt/Req","Default2Zero"]
["Record Length",1,4,4,"N","R","NO"]
["Originator Type",5,5,1,"A/N","R"]
["Firm Number",6,13,8,"A/N","R"]
["Fund Number",14,21,8,"A/N","R"]
["Record Type",22,24,3,"A/N","R"]
["NSCC Security Issue Number Exchange From",25,40,16,"A/N","OC"]
["NSCC Sidepocket ID From",41,43,3,"A/N","O"]
["Share Class From",44,51,8,"A/N","O"]
["Security Identifier Exchange From",52,52,1,"A/N","O"]
["Security Issue ID Exchange From",53,64,12," A/N","O"]
["Control Number",65,84,20,"A/N","R"]
["Filler",85,85,1,"A/N","R"]
["Submission Date",86,93,8,"N","R","NO"]
["Trade Date",94,101,8,"N","R","NO"]
["Filler",102,102,1,"A/N","R"]
["NSCC Reject Indicator",103,103,1,"A/N","R"]
["NSCC Reject Reason Code 1",104,107,4,"A/N","R"]
["NSCC Reject Reason Code 2",108,111,4,"A/N","R"]
["NSCC Reject Reason Code 3",112,115,4,"A/N","R"]
["NSCC Reject Reason Code 4",116,119,4,"A/N","R"]
["Transaction Code",120,121,2,"A/N","R"]
["Settlement Date",122,129,8,"N","R","NO"]
["Settlement Indicator",130,130,1,"A/N","R"]
["Filler",131,131,1,"A/N","R"]
["Exchange Type",132,132,1,"A/N","R"]
["Exchange From - Money Amount",133,148,16,"N","R","NO"]
["Filler",149,154,6,"A/N","R"]
["Exchange From - Share Quantity",155,168,14,"N","O"]
["Network Control Indicator",169,169,1,"A/N","R"]
["Exchange From - Firm Account Number",170,189,20,"A/N","OC"]
["Exchange From - Fund Account Number",190,209,20,"A/N","OC"]
["Series NSCC Security Issue Number Exchange From",210,225,16,"A/N","OC"]
["Account Type",226,227,2,"A/N","O"]
["Account Registration Name",228,387,160,"A/N","O"]
["Original Control Number",388,407,20,"A/N","OC"]
["Filler",408,435,28,"A/N","R"]
["Account Representative/Advisor Name",436,450,15,"A/N","O"]
["Account Representative/Advisor Number",451,459,9,"A/N","O"]
["Filler",460,691,232,"A/N","R"]
["Related Trade Indicator",692,692,1,"A/N","O"]
["Related Account Number",693,712,20,"A/N","OC"]
["Related Account Security Issue ID",713,724,12,"A/N","OC"]
["Load Type Indicator",725,725,1,"A/N","O"]
["Breakpoint Change Reason Code",726,726,1,"A/N","O"]
["Exchange From - Commission/Placement Fee Amount",727,742,16,"N","OC","NO"]
["Exchange From - Commission/Placement Fee Percentage",743,748,6,"N","OC","NO"]
["Exchange From - Dealer Concession/Manager Paid Placement Fee Amount",749,764,16,"N","O"]
["Exchange From - Price Per Share",765,776,12,"N","O"]
["Custodian Name",777,816,40,"A/N","O"]
["Custodian Tax Identification Number",817,825,9,"A/N","O"]
["Share Lot Identifier 1 From",826,833,8,"N","O","NO"]
["Share Lot Identifier 2 From",834,841,8,"N","O","NO"]
["Share Lot Identifier 3 From",842,849,8,"N","O","NO"]
["Share Lot Identifier 4 From",850,857,8,"N","O","NO"]
["Share Lot Identifier 5 From",858,865,8,"N","O","NO"]
["NSCC Security Issue  Number Exchange To",866,881,16," A/N","OC"]
["NSCC Sidepocket ID To",882,884,3,"A/N","O"]
["Share Class To",885,892,8,"A/N","O"]
["Security Identifier Exchange To",893,893,1,"A/N","O"]
["Security Issue ID  Exchange To",894,905,12,"A/N","O"]
["Exchange To - Money Amount",906,921,16,"N","R","NO"]
["Exchange To - Share Quantity",922,935,14,"N","O"]
["Exchange To - Firm Account Number",936,955,20,"A/N","OC"]
["Exchange To - Fund Account Number",956,975,20,"A/N","OC"]
["Series NSCC Security Issue Number Exchange To",976,991,16,"A/N","OC"]
["Exchange To - Commission/Placement Fee Amount",992,1007,16,"N","OC","NO"]
["Exchange To - Commission/Placement Fee Percentage",1008,1013,6,"N","OC","NO"]
["Exchange To - Dealer Concession/Manager Paid Placement Fee Amount",1014,1029,16,"N","O"]
["Exchange To - Price Per Share",1030,1041,12,"N","R","NO"]
["Share Lot Identifier 1 To",1042,1049,8,"N","O","NO"]
["Share Lot Identifier 2 To",1050,1057,8,"N","O","NO"]
["Share Lot Identifier 3 To",1058,1065,8,"N","O","NO"]
["Share Lot Identifier 4 To",1066,1073,8,"N","O","NO"]
["Share Lot Identifier 5 To",1074,1081,8,"N","O","NO"]

{"sheet":"Acct. Registration-Maint","index":23,"n_rows":3,"n_cols":159,"rows_kept":3,"cut":false,"hidden":false,"merged":[[0,2,0,12]]}
["Last Update timestamp : 23-04-26 11:36:52 by Musielak, Victor A.",null,"025  =  Registration \n053  =  Account Maintenance  \n\nNote – Red=Required, Blue=Optional, Black=Optional Conditional (see Data Dictionary for condition)"]
["Record Length\n(R-4-N)","Originator Type\n(R-1-A/N)","Firm Number\n(R-8-A/N)","Fund Number\n(R-8-A/N)","Record Type\n(R-3-A/N)","NSCC Security Issue Number\n(OC-16-A/N)","NSCC Sidepocket ID\n(O-3-A/N)","Share Class\n(O-8-A/N)","Security Indicator\n(O-1-A/N)","Security Issue ID\n(O-12-A/N)","Control Number\n(R-20-A/N)","Initial Documentation Status Indicator\n(R-1-A/N)","Submission Date\n(R-8-N)","Filler\n(R-8-A/N)","Registration Type\n(OC-1-A/N)","NSCC Reject Indicator\n(R-1-A/N)","NSCC Reject Reason Code 1\n(R-4-A/N)","NSCC Reject Reason Code 2\n(R-4-A/N)","NSCC Reject Reason Code 3\n(R-4-A/N)","NSCC Reject Reason Code 4\n(R-4-A/N)","Filler\n(R-2-A/N)","New Firm Account Number\n(O-20-A/N)","New Fund Account Number\n(O-20-A/N)","Chapter 4 Status Code\n(O-2-A/N)","Account Indicator\n(R-1-A/N)","Hybrid Responsibility Indicator\n(OC-1-A/N)","Delivery of Fund Notifications\n(OC-1-A/N)","Filler\n(R-2-A/N)","Network Control Indicator\n(R-1-A/N)","Firm Account Number\n(OC-20-A/N)","Fund Account Number\n(OC-20-A/N)","FATCA Override Special Rate\n(O-8-N)","Series Roll Up Date\n(O-8-N)","Custodian Account Number\n(O-20-A/N)","Account Type\n(OC-2-A/N)","Account Registration Name\n(R-160-A/N)","Filler\n(R-15-A/N)","RIA/RR Indicator\n(OC-1-A/N)","Introducing Broker Dealer Firm Name / Registered Investment Advisor Firm Name\n(OC-35-A/N)","Account Representative/Advisor Name\n(OC-15-A/N)","Account Representative/Advisor Number\n(OC-9-A/N)","Branch ID Number\n(OC-9-A/N)","Branch Address 1\n(O-35-A/N)","Branch Address 2\n(O-35-A/N)","Branch Address 3\n(O-35-A/N)","Branch Address 4\n(O-35-A/N)","Branch Address 5\n(O-35-A/N)","Branch Postal Code/Zip Code\n(O-11-A/N)","Branch Country\n(O-3-A/N)","Firm CRD Number\n(OC-10-N)","Dividend Option\n(O-1-A/N)","Filler\n(R-4-A/N)","SSN/TIN/EIN Indicator\n(O-1-A/N)","SSN/TIN/EIN Number\n(O-9-A/N)","Owner DOB\n(O-8-N)","Custodian Name\n(OC-40-A/N)","Custodian Tax Identification Number\n(O-9-A/N)","Joint Owner Name 1\n(O-35-A/N)","Joint Owner SSN Number 1\n(O-9-A/N)","Joint Owner DOB 1\n(O-8-N)","Backup Withholding Indicator\n(OC-1-A/N)","W8 Certification Date\n(OC-8-N)","W8 Expiration Date\n(OC-8-N)","W8 Qualified Intermediary Indicator\n(OC-1-A/N)","W8 Override Country Code\n(O-3-A/N)","W8 Override NRA Special Rate\n(O-8-N)","LOI/ROA/Side Letter Indicator\n(O-1-A/N)","Side Letter Reference Number\n(O-20-A/N)","Individual CRD/IARD Number\n(OC-10-N)","Trading Model\n(R-1-A/N)","AIP Firm Role\n(OC-1-A/N)","Filler\n(R-4-A/N)","LOI Number\n(O-20-A/N)","LOI/ROA/Side Letter Value\n(O-16-N)","NAV Account Indicator\n(O-1-A/N)","ABA Routing Number\n(O-9-A/N)","ACH Account Number\n(O-20-A/N)","ACH Account Name\n(O-35-A/N)","Beneficiary Designation\n(O-1-A/N)","Beneficiary Asset Percent\n(O-6-N)","Beneficiary Name\n(O-35-A/N)","Beneficiary SSN\n(O-9-A/N)","Beneficiary Relationship\n(O-2-A/N)","Beneficiary DOB\n(O-8-N)","Address Type of Record 1\n(R-2-A/N)","Address of Record 1 Line 1\n(R-35-A/N)","Address of Record 1 Line 2\n(O-35-A/N)","Address of Record 1 Line 3\n(O-35-A/N)","Address of Record 1 Line 4\n(O-35-A/N)","Address of Record 1 Line 5\n(O-35-A/N)","Zip/Postal Code of Record 1\n(R-11-A/N)","Country of Record 1\n(R-3-A/N)","Phone Number of Record 1\n(O-16-A/N)","Email Address of Record 1\n(O-100-A/N)","Address Type of Record 2\n(OC-2-A/N)","Address of Record 2 Line 1\n(OC-35-A/N)","Address of Record 2 Line 2\n(O-35-A/N)","Address of Record 2 Line 3\n(O-35-A/N)","Address of Record 2 Line 4\n(O-35-A/N)","Address of Record 2 Line 5\n(O-35-A/N)","Zip/Postal Code of Record 2\n(OC-11-A/N)","Country of Record 2\n(OC-3-A/N)","Phone Number of Record 2\n(O-16-A/N)","Email Address of Record 2\n(O-100-A/N)","Address Type of Record 3\n(OC-2-A/N)","Address of Record 3 Line 1\n(OC-35-A/N)","Address of Record 3 Line 2\n(O-35-A/N)","Address of Record 3 Line 3\n(O-35-A/N)","Address of Record 3 Line 4\n(O-35-A/N)","Address of Record 3 Line 5\n(O-35-A/N)","Zip/Postal Code of Record 3\n(OC-11-A/N)","Country of Record 3\n(OC-3-A/N)","Phone Number of Record 3\n(OC-16-A/N)","Email Address of Record 3\n(O-100-A/N)","Address Type of Record 4\n(OC-2-A/N)","Address of Record 4 Line 1\n(OC-35-A/N)","Address of Record 4 Line 2\n(O-35-A/N)","Address of Record 4 Line 3\n(O-35-A/N)","Address of Record 4 Line 4\n(O-35-A/N)","Address of Record 4 Line 5\n(O-35-A/N)","Zip/Postal Code of Record 4\n(OC-11-A/N)","Country of Record 4\n(OC-3-A/N)","Phone Number of Record 4\n(O-16-A/N)","Email Address of Record 4\n(O-100-A/N)","Address Type of Record 5\n(OC-2-A/N)","Address of Record 5 Line 1\n(OC-35-A/N)","Address of Record 5 Line 2\n(O-35-A/N)","Address of Record 5 Line 3\n(O-35-A/N)","Address of Record 5 Line 4\n(O-35-A/N)","Address of Record 5 Line 5\n(O-35-A/N)","Zip/Postal Code of Record 5\n(OC-11-A/N)","Country of Record 5\n(OC-3-A/N)","Phone Number of Record 5\n(O-16-A/N)","Email Address of Record 5\n(O-100-A/N)","Erisa Eligible Indicator\n(OC-1-A/N)","Erisa Percentage\n(OC-6-N)","Erisa Pre-Certified Indicator\n(OC-1-A/N)","Joint Owner Name 2\n(O-35-A/N)","Joint Owner SSN Number 2\n(O-9-A/N)","Joint Owner DOB 2\n(O-8-N)","Joint Owner Name 3\n(O-35-A/N)","Joint Owner SSN Number 3\n(O-9-A/N)","Joint Owner DOB 3\n(O-8-N)","Joint Owner Name 4\n(O-35-A/N)","Joint Owner SSN Number 4\n(O-9-A/N)","Joint Owner DOB 4\n(O-8-N)","Joint Owner Name 5\n(O-35-A/N)","Joint Owner SSN Number  5\n(O-9-A/N)","Joint Owner DOB 5\n(O-8-N)","Joint Owner Name 6\n(O-35-A/N)","Joint Owner SSN Number 6\n(O-9-A/N)","Joint Owner DOB  6\n(O-8-N)","Series NSCC Security Issue Number\n(OC-16-A/N)","Global Intermediary Identification Number\n(O-25-A/N)","Underlying Client’s Foreign Tax ID\n(O-25-A/N)","Cost Basis Option\n(O-2-A/N)","TPA Investor ID\n(O-20-A/N)","TPA Company\n(OC-2-A/N)","ToBeExecuted"]
["2935","","","","","","|NoTag|","|NoTag|","|NoTag|","|NoTag|","","","","|NoTag|","","","","","","","|NoTag|","|NoTag|","|NoTag|","|NoTag|","","","","|NoTag|","","","","|NoTag|","|NoTag|","|NoTag|","","","|NoTag|","","","","","","|NoTag|","|NoTag|","|NoTag|","|NoTag|","|NoTag|","|NoTag|","|NoTag|","","|NoTag|","|NoTag|","|NoTag|","|NoTag|","|NoTag|","","|NoTag|","|NoTag|","|NoTag|","|NoTag|","","","","","|NoTag|","|NoTag|","|NoTag|","|NoTag|","","","","|NoTag|","|NoTag|","|NoTag|","|NoTag|","|NoTag|","|NoTag|","|NoTag|","|NoTag|","|NoTag|","|NoTag|","|NoTag|","|NoTag|","|NoTag|","","","|NoTag|","|NoTag|","|NoTag|","|NoTag|","","","|NoTag|","|NoTag|","","","|NoTag|","|NoTag|","|NoTag|","|NoTag|","","","|NoTag|","|NoTag|","","","|NoTag|","|NoTag|","|NoTag|","|NoTag|","","","","|NoTag|","","","|NoTag|","|NoTag|","|NoTag|","|NoTag|","","","|NoTag|","|NoTag|","","","|NoTag|","|NoTag|","|NoTag|","|NoTag|","","","|NoTag|","|NoTag|","","","","|NoTag|","|NoTag|","|NoTag|","|NoTag|","|NoTag|","|NoTag|","|NoTag|","|NoTag|","|NoTag|","|NoTag|","|NoTag|","|NoTag|","|NoTag|","|NoTag|","|NoTag|","","|NoTag|","|NoTag|","|NoTag|","|NoTag|",null,"No"]

{"sheet":"Acct. Registration-Maint_DD","index":24,"n_rows":159,"n_cols":7,"rows_kept":159,"cut":false,"hidden":true,"merged":[]}
["Field Name","Start","End","Length","Type","Opt/Req","Default2Zero"]
["Record Length",1,4,4,"N","R","NO"]
["Originator Type",5,5,1,"A/N","R"]
["Firm Number",6,13,8,"A/N","R"]
["Fund Number",14,21,8,"A/N","R"]
["Record Type",22,24,3,"A/N","R"]
["NSCC Security Issue Number",25,40,16," A/N","OC"]
["NSCC Sidepocket ID",41,43,3,"A/N","O"]
["Share Class",44,51,8,"A/N","O"]
["Security Indicator",52,52,1,"A/N","O"]
["Security Issue ID",53,64,12,"A/N","O"]
["Control Number",65,84,20,"A/N","R"]
["Initial Documentation Status Indicator",85,85,1,"A/N","R"]
["Submission Date",86,93,8,"N","R","NO"]
["Filler",94,101,8,"A/N","R"]
["Registration Type",102,102,1,"A/N","OC"]
["NSCC Reject Indicator",103,103,1,"A/N","R"]
["NSCC Reject Reason Code 1",104,107,4,"A/N","R"]
["NSCC Reject Reason Code 2",108,111,4,"A/N","R"]
["NSCC Reject Reason Code 3",112,115,4,"A/N","R"]
["NSCC Reject Reason Code 4",116,119,4,"A/N","R"]
["Filler",120,121,2,"A/N","R"]
["New Firm Account Number",122,141,20,"A/N","O"]
["New Fund Account Number",142,161,20,"A/N","O"]
["Chapter 4 Status Code",162,163,2,"A/N","O"]
["Account Indicator",164,164,1,"A/N","R"]
["Hybrid Responsibility Indicator",165,165,1,"A/N","OC"]
["Delivery of Fund Notifications",166,166,1,"A/N","OC"]
["Filler",167,168,2,"A/N","R"]
["Network Control Indicator",169,169,1,"A/N","R"]
["Firm Account Number",170,189,20,"A/N","OC"]
["Fund Account Number",190,209,20,"A/N","OC"]
["FATCA Override Special Rate",210,217,8,"N","O"]
["Series Roll Up Date",218,225,8,"N","O","NO"]
["Custodian Account Number",226,245,20,"A/N","O"]
["Account Type",246,247,2,"A/N","OC"]
["Account Registration Name",248,407,160,"A/N","R"]
["Filler",408,422,15,"A/N","R"]
["RIA/RR Indicator",423,423,1,"A/N"," OC"]
["Introducing Broker Dealer Firm Name / Registered Investment Advisor Firm Name",424,458,35,"A/N ","OC"]
["Account Representative/Advisor Name",459,473,15,"A/N","OC"]
["Account Representative/Advisor Number",474,482,9,"A/N","OC"]
["Branch ID Number",483,491,9,"A/N","OC"]
["Branch Address 1",492,526,35,"A/N","O"]
["Branch Address 2",527,561,35,"A/N","O"]
["Branch Address 3",562,596,35,"A/N","O"]
["Branch Address 4",597,631,35,"A/N","O"]
["Branch Address 5",632,666,35,"A/N","O"]
["Branch Postal Code/Zip Code",667,677,11,"A/N","O"]
["Branch Country",678,680,3,"A/N","O"]
["Firm CRD Number",681,690,10,"N","OC","NO"]
["Dividend Option",691,691,1,"A/N","O"]
["Filler",692,695,4,"A/N","R"]
["SSN/TIN/EIN Indicator",696,696,1,"A/N","O"]
["SSN/TIN/EIN Number",697,705,9,"A/N","O"]
["Owner DOB",706,713,8,"N","O","NO"]
["Custodian Name",714,753,40,"A/N","OC"]
["Custodian Tax Identification Number",754,762,9,"A/N","O"]
["Joint Owner Name 1",763,797,35,"A/N","O"]
["Joint Owner SSN Number 1",798,806,9,"A/N","O"]
["Joint Owner DOB 1",807,814,8,"N","O","NO"]
["Backup Withholding Indicator",815,815,1,"A/N","OC"]
["W8 Certification Date",816,823,8,"N","OC","NO"]
["W8 Expiration Date",824,831,8,"N","OC","NO"]
["W8 Qualified Intermediary Indicator",832,832,1,"A/N","OC"]
["W8 Override Country Code",833,835,3,"A/N","O"]
["W8 Override NRA Special Rate",836,843,8,"N","O"]
["LOI/ROA/Side Letter Indicator",844,844,1,"A/N","O"]
["Side Letter Reference Number",845,864,20,"A/N","O"]
["Individual CRD/IARD Number",865,874,10,"N","OC","NO"]
["Trading Model",875,875,1,"A/N","R"]
["AIP Firm Role",876,876,1,"A/N","OC"]
["Filler",877,880,4,"A/N","R"]
["LOI Number",881,900,20,"A/N","O"]
["LOI/ROA/Side Letter Value",901,916,16,"N","O"]
["NAV Account Indicator",917,917,1,"A/N","O"]
["ABA Routing Number",918,926,9,"A/N","O"]
["ACH Account Number",927,946,20,"A/N","O"]
["ACH Account Name",947,981,35,"A/N","O"]
["Beneficiary Designation",982,982,1,"A/N","O"]
["Beneficiary Asset Percent",983,988,6,"N","O"]
["Beneficiary Name",989,1023,35,"A/N","O"]
["Beneficiary SSN",1024,1032,9,"A/N","O"]
["Beneficiary Relationship",1033,1034,2,"A/N","O"]
["Beneficiary DOB",1035,1042,8,"N","O","NO"]
["Address Type of Record 1",1043,1044,2,"A/N","R"]
["Address of Record 1 Line 1",1045,1079,35,"A/N","R"]
["Address of Record 1 Line 2",1080,1114,35,"A/N","O"]
["Address of Record 1 Line 3",1115,1149,35,"A/N","O"]
["Address of Record 1 Line 4",1150,1184,35,"A/N","O"]
["Address of Record 1 Line 5",1185,1219,35,"A/N","O"]
["Zip/Postal Code of Record 1",1220,1230,11,"A/N","R"]
["Country of Record 1",1231,1233,3,"A/N","R"]
["Phone Number of Record 1",1234,1249,16,"A/N","O"]
["Email Address of Record 1",1250,1349,100,"A/N","O"]
["Address Type of Record 2",1350,1351,2,"A/N","OC"]
["Address of Record 2 Line 1",1352,1386,35,"A/N","OC"]
["Address of Record 2 Line 2",1387,1421,35,"A/N","O"]
["Address of Record 2 Line 3",1422,1456,35,"A/N","O"]
["Address of Record 2 Line 4",1457,1491,35,"A/N","O"]
["Address of Record 2 Line 5",1492,1526,35,"A/N","O"]
["Zip/Postal Code of Record 2",1527,1537,11,"A/N","OC"]
["Country of Record 2",1538,1540,3,"A/N","OC"]
["Phone Number of Record 2",1541,1556,16,"A/N","O"]
["Email Address of Record 2",1557,1656,100,"A/N","O"]
["Address Type of Record 3",1657,1658,2,"A/N","OC"]
["Address of Record 3 Line 1",1659,1693,35,"A/N","OC"]
["Address of Record 3 Line 2",1694,1728,35,"A/N","O"]
["Address of Record 3 Line 3",1729,1763,35,"A/N","O"]
["Address of Record 3 Line 4",1764,1798,35,"A/N","O"]
["Address of Record 3 Line 5",1799,1833,35,"A/N","O"]
["Zip/Postal Code of Record 3",1834,1844,11,"A/N","OC"]
["Country of Record 3",1845,1847,3,"A/N","OC"]
["Phone Number of Record 3",1848,1863,16,"A/N","OC"]
["Email Address of Record 3",1864,1963,100,"A/N","O"]
["Address Type of Record 4",1964,1965,2,"A/N","OC"]
["Address of Record 4 Line 1",1966,2000,35,"A/N","OC"]
["Address of Record 4 Line 2",2001,2035,35,"A/N","O"]
["Address of Record 4 Line 3",2036,2070,35,"A/N","O"]
["Address of Record 4 Line 4",2071,2105,35,"A/N","O"]
["Address of Record 4 Line 5",2106,2140,35,"A/N","O"]
["Zip/Postal Code of Record 4",2141,2151,11,"A/N","OC"]
["Country of Record 4",2152,2154,3,"A/N","OC"]
["Phone Number of Record 4",2155,2170,16,"A/N","O"]
["Email Address of Record 4",2171,2270,100,"A/N","O"]
["Address Type of Record 5",2271,2272,2,"A/N","OC"]
["Address of Record 5 Line 1",2273,2307,35,"A/N","OC"]
["Address of Record 5 Line 2",2308,2342,35,"A/N","O"]
["Address of Record 5 Line 3",2343,2377,35,"A/N","O"]
["Address of Record 5 Line 4",2378,2412,35,"A/N","O"]
["Address of Record 5 Line 5",2413,2447,35,"A/N","O"]
["Zip/Postal Code of Record 5",2448,2458,11,"A/N","OC"]
["Country of Record 5",2459,2461,3,"A/N","OC"]
["Phone Number of Record 5",2462,2477,16,"A/N","O"]
["Email Address of Record 5",2478,2577,100,"A/N","O"]
["Erisa Eligible Indicator",2578,2578,1,"A/N","OC"]
["Erisa Percentage",2579,2584,6,"N","OC","NO"]
["Erisa Pre-Certified Indicator",2585,2585,1,"A/N","OC"]
["Joint Owner Name 2",2586,2620,35,"A/N","O"]
["Joint Owner SSN Number 2",2621,2629,9,"A/N","O"]
["Joint Owner DOB 2",2630,2637,8,"N","O","NO"]
["Joint Owner Name 3",2638,2672,35,"A/N","O"]
["Joint Owner SSN Number 3",2673,2681,9,"A/N","O"]
["Joint Owner DOB 3",2682,2689,8,"N","O","NO"]
["Joint Owner Name 4",2690,2724,35,"A/N","O"]
["Joint Owner SSN Number 4",2725,2733,9,"A/N","O"]
["Joint Owner DOB 4",2734,2741,8,"N","O","NO"]
["Joint Owner Name 5",2742,2776,35,"A/N","O"]
["Joint Owner SSN Number  5",2777,2785,9,"A/N","O"]
["Joint Owner DOB 5",2786,2793,8,"N","O","NO"]
["Joint Owner Name 6",2794,2828,35,"A/N","O"]
["Joint Owner SSN Number 6",2829,2837,9,"A/N","O"]
["Joint Owner DOB  6",2838,2845,8,"N","O","NO"]
["Series NSCC Security Issue Number",2846,2861,16,"A/N","OC"]
["Global Intermediary Identification Number",2862,2886,25,"A/N","O"]
["Underlying Client’s Foreign Tax ID",2887,2911,25,"A/N","O"]
["Cost Basis Option",2912,2913,2,"A/N","O"]
["TPA Investor ID",2914,2933,20,"A/N","O"]
["TPA Company",2934,2935,2,"A/N","OC"]

{"sheet":"Reg-Activity Ackn Rej","index":25,"n_rows":3,"n_cols":34,"rows_kept":3,"cut":false,"hidden":false,"merged":[[0,2,0,12]]}
["Last Update timestamp : 20-04-20 12:28:37 by Musielak, Victor A.",null,"026 =  Registration Acknowledgement\n027 = Registration Reject\n057 = Maintenance Acknowledgement\n058 = Maintenance Reject\n054 = Activity  Acknowledgement\n055 = Activity Reject \n\nNote – Red=Required, Blue=Optional, Black=Optional Conditional (see Data Dictionary for condition)"]
["Record Length\n(R-4-N)","Originator Type\n(R-1-A/N)","Firm Number\n(R-8-A/N)","Fund Number\n(R-8-A/N)","Record Type\n(R-3-A/N)","NSCC Security Issue Number\n(OC-16-A/N)","NSCC Sidepocket ID\n(O-3-A/N)","Share Class\n(O-8-A/N)","Security Identifier\n(O-1-A/N)","Security Issue ID\n(O-12-A/N)","Control Number\n(R-20-A/N)","Filler\n(R-1-A/N)","Submission Date\n(OC-8-N)","Filler\n(R-9-A/N)","NSCC Reject Indicator\n(R-1-A/N)","NSCC Reject Reason Code 1\n(R-4-A/N)","NSCC Reject Reason Code 2\n(R-4-A/N)","NSCC Reject Reason Code 3\n(R-4-A/N)","NSCC Reject Reason Code 4\n(R-4-A/N)","Filler\n(R-2-A/N)","Settlement Date\n(S-8-N)","Series NSCC Security Issue Number\n(OC-16-A/N)","Contract Note Date\n(S-8-N)","Filler\n(R-16-A/N)","Firm Account Number\n(S-20-A/N)","Fund Account Number\n(OC-20-A/N)","Filler\n(R-347-A/N)","Fund/Firm Reject Indicator\n(OC-1-A/N)","Fund/Firm Reject Reason Code 1\n(OC-4-A/N)","Fund/Firm Reject Reason Code 2\n(O-4-A/N)","Fund/Firm Reject Reason Code 3\n(O-4-A/N)","Fund/Firm Reject Reason Code 4\n(O-4-A/N)","ToBeExecuted","ToBeExecuted"]
["0573","","","","","","|NoTag|","|NoTag|","|NoTag|","|NoTag|","","|NoTag|","","|NoTag|","","","","","","|NoTag|","|NoTag|","","|NoTag|","|NoTag|","|NoTag|","","|NoTag|","","","|NoTag|","|NoTag|","|NoTag|","No","No"]

{"sheet":"Reg-Activity Ackn Rej_DD","index":26,"n_rows":33,"n_cols":7,"rows_kept":33,"cut":false,"hidden":true,"merged":[]}
["Field Name","Start","End","Length","Type","Opt/Req","Default2Zero"]
["Record Length",1,4,4,"N","R","NO"]
["Originator Type",5,5,1,"A/N","R"]
["Firm Number",6,13,8,"A/N","R"]
["Fund Number",14,21,8,"A/N","R"]
["Record Type",22,24,3,"A/N","R"]
["NSCC Security Issue Number",25,40,16,"A/N","OC"]
["NSCC Sidepocket ID",41,43,3,"A/N","O"]
["Share Class",44,51,8,"A/N","O"]
["Security Identifier",52,52,1,"A/N","O"]
["Security Issue ID",53,64,12,"A/N","O"]
["Control Number",65,84,20,"A/N","R"]
["Filler",85,85,1,"A/N","R"]
["Submission Date",86,93,8,"N","OC","NO"]
["Filler",94,102,9,"A/N","R"]
["NSCC Reject Indicator",103,103,1,"A/N","R"]
["NSCC Reject Reason Code 1",104,107,4,"A/N","R"]
["NSCC Reject Reason Code 2",108,111,4,"A/N","R"]
["NSCC Reject Reason Code 3",112,115,4,"A/N","R"]
["NSCC Reject Reason Code 4",116,119,4,"A/N","R"]
["Filler",120,121,2,"A/N","R"]
["Settlement Date",122,129,8,"N","S","NO"]
["Series NSCC Security Issue Number",130,145,16,"A/N","OC"]
["Contract Note Date",146,153,8,"N","S","NO"]
["Filler",154,169,16,"A/N","R"]
["Firm Account Number",170,189,20,"A/N","S"]
["Fund Account Number",190,209,20,"A/N","OC"]
["Filler",210,556,347,"A/N","R"]
["Fund/Firm Reject Indicator",557,557,1,"A/N","OC"]
["Fund/Firm Reject Reason Code 1",558,561,4,"A/N","OC"]
["Fund/Firm Reject Reason Code 2",562,565,4,"A/N","O"]
["Fund/Firm Reject Reason Code 3",566,569,4,"A/N","O"]
["Fund/Firm Reject Reason Code 4",570,573,4,"A/N","O"]

{"sheet":"Activity&Distribution","index":27,"n_rows":3,"n_cols":80,"rows_kept":3,"cut":false,"hidden":false,"merged":[[0,2,0,12]]}
["Last Update timestamp : 23-04-26 11:20:24 by Musielak, Victor A.",null,"050 = Activity and Distribution\n056 = Activity Confirmation\n\nNote – Red=Required, Blue=Optional, Black=Optional Conditional (see Data Dictionary for condition)"]
["Record Length\n(R-4-N)","Originator Type\n(R-1-A/N)","Firm Number\n(R-8-A/N)","Fund Number\n(R-8-A/N)","Record Type\n(R-3-A/N)","NSCC Security Issue Number\n(OC-16-A/N)","NSCC Sidepocket ID\n(O-3-A/N)","Share Class\n(O-8-A/N)","Security Identifier\n(O-1-A/N)","Security Issue ID\n(O-12-A/N)","Control Number\n(R-20-A/N)","FATCA Withholding Indicator\n(O-1-A/N)","FATCA Withholding Amount\n(OC-16-N)","Filler\n(R-1-A/N)","NSCC Reject Indicator\n(R-1-A/N)","NSCC Reject Reason Code 1\n(R-4-A/N)","NSCC Reject Reason Code 2\n(R-4-A/N)","NSCC Reject Reason Code 3\n(R-4-A/N)","NSCC Reject Reason Code 4\n(R-4-A/N)","Transaction Type\n(R-2-A/N)","Settlement Date\n(OC-8-N)","Settlement Indicator\n(R-1-A/N)","Network Control Indicator\n(R-1-A/N)","Firm Account Number\n(OC-20-A/N)","Fund Account Number\n(OC-20-A/N)","Payable Date\n(O-8-N)","Currency Indicator\n(R-3-A/N)","Share Quantity\n(OC-14-N)","Share Debit/Credit Indicator\n(OC-1-A/N)","Effective Date – (Business Date)\n(OC-8-N)","Money Amount\n(OC-16-N)","Backup Withholding Indicator\n(OC-1-A/N)","Backup Withholding Amount\n(OC-16-N)","Sales Charge Rate\n(OC-4-N)","Original Trade Date/ Payable Date for Adjustment\n(OC-8-N)","Price Per Share\n(OC-12-N)","Dividend Rate\n(OC-8-N)","Capital Gain Rate\n(OC-8-N)","Cash Disbursement Indicator\n(O-1-A/N)","Money Debit/Credit Indicator\n(OC-1-A/N)","Load Type Indicator\n(O-1-A/N)","Cross Security NSCC ID\n(OC-16-A/N)","Commission/CDSC Amount\n(O-16-N)","Valuation Date\n(O-8-N)","Valuation Price\n(O-12-N)","Confirm Share Quantity\n(O-14-N)","Estimated or Actual Value Confirm\n(O-1-A/N)","Custodian Name\n(O-35-A/N)","Custodian Tax Identification Number\n(O-9-N)","Account Registration Name\n(OC-35-A/N)","Related Control Number\n(OC-20-A/N)","Transfer To/From Account Number\n(OC-20-A/N)","Upfront Commission Percentage\n(O-6-N)","Reinvest Date\n(O-8-N)","Account Registration Name - Extended\n(O-160-A/N)","Custodian Name - Extended\n(O-40-A/N)","SSN/TIN/EIN Indicator\n(O-1-A/N)","SSN/TIN/EIN Number\n(O-9-A/N)","Adjustment Indicator\n(O-1-A/N)","Series NSCC Security Issue Number\n(OC-16-A/N)","Record Date\n(O-8-N)","FATCA Withholding Rate\n(O-8-N)","Total Distribution Amount\n(O-16-N)","Effective Date – (Calendar Date)\n(OC-8-N)","Account Representative/Advisor Number\n(O-9-A/N)","Account Representative/Advisor Name\n(O-15-A/N)","Branch ID Number\n(O-9-A/N)","Direct Purchase/Capital Call Type\n(OC-1-N)","Account Open Date\n(O-8-N)","Account Type\n(O-2-A/N)","Split/Reverse Split Ratio\n(OC-5-A/N)","Taxable Indicator\n(OC-1-A/N)","Closing Balance Date\n(R-8-N)","Closing Money Value\n(OC-16-N)","Closing Share Balance\n(OC-14-N)","Total Commitment Amount\n(OC-16-N)","Fulfilled Commitment Amount\n(O-16-N)","Remaining Commitment Amount\n(O-16-N)","Fund Assessed Fee Amount\n(O-16-N)","ToBeExecuted"]
["0900","","","","","","|NoTag|","|NoTag|","|NoTag|","|NoTag|","","|NoTag|","","|NoTag|","","","","","","","","","","","","|NoTag|","","","","","","","","","","","","","|NoTag|","","|NoTag|","","|NoTag|","|NoTag|","|NoTag|","|NoTag|","|NoTag|","|NoTag|","|NoTag|","","","","|NoTag|","|NoTag|","|NoTag|","|NoTag|","|NoTag|","|NoTag|","|NoTag|","","|NoTag|","|NoTag|","|NoTag|","","|NoTag|","|NoTag|","|NoTag|","","|NoTag|","|NoTag|","","","","","","","|NoTag|","|NoTag|","|NoTag|","No"]

{"sheet":"Activity&Distribution_DD","index":28,"n_rows":80,"n_cols":7,"rows_kept":80,"cut":false,"hidden":true,"merged":[]}
["Field Name","Start","End","Length","Type","Opt/Req","Default2Zero"]
["Record Length",1,4,4,"N","R","NO"]
["Originator Type",5,5,1,"A/N","R"]
["Firm Number",6,13,8,"A/N","R"]
["Fund Number",14,21,8,"A/N","R"]
["Record Type",22,24,3,"A/N","R"]
["NSCC Security Issue Number",25,40,16,"A/N","OC"]
["NSCC Sidepocket ID",41,43,3,"A/N","O"]
["Share Class",44,51,8,"A/N","O"]
["Security Identifier",52,52,1,"A/N","O"]
["Security Issue ID",53,64,12,"A/N","O"]
["Control Number",65,84,20,"A/N","R"]
["FATCA Withholding Indicator",85,85,1,"A/N","O"]
["FATCA Withholding Amount",86,101,16,"N","OC","NO"]
["Filler",102,102,1,"A/N","R"]
["NSCC Reject Indicator",103,103,1,"A/N","R"]
["NSCC Reject Reason Code 1",104,107,4,"A/N","R"]
["NSCC Reject Reason Code 2",108,111,4,"A/N","R"]
["NSCC Reject Reason Code 3",112,115,4,"A/N","R"]
["NSCC Reject Reason Code 4",116,119,4,"A/N","R"]
["Transaction Type",120,121,2,"A/N","R"]
["Settlement Date",122,129,8,"N","OC","NO"]
["Settlement Indicator",130,130,1,"A/N","R"]
["Network Control Indicator",131,131,1,"A/N","R"]
["Firm Account Number",132,151,20,"A/N","OC"]
["Fund Account Number",152,171,20,"A/N","OC"]
["Payable Date",172,179,8,"N","O","NO"]
["Currency Indicator",180,182,3,"A/N","R"]
["Share Quantity",183,196,14,"N","OC","NO"]
["Share Debit/Credit Indicator",197,197,1,"A/N","OC"]
["Effective Date – (Business Date)",198,205,8,"N","OC","NO"]
["Money Amount",206,221,16,"N","OC","NO"]
["Backup Withholding Indicator",222,222,1," A/N","OC"]
["Backup Withholding Amount",223,238,16,"N","OC","NO"]
["Sales Charge Rate",239,242,4,"N","OC","NO"]
["Original Trade Date/ Payable Date for Adjustment",243,250,8,"N","OC","NO"]
["Price Per Share",251,262,12,"N","OC","NO"]
["Dividend Rate",263,270,8,"N","OC","NO"]
["Capital Gain Rate",271,278,8,"N","OC","NO"]
["Cash Disbursement Indicator",279,279,1,"A/N","O"]
["Money Debit/Credit Indicator",280,280,1,"A/N","OC"]
["Load Type Indicator",281,281,1,"A/N","O"]
["Cross Security NSCC ID",282,297,16,"A/N","OC"]
["Commission/CDSC Amount",298,313,16,"N","O"]
["Valuation Date",314,321,8,"N","O","NO"]
["Valuation Price",322,333,12,"N","O"]
["Confirm Share Quantity",334,347,14,"N","O"]
["Estimated or Actual Value Confirm",348,348,1,"A/N","O"]
["Custodian Name",349,383,35,"A/N","O"]
["Custodian Tax Identification Number",384,392,9,"N","O","NO"]
["Account Registration Name",393,427,35,"A/N","OC"]
["Related Control Number",428,447,20,"A/N","OC"]
["Transfer To/From Account Number",448,467,20,"A/N","OC"]
["Upfront Commission Percentage",468,473,6,"N","O"]
["Reinvest Date",474,481,8,"N","O","NO"]
["Account Registration Name - Extended",482,641,160,"A/N","O"]
["Custodian Name - Extended",642,681,40,"A/N","O"]
["SSN/TIN/EIN Indicator",682,682,1,"A/N","O"]
["SSN/TIN/EIN Number",683,691,9,"A/N","O"]
["Adjustment Indicator",692,692,1,"A/N","O"]
["Series NSCC Security Issue Number",693,708,16,"A/N","OC"]
["Record Date",709,716,8,"N","O","NO"]
["FATCA Withholding Rate",717,724,8,"N","O"]
["Total Distribution Amount",725,740,16,"N","O","NO"]
["Effective Date – (Calendar Date)",741,748,8,"N","OC","NO"]
["Account Representative/Advisor Number",749,757,9,"A/N","O"]
["Account Representative/Advisor Name",758,772,15,"A/N","O"]
["Branch ID Number",773,781,9,"A/N","O"]
["Direct Purchase/Capital Call Type",782,782,1,"N","OC","NO"]
["Account Open Date",783,790,8,"N","O","NO"]
["Account Type",791,792,2,"A/N","O"]
["Split/Reverse Split Ratio",793,797,5,"A/N","OC"]
["Taxable Indicator",798,798,1,"A/N","OC"]
["Closing Balance Date",799,806,8,"N","R"]
["Closing Money Value",807,822,16,"N","OC","NO"]
["Closing Share Balance",823,836,14,"N","OC","NO"]
["Total Commitment Amount",837,852,16,"N","OC","NO"]
["Fulfilled Commitment Amount",853,868,16,"N","O","NO"]
["Remaining Commitment Amount",869,884,16,"N","O","NO"]
["Fund Assessed Fee Amount",885,900,16,"N","O","NO"]

{"sheet":"Commission","index":29,"n_rows":3,"n_cols":54,"rows_kept":3,"cut":false,"hidden":false,"merged":[[0,2,0,12]]}
["Last Update timestamp : 20-04-20 12:31:02 by Musielak, Victor A.",null,"051  =  Commission\n\nNote – Red=Required, Blue=Optional, Black=Optional Conditional (see Data Dictionary for condition)",null,null,null,null,null,null,null,null,null,null,null,null,null,null,null,null,null,null,null,null,null,null,null,null,null,null,null,null,null,null,null,null,null,null,null,null,null,null,null,null,null,null,null,null,null,null,null,null,"`"]
["Record Length\n(R-4-N)","Originator Type\n(R-1-A/N)","Firm Number\n(R-8-A/N)","Fund Number\n(R-8-A/N)","Record Type\n(R-3-A/N)","NSCC Security Issue Number\n(OC-16-A/N)","NSCC Sidepocket ID\n(O-3-A/N)","Share Class\n(O-8-A/N)","Security Identifier\n(O-1-A/N)","Security Issue ID\n(O-12-A/N)","Control Number\n(R-20-A/N)","Filler\n(R-18-A/N)","NSCC Reject Indicator\n(R-1-A/N)","NSCC Reject Reason Code 1\n(R-4-A/N)","NSCC Reject Reason Code 2\n(R-4-A/N)","NSCC Reject Reason Code 3\n(R-4-A/N)","NSCC Reject Reason Code 4\n(R-4-A/N)","Filler\n(R-2-A/N)","Settlement Date\n(R-8-N)","Settlement Indicator\n(R-1-A/N)","Network Control Indicator\n(R-1-A/N)","Firm Account Number\n(OC-20-A/N)","Fund Account Number\n(OC-20-A/N)","Account Type\n(O-2-A/N)","Filler\n(R-6-A/N)","Currency Indicator\n(R-3-A/N)","Share Quantity\n(O-14-N)","Trade Date\n(O-8-N)","Price Per Share\n(O-12-N)","Debit/Credit Indicator\n(R-1-A/N)","Debit Reason Code\n(OC-1-A/N)","Fund Processing Date\n(R-8-N)","Commission Type\n(R-2-A/N)","Filler\n(R-8-A/N)","Commission Amount\n(R-16-N)","SSN/TIN Number Indicator\n(O-1-A/N)","SSN/TIN Number\n(O-9-A/N)","Branch ID Number\n(R-9-A/N)","Account Representative/Advisor Number\n(O-9-A/N)","Name Indicator 1\n(OC-1-A/N)","Name 1\n(O-35-A/N)","Name Indicator 2\n(OC-1-A/N)","Name 2\n(O-35-A/N)","Commission Rate\n(O-8-N)","Gross Amount of Trade\n(O-16-N)","Custodian Name\n(O-35-A/N)","Custodian Tax Identification Number\n(O-9-A/N)","Account Registration Name\n(O-35-A/N)","Share Lot Identifier\n(O-8-N)","Custodian Name -  Extended\n(O-40-A/N)","Account Registration Name - Extended\n(O-160-A/N)","Series NSCC Security Issue Number\n(OC-16-A/N)","Related Control Number\n(OC-20-A/N)","ToBeExecuted"]
["0699","","","","","","|NoTag|","|NoTag|","|NoTag|","|NoTag|","","|NoTag|","","","","","","|NoTag|","","","","","","|NoTag|","|NoTag|","","|NoTag|","|NoTag|","|NoTag|","","","","","|NoTag|","","|NoTag|","|NoTag|","","|NoTag|","","|NoTag|","","|NoTag|","|NoTag|","|NoTag|","|NoTag|","|NoTag|","|NoTag|","|NoTag|","|NoTag|","|NoTag|","","","No"]

{"sheet":"Commission_DD","index":30,"n_rows":54,"n_cols":7,"rows_kept":54,"cut":false,"hidden":true,"merged":[]}
["Field Name","Start","End","Length","Type","Opt/Req","Default2Zero"]
["Record Length",1,4,4,"N","R","NO"]
["Originator Type",5,5,1,"A/N","R"]
["Firm Number",6,13,8,"A/N","R"]
["Fund Number",14,21,8,"A/N","R"]
["Record Type",22,24,3,"A/N","R"]
["NSCC Security Issue Number",25,40,16,"A/N","OC"]
["NSCC Sidepocket ID",41,43,3,"A/N","O"]
["Share Class",44,51,8,"A/N","O"]
["Security Identifier",52,52,1,"A/N","O"]
["Security Issue ID",53,64,12," A/N","O"]
["Control Number",65,84,20,"A/N","R"]
["Filler",85,102,18,"A/N","R"]
["NSCC Reject Indicator",103,103,1,"A/N","R"]
["NSCC Reject Reason Code 1",104,107,4,"A/N","R"]
["NSCC Reject Reason Code 2",108,111,4,"A/N","R"]
["NSCC Reject Reason Code 3",112,115,4,"A/N","R"]
["NSCC Reject Reason Code 4",116,119,4,"A/N","R"]
["Filler",120,121,2,"A/N","R"]
["Settlement Date",122,129,8,"N","R","NO"]
["Settlement Indicator",130,130,1,"A/N","R"]
["Network Control Indicator",131,131,1,"A/N","R"]
["Firm Account Number",132,151,20,"A/N","OC"]
["Fund Account Number",152,171,20,"A/N","OC"]
["Account Type",172,173,2,"A/N","O"]
["Filler",174,179,6,"A/N","R"]
["Currency Indicator",180,182,3,"A/N","R"]
["Share Quantity",183,196,14,"N","O"]
["Trade Date",197,204,8,"N","O","NO"]
["Price Per Share",205,216,12,"N","O"]
["Debit/Credit Indicator",217,217,1,"A/N","R"]
["Debit Reason Code",218,218,1,"A/N","OC"]
["Fund Processing Date",219,226,8,"N","R","NO"]
["Commission Type",227,228,2,"A/N","R"]
["Filler",229,236,8,"A/N","R"]
["Commission Amount",237,252,16,"N","R","NO"]
["SSN/TIN Number Indicator",253,253,1,"A/N","O"]
["SSN/TIN Number",254,262,9,"A/N","O"]
["Branch ID Number",263,271,9,"A/N","R"]
["Account Representative/Advisor Number",272,280,9,"A/N","O"]
["Name Indicator 1",281,281,1,"A/N","OC"]
["Name 1",282,316,35,"A/N","O"]
["Name Indicator 2",317,317,1,"A/N","OC"]
["Name 2",318,352,35,"A/N","O"]
["Commission Rate",353,360,8,"N","O"]
["Gross Amount of Trade",361,376,16,"N","O"]
["Custodian Name",377,411,35,"A/N","O"]
["Custodian Tax Identification Number",412,420,9,"A/N","O"]
["Account Registration Name",421,455,35,"A/N","O"]
["Share Lot Identifier",456,463,8,"N","O","NO"]
["Custodian Name -  Extended",464,503,40,"A/N","O"]
["Account Registration Name - Extended",504,663,160,"A/N","O"]
["Series NSCC Security Issue Number",664,679,16,"A/N","OC"]
["Related Control Number",680,699,20,"A/N","OC"]

{"sheet":"Position","index":31,"n_rows":3,"n_cols":86,"rows_kept":3,"cut":false,"hidden":false,"merged":[[0,2,0,12]]}
["Last Update timestamp : 21-05-17 11:37:14 by Musielak, Victor A.",null,"052 = Position\n\nNote – Red=Required, Blue=Optional, Black=Optional Conditional (see Data Dictionary for condition)"]
["Record Length\n(R-4-N)","Originator Type\n(R-1-A/N)","Firm Number\n(R-8-A/N)","Fund Number\n(R-8-A/N)","Record Type\n(R-3-A/N)","NSCC Security Issue Number\n(OC-16-A/N)","NSCC Sidepocket ID\n(O-3-A/N)","Share Class\n(O-8-A/N)","Security Identifier\n(O-1-A/N)","Security Issue ID\n(O-12-A/N)","Filler\n(R-38-A/N)","NSCC Reject Indicator\n(R-1-A/N)","NSCC Reject Reason Code 1\n(R-4-A/N)","NSCC Reject Reason Code 2\n(R-4-A/N)","NSCC Reject Reason Code 3\n(R-4-A/N)","NSCC Reject Reason Code 4\n(R-4-A/N)","Hybrid Responsibility Indicator\n(OC-1-A/N)","Account Open Date\n(O-8-N)","Account Type\n(O-2-A/N)","Network Control Indicator\n(R-1-A/N)","Firm Account Number\n(OC-20-A/N)","Fund Account Number\n(OC-20-A/N)","NAV Effective Date\n(O-8-N)","Balance Currency\n(R-3-A/N)","Reporting Currency\n(O-3-A/N)","Base Currency\n(O-3-A/N)","Previous Money Value\n(O-16-N)","Previous Share Balance\n(O-14-N)","Previous Value Date\n(O-8-N)","Closing Money Value\n(OC-16-N)","Closing Share Balance\n(OC-14-N)","Closing Balance Date\n(R-8-N)","Lock Up Start Date\n(O-8-N)","Lock Up End Date\n(O-8-N)","Series Roll Up Date\n(O-8-N)","Highwater Mark\n(O-16-N)","Hurdle Rate\n(O-6-N)","NAV\n(R-16-N)","Custodian Name\n(O-35-A/N)","Custodian Tax Identification Number\n(O-9-A/N)","Account Registration Name\n(O-35-A/N)","YTD Performance\n(O-4-N)","YTD Performance Positive/Negative Indicator\n(O-1-A/N)","Invested Value\n(O-16-N)","GAV\n(O-16-N)","Inception Date\n(O-8-N)","YTD Return\n(O-4-N)","YTD   Positive/Negative Indicator\n(O-1-A/N)","VAR(95%)\n(O-4-N)","VAR Positive/Negative Indicator\n(O-1-A/N)","Sharpe Ratio\n(O-4-N)","Sharpe Ratio Positive/Negative Indicator\n(O-1-A/N)","Sortino Ratio\n(O-4-N)","Sortino Ratio Positive/Negative Indicator\n(O-1-A/N)","Total Commitment Amount\n(O-16-N)","Fulfilled Commitment Amount\n(O-16-N)","Remaining Commitment Amount\n(O-16-N)","Month to Date Return\n(O-4-N)","Month to Date Return Indicator\n(O-1-A/N)","Quarter to Date Return\n(O-4-N)","Quarter to Date Return Indicator\n(O-1-A/N)","Return since Inception\n(O-4-N)","Return Since Inception Indicator\n(O-1-A/N)","Number of Shares in Lock Up\n(O-14-N)","Value of Lock Up Assets\n(O-16-N)","Number of Unaged Shares for Redemption Fee\n(O-14-N)","Holdback Position  Number of Shares\n(O-14-N)","Value of Holdback Position\n(O-16-N)","Interest Included Indicator\n(O-1-A/N)","Account Registration Name - Extended\n(O-160-A/N)","Custodian Name - Extended\n(O-40-A/N)","SSN/TIN/EIN Indicator\n(O-1-A/N)","SSN/TIN/EIN Number\n(O-9-A/N)","Series NSCC Security Issue Number\n(OC-16-A/N)","Account Representative/Advisor Number\n(O-9-A/N)","Account Representative/Advisor Name\n(O-15-A/N)","Branch ID Number\n(O-9-A/N)","Dividend Option\n(O-1-A/N)","Pending Money Value\n(O-16-N)","ITD Outside Commitment Contributions\n(O-16-N)","ITD Fees and Expenses\n(O-16-N)","ITD Contributions\n(O-16-N)","ITD Non Recallable Distributions to Date\n(O-16-N)","ITD Recallable Distributions to Date\n(O-16-N)","ITD Distributions to Date\n(O-16-N)","ToBeExecuted"]
["0980","","","","","","|NoTag|","|NoTag|","|NoTag|","|NoTag|","|NoTag|","","","","","","","|NoTag|","|NoTag|","","","","|NoTag|","","|NoTag|","|NoTag|","|NoTag|","|NoTag|","|NoTag|","","","","|NoTag|","|NoTag|","|NoTag|","|NoTag|","|NoTag|","","|NoTag|","|NoTag|","|NoTag|","|NoTag|","|NoTag|","|NoTag|","|NoTag|","|NoTag|","|NoTag|","|NoTag|","|NoTag|","|NoTag|","|NoTag|","|NoTag|","|NoTag|","|NoTag|","|NoTag|","|NoTag|","|NoTag|","|NoTag|","|NoTag|","|NoTag|","|NoTag|","|NoTag|","|NoTag|","|NoTag|","|NoTag|","|NoTag|","|NoTag|","|NoTag|","|NoTag|","|NoTag|","|NoTag|","|NoTag|","|NoTag|","","|NoTag|","|NoTag|","|NoTag|","|NoTag|","|NoTag|","|NoTag|","|NoTag|","|NoTag|","|NoTag|","|NoTag|","|NoTag|","No"]

{"sheet":"Position_DD","index":32,"n_rows":86,"n_cols":7,"rows_kept":86,"cut":false,"hidden":true,"merged":[]}
["Field Name","Start","End","Length","Type","Opt/Req","Default2Zero"]
["Record Length",1,4,4,"N","R","NO"]
["Originator Type",5,5,1,"A/N","R"]
["Firm Number",6,13,8,"A/N","R"]
["Fund Number",14,21,8,"A/N","R"]
["Record Type",22,24,3,"A/N","R"]
["NSCC Security Issue Number",25,40,16,"A/N","OC"]
["NSCC Sidepocket ID",41,43,3,"A/N","O"]
["Share Class",44,51,8,"A/N","O"]
["Security Identifier",52,52,1,"A/N","O"]
["Security Issue ID",53,64,12,"A/N","O"]
["Filler",65,102,38,"A/N","R"]
["NSCC Reject Indicator",103,103,1,"A/N","R"]
["NSCC Reject Reason Code 1",104,107,4,"A/N","R"]
["NSCC Reject Reason Code 2",108,111,4,"A/N","R"]
["NSCC Reject Reason Code 3",112,115,4,"A/N","R"]
["NSCC Reject Reason Code 4",116,119,4,"A/N","R"]
["Hybrid Responsibility Indicator",120,120,1,"A/N","OC"]
["Account Open Date",121,128,8,"N","O","NO"]
["Account Type",129,130,2,"A/N","O"]
["Network Control Indicator",131,131,1,"A/N","R"]
["Firm Account Number",132,151,20,"A/N","OC"]
["Fund Account Number",152,171,20,"A/N","OC"]
["NAV Effective Date",172,179,8,"N","O","NO"]
["Balance Currency",180,182,3,"A/N"," R"]
["Reporting Currency",183,185,3,"A/N","O"]
["Base Currency",186,188,3,"A/N","O"]
["Previous Money Value",189,204,16,"N","O"]
["Previous Share Balance",205,218,14,"N","O"]
["Previous Value Date",219,226,8,"N","O","NO"]
["Closing Money Value",227,242,16,"N","OC"]
["Closing Share Balance",243,256,14,"N","OC"]
["Closing Balance Date",257,264,8,"N","R","NO"]
["Lock Up Start Date",265,272,8,"N","O","NO"]
["Lock Up End Date",273,280,8,"N","O","NO"]
["Series Roll Up Date",281,288,8,"N","O","NO"]
["Highwater Mark",289,304,16,"N","O"]
["Hurdle Rate",305,310,6,"N","O"]
["NAV",311,326,16,"N","R","NO"]
["Custodian Name",327,361,35,"A/N","O"]
["Custodian Tax Identification Number",362,370,9,"A/N","O"]
["Account Registration Name",371,405,35,"A/N","O"]
["YTD Performance",406,409,4,"N","O"]
["YTD Performance Positive/Negative Indicator",410,410,1,"A/N","O"]
["Invested Value",411,426,16,"N","O"]
["GAV",427,442,16,"N","O"]
["Inception Date",443,450,8,"N","O","NO"]
["YTD Return",451,454,4,"N","O"]
["YTD   Positive/Negative Indicator",455,455,1,"A/N","O"]
["VAR(95%)",456,459,4,"N","O"]
["VAR Positive/Negative Indicator",460,460,1,"A/N","O"]
["Sharpe Ratio",461,464,4,"N","O"]
["Sharpe Ratio Positive/Negative Indicator",465,465,1,"A/N","O"]
["Sortino Ratio",466,469,4,"N","O"]
["Sortino Ratio Positive/Negative Indicator",470,470,1,"A/N","O"]
["Total Commitment Amount",471,486,16,"N","O"]
["Fulfilled Commitment Amount",487,502,16,"N","O"]
["Remaining Commitment Amount",503,518,16,"N","O"]
["Month to Date Return",519,522,4,"N","O"]
["Month to Date Return Indicator",523,523,1,"A/N","O"]
["Quarter to Date Return",524,527,4,"N","O"]
["Quarter to Date Return Indicator",528,528,1,"A/N","O"]
["Return since Inception",529,532,4,"N","O"]
["Return Since Inception Indicator",533,533,1,"A/N","O"]
["Number of Shares in Lock Up",534,547,14,"N","O"]
["Value of Lock Up Assets",548,563,16,"N","O"]
["Number of Unaged Shares for Redemption Fee",564,577,14,"N","O"]
["Holdback Position  Number of Shares",578,591,14,"N","O"]
["Value of Holdback Position",592,607,16,"N","O"]
["Interest Included Indicator",608,608,1,"A/N","O"]
["Account Registration Name - Extended",609,768,160,"A/N","O"]
["Custodian Name - Extended",769,808,40,"A/N","O"]
["SSN/TIN/EIN Indicator",809,809,1,"A/N","O"]
["SSN/TIN/EIN Number",810,818,9,"A/N","O"]
["Series NSCC Security Issue Number",819,834,16,"A/N","OC"]
["Account Representative/Advisor Number",835,843,9,"A/N","O"]
["Account Representative/Advisor Name",844,858,15,"A/N","O"]
["Branch ID Number",859,867,9,"A/N","O"]
["Dividend Option",{"$f":"$C78+1","v":868},{"$f":"$B79+$D79-1","v":868},1,"A/N","O"]
["Pending Money Value",869,884,16,"N","O"]
["ITD Outside Commitment Contributions",885,900,16,"N","O"]
["ITD Fees and Expenses",901,916,16,"N","O"]
["ITD Contributions",917,932,16,"N","O"]
["ITD Non Recallable Distributions to Date",933,948,16,"N","O"]
["ITD Recallable Distributions to Date",949,964,16,"N","O"]
["ITD Distributions to Date",965,980,16,"N","O"]

{"sheet":"Electronic Documentation","index":33,"n_rows":3,"n_cols":26,"rows_kept":3,"cut":false,"hidden":false,"merged":[[0,2,0,12]]}
["Last Update timestamp : 21-11-05 13:09:40 by Musielak, Victor A.",null,"094 = Electronic Documentation Acknowledgement  by Fund \n095 = Electronic Documentation Reject by Fund  \n096 = Electronic Documentation Accepted by Fund  \n\nNote – Red=Required, Blue=Optional, Black=Optional Conditional (see Data Dictionary for condition)"]
["Record Length\n(R-4-N)","Originator Type\n(R-1-A/N)","Firm Number\n(R-8-A/N)","Fund Number\n(R-8-A/N)","Record Type\n(R-3-A/N)","NSCC Security Issue Number\n(OC-16-A/N)","NSCC Sidepocket ID\n(O-3-A/N)","Share Class\n(O-8-A/N)","Control Number\n(R-20-A/N)","Version Number\n(R-2-N)","Filler\n(R-29-A/N)","NSCC Reject Indicator\n(R-1-A/N)","NSCC Reject Reason Code 1\n(R-4-A/N)","NSCC Reject Reason Code 2\n(R-4-A/N)","NSCC Reject Reason Code 3\n(R-4-A/N)","NSCC Reject Reason Code 4\n(R-4-A/N)","Filler\n(R-61-A/N)","Series NSCC Security Issue Number\n(OC-16-A/N)","Fund Reject Indicator\n(OC-1-A/N)","Fund Reject Reason Code 1\n(OC-4-A/N)","Fund Reject Reason Code 2\n(O-4-A/N)","Fund Reject Reason Code 3\n(O-4-A/N)","Fund Reject Reason Code 4\n(O-4-A/N)","Filler\n(R-50-A/N)","Fund Reject Description\n(OC-2000-A/N)","ToBeExecuted"]
["2263","","","","","","|NoTag|","|NoTag|","","","|NoTag|","","","","","","|NoTag|","","","","|NoTag|","|NoTag|","|NoTag|","|NoTag|","","No"]

{"sheet":"Electronic Documentation_DD","index":34,"n_rows":26,"n_cols":7,"rows_kept":26,"cut":false,"hidden":true,"merged":[]}
["Field Name","Start","End","Length","Type","Opt/Req","Default2Zero"]
["Record Length",1,4,4,"N","R","NO"]
["Originator Type",5,5,1,"A/N","R"]
["Firm Number",6,13,8,"A/N","R"]
["Fund Number",14,21,8,"A/N","R"]
["Record Type",22,24,3,"A/N","R"]
["NSCC Security Issue Number",25,40,16,"A/N","OC"]
["NSCC Sidepocket ID",41,43,3,"A/N","O"]
["Share Class",44,51,8,"A/N","O"]
["Control Number",52,71,20,"A/N","R"]
["Version Number",72,73,2,"N","R","NO"]
["Filler",74,102,29,"A/N","R"]
["NSCC Reject Indicator",103,103,1,"A/N","R"]
["NSCC Reject Reason Code 1",104,107,4,"A/N","R"]
["NSCC Reject Reason Code 2",108,111,4,"A/N","R"]
["NSCC Reject Reason Code 3",112,115,4,"A/N","R"]
["NSCC Reject Reason Code 4",116,119,4,"A/N","R"]
["Filler",120,180,61,"A/N","R"]
["Series NSCC Security Issue Number",181,196,16,"A/N","OC"]
["Fund Reject Indicator",197,197,1,"A/N","OC"]
["Fund Reject Reason Code 1",198,201,4,"A/N","OC"]
["Fund Reject Reason Code 2",202,205,4,"A/N","O"]
["Fund Reject Reason Code 3",206,209,4,"A/N","O"]
["Fund Reject Reason Code 4",210,213,4,"A/N","O"]
["Filler",214,263,50,"A/N","R"]
["Fund Reject Description",264,2263,2000,"A/N","OC"]

{"sheet":"Document Transfer Manifest","index":35,"n_rows":3,"n_cols":19,"rows_kept":3,"cut":false,"hidden":false,"merged":[[0,2,0,12]]}
["Last Update timestamp : 22-07-26 11:38:56 by Musielak, Victor A.",null,"799 = Document Transfer Manifest \n\n\nNote – Red=Required, Blue=Optional, Black=Optional Conditional (see Data Dictionary for condition)"]
["Record Length\n(R-4-N)","Originator Type\n(R-1-A/N)","Sender Number\n(R-8-A/N)","Recipient Number\n(R-8-A/N)","Record Type\n(R-3-A/N)","NSCC Security Issue Number\n(OC-16-A/N)","Control Number\n(R-20-A/N)","Version Number\n(R-2-A/N)","Transaction Type\n(R-2-A/N)","Related Transaction Indicator\n(R-1-N)","Firm Account Number\n(O-20-A/N)","Fund Account Number\n(O-20-A/N)","Series NSCC Security Issue Number\n(OC-16-A/N)","NSCC Reject Indicator\n(R-1-A/N)","NSCC Reject Reason Code 1\n(R-4-A/N)","NSCC Reject Reason Code 2\n(R-4-A/N)","NSCC Reject Reason Code 3\n(R-4-A/N)","NSCC Reject Reason Code 4\n(R-4-A/N)","ToBeExecuted"]
["0138","","","","","","","","","","|NoTag|","|NoTag|","","","","","","","No"]

{"sheet":"Document Transfer Manifest_DD","index":36,"n_rows":19,"n_cols":7,"rows_kept":19,"cut":false,"hidden":true,"merged":[]}
["Field Name","Start","End","Length","Type","Opt/Req","Default2Zero"]
["Record Length",1,{"$f":"$B2+$D2-1","v":4},4,"N","R ","NO"]
["Originator Type",{"$f":"+C2+1","v":5},{"$f":"$B3+$D3-1","v":5},1,"A/N","R "]
["Sender Number",{"$f":"+C3+1","v":6},13,8,"A/N","R "]
["Recipient Number",14,21,8,"A/N","R"]
["Record Type",22,24,3,"A/N","R "]
["NSCC Security Issue Number",25,40,16,"A/N","OC"]
["Control Number",41,60,20,"A/N","R "]
["Version Number",61,62,2,"A/N","R"]
["Transaction Type",63,64,2,"A/N","R"]
["Related Transaction Indicator",65,65,1,"N","R","NO"]
["Firm Account Number",66,85,20,"A/N","O"]
["Fund Account Number",86,105,20,"A/N","O"]
["Series NSCC Security Issue Number",106,121,16,"A/N","OC"]
["NSCC Reject Indicator",122,122,1,"A/N","R"]
["NSCC Reject Reason Code 1",{"$f":"$C15+1","v":123},126,4,"A/N","R"]
["NSCC Reject Reason Code 2",127,130,4,"A/N","R"]
["NSCC Reject Reason Code 3",131,134,4,"A/N","R"]
["NSCC Reject Reason Code 4",135,138,4,"A/N","R"]

{"sheet":"Document Transfer Ackn-Rej","index":37,"n_rows":3,"n_cols":18,"rows_kept":3,"cut":false,"hidden":false,"merged":[[0,2,0,6]]}
["Last Update timestamp : 22-07-26 11:45:24 by Musielak, Victor A.",null,"091 = Document Transfer Acknowldegement \n092 = Document Transfer Reject\n\nNote – Red=Required, Blue=Optional, Black=Optional Conditional (see Data Dictionary for condition)"]
["Record Length\n(R-4-N)","Originator Type\n(R-1-A/N)","Sender Number\n(R-8-A/N)","Recipient Number\n(R-8-A/N)","Record Type\n(R-3-A/N)","NSCC Security Issue Number\n(OC-16-A/N)","Filler\n(R-11-A/N)","Control Number\n(R-20-A/N)","Version Number\n(R-2-A/N)","Submission Date\n(R-8-N)","Series NSCC Security Issue Number\n(OC-16-A/N)","Filler\n(R-7-A/N)","NSCC Reject Indicator\n(R-1-A/N)","NSCC Reject Reason Code 1\n(R-4-A/N)","NSCC Reject Reason Code 2\n(R-4-A/N)","NSCC Reject Reason Code 3\n(R-4-A/N)","NSCC Reject Reason Code 4\n(R-4-A/N)","ToBeExecuted"]
["0121","","","","",null,"|NoTag|","","","","","|NoTag|","","","","","","No"]

{"sheet":"Document Transfer Ackn-Rej_DD","index":38,"n_rows":18,"n_cols":7,"rows_kept":18,"cut":false,"hidden":true,"merged":[]}
["Field Name","Start","End","Length","Type","Opt/Req","Default2Zero"]
["Record Length",1,{"$f":"$B2+$D2-1","v":4},4,"N","R","No"]
["Originator Type",{"$f":"$C2+1","v":5},{"$f":"$B3+$D3-1","v":5},1,"A/N","R"]
["Sender Number",{"$f":"$C3+1","v":6},13,8,"A/N","R"]
["Recipient Number",14,21,8,"A/N","R"]
["Record Type",22,24,3,"A/N","R"]
["NSCC Security Issue Number",25,40,16,"A/N","OC"]
["Filler",41,51,11,"A/N","R"]
["Control Number",52,71,20,"A/N","R"]
["Version Number",72,73,2,"A/N","R"]
["Submission Date",74,81,8,"N","R","No"]
["Series NSCC Security Issue Number",82,97,16,"A/N","OC"]
["Filler",98,104,7,"A/N","R"]
["NSCC Reject Indicator",105,105,1,"A/N","R"]
["NSCC Reject Reason Code 1",106,109,4,"A/N","R"]
["NSCC Reject Reason Code 2",110,113,4,"A/N","R"]
["NSCC Reject Reason Code 3",114,117,4,"A/N","R"]
["NSCC Reject Reason Code 4",118,121,4,"A/N","R"]

{"sheet":"Valuation","index":39,"n_rows":3,"n_cols":40,"rows_kept":3,"cut":false,"hidden":false,"merged":[[0,2,0,12]]}
["Last Update timestamp : 20-04-20 12:33:48 by Musielak, Victor A.",null,"060  = Valuation\n\nNote – Red=Required, Blue=Optional, Black=Optional Conditional (see Data Dictionary for condition)"]
["Record Length\n(R-4-N)","Originator Type\n(R-1-A/N)","Recipient Number\n(R-8-A/N)","Fund Number\n(R-8-A/N)","Record Type\n(R-3-A/N)","NSCC Security Issue Number\n(OC-16-A/N)","Filler\n(R-3-A/N)","Share Class\n(O-8-A/N)","Security Identifier\n(O-1-A/N)","Security Issue ID\n(O-12-A/N)","Filler\n(R-21-A/N)","Submission Date\n(R-8-N)","Filler\n(R-9-A/N)","NSCC Reject Indicator\n(R-1-A/N)","NSCC Reject Reason Code 1\n(R-4-A/N)","NSCC Reject Reason Code 2\n(R-4-A/N)","NSCC Reject Reason Code 3\n(R-4-A/N)","NSCC Reject Reason Code 4\n(R-4-A/N)","Estimated or Actual Indicator\n(R-1-A/N)","Filler\n(R-43-A/N)","Reporting Currency\n(R-3-A/N)","Filler\n(R-15-A/N)","Value Correction Indicator\n(O-1-A/N)","Reporting Currency Gross Net Asset Value (GAV)\n(O-16-N)","Reporting Currency Percentage\n(O-6-N)","Reporting Currency Units\n(O-10-N)","Filler\n(R-8-A/N)","Series NSCC Security Issue Number\n(OC-16-A/N)","Fair Market Value\n(O-16-N)","Estimated Value indicator\n(O-2-A/N)","Primary Valuation Method\n(R-2-A/N)","Primary Value\n(R-16-N)","Primary Value as of Date\n(R-8-N)","Secondary Valuation Method\n(OC-2-A/N)","Secondary Value\n(OC-16-N)","Secondary Value as of Date\n(OC-8-N)","Tertiary Valuation Method\n(OC-2-A/N)","Tertiary Value\n(OC-16-N)","Tertiary Value as of Date\n(OC-8-N)","ToBeExecuted"]
["0334","","","","",null,"|NoTag|","|NoTag|","|NoTag|","|NoTag|","|NoTag|","","|NoTag|","","","","","","","|NoTag|","","|NoTag|","|NoTag|","|NoTag|","|NoTag|","|NoTag|","|NoTag|","","|NoTag|","|NoTag|","","","","","","","","","","No"]

{"sheet":"Valuation_DD","index":40,"n_rows":40,"n_cols":7,"rows_kept":40,"cut":false,"hidden":true,"merged":[]}
["Field Name","Start","End","Length","Type","Opt/Req","Default2Zero"]
["Record Length",1,4,4,"N","R","NO"]
["Originator Type",5,5,1,"A/N","R"]
["Recipient Number",6,13,8,"A/N","R"]
["Fund Number",14,21,8,"A/N","R"]
["Record Type",22,24,3,"A/N","R"]
["NSCC Security Issue Number",25,40,16,"A/N","OC"]
["Filler",41,43,3,"A/N","R"]
["Share Class",44,51,8,"A/N","O"]
["Security Identifier",52,52,1,"A/N","O"]
["Security Issue ID",53,64,12,"A/N","O"]
["Filler",65,85,21,"A/N","R"]
["Submission Date",86,93,8,"N","R","NO"]
["Filler",94,102,9,"A/N","R"]
["NSCC Reject Indicator",103,103,1,"A/N","R"]
["NSCC Reject Reason Code 1",104,107,4,"A/N","R"]
["NSCC Reject Reason Code 2",108,111,4,"A/N","R"]
["NSCC Reject Reason Code 3",112,115,4,"A/N","R"]
["NSCC Reject Reason Code 4",116,119,4,"A/N","R"]
["Estimated or Actual Indicator",120,120,1,"A/N","R"]
["Filler",121,163,43,"A/N","R"]
["Reporting Currency",164,166,3,"A/N","R"]
["Filler",167,181,15,"A/N","R"]
["Value Correction Indicator",182,182,1,"A/N","O"]
["Reporting Currency Gross Net Asset Value (GAV)",183,198,16,"N","O"]
["Reporting Currency Percentage",199,204,6,"N","O","NO"]
["Reporting Currency Units",205,214,10,"N","O","NO"]
["Filler",215,222,8,"A/N","R"]
["Series NSCC Security Issue Number",223,238,16,"A/N","OC"]
["Fair Market Value",239,254,16,"N","O","NO"]
["Estimated Value indicator",255,256,2,"A/N","O"]
["Primary Valuation Method",257,258,2,"A/N","R"]
["Primary Value",{"$f":"$C32+1","v":259},{"$f":"$B33+$D33-1","v":274},16,"N","R","NO"]
["Primary Value as of Date",275,282,8,"N","R","NO"]
["Secondary Valuation Method",283,284,2,"A/N","OC"]
["Secondary Value",285,300,16,"N","OC","NO"]
["Secondary Value as of Date",301,308,8,"N","OC","NO"]
["Tertiary Valuation Method",309,310,2,"A/N","OC"]
["Tertiary Value",311,326,16,"N","OC","NO"]
["Tertiary Value as of Date",327,334,8,"N","OC","NO"]

{"sheet":"Account Transfer","index":41,"n_rows":3,"n_cols":43,"rows_kept":3,"cut":false,"hidden":false,"merged":[[0,2,0,12]]}
["Last Update timestamp : 20-04-20 14:18:38 by Musielak, Victor A.",null,"201  = Account Transfer\n\nNote – Red=Required, Blue=Optional, Black=Optional Conditional (see Data Dictionary for condition)"]
["Record Length\n(R-4-N)","Originator Type\n(R-1-A/N)","Firm Number\n(R-8-A/N)","Fund Number\n(R-8-A/N)","Record Type\n(R-3-A/N)","NSCC Security Issue Number\n(OC-16-A/N)","NSCC Sidepocket ID\n(O-3-A/N)","Share Class\n(O-8-A/N)","Security Identifier\n(O-1-A/N)","Security Issue ID\n(O-12-A/N)","Filler\n(R-38-A/N)","NSCC Reject Indicator\n(R-1-A/N)","NSCC Reject Reason Code 1\n(R-4-A/N)","NSCC Reject Reason Code 2\n(R-4-A/N)","NSCC Reject Reason Code 3\n(R-4-A/N)","NSCC Reject Reason Code 4\n(R-4-A/N)","Filler\n(R-10-A/N)","Unitized Indicator\n(R-1-A/N)","Series NSCC Security Issue Number\n(OC-16-A/N)","Filler\n(R-8-A/N)","Control Number\n(R-20-A/N)","Submission Date\n(R-8-N)","Effective Date\n(R-8-N)","Money Amount\n(OC-16-N)","Transaction Type\n(R-2-A/N)","Transaction Code\n(R-2-A/N)","Transfer Type\n(R-2-A/N)","Transfer Reason Code\n(O-2-A/N)","Date of Death\n(OC-8-N)","Date of Gift\n(OC-8-N)","Trading Model\n(R-1-A/N)","ACATS Related Control Number\n(O-20-A/N)","Delivering Firm Account Number\n(OC-20-A/N)","Delivering Fund Account Number\n(OC-20-A/N)","Delivering Closing Balance Amount\n(O-16-N)","Receiving Firm Account Number\n(OC-20-A/N)","Receiving Fund Account Number\n(OC-20-A/N)","Receiving Closing Balance Amount\n(O-16-N)","Share Quantity\n(OC-16-N)","RIA/RR Indicator\n(OC-1-A/N)","Delivering Introducing Broker Dealer Firm Name/Registered Investment Advisor Firm Name\n(OC-35-A/N)","Receiving Introducing Broker Dealer Firm Name/Registered Investment Advisor Firm Name\n(OC-35-A/N)","ToBeExecuted"]
["0450","","","","","","|NoTag|","|NoTag|","|NoTag|","|NoTag|","|NoTag|","","","","","","|NoTag|","","","|NoTag|","","","","","","","","|NoTag|","","","","|NoTag|","","","|NoTag|","","","|NoTag|","","","","","No"]

{"sheet":"Account Transfer_DD","index":42,"n_rows":43,"n_cols":7,"rows_kept":43,"cut":false,"hidden":true,"merged":[]}
["Field Name","Start","End","Length","Type","Opt/Req","Default2Zero"]
["Record Length",1,{"$f":"$B2+$D2-1","v":4},4,"N","R ","No"]
["Originator Type",{"$f":"$C2+1","v":5},{"$f":"$B3+$D3-1","v":5},1,"A/N","R "]
["Firm Number",{"$f":"$C3+1","v":6},13,8,"A/N","R "]
["Fund Number",14,21,8,"A/N","R "]
["Record Type",22,24,3,"A/N","R "]
["NSCC Security Issue Number",{"$f":"$C6+1","v":25},40,16,"A/N","OC "]
["NSCC Sidepocket ID",41,43,3,"A/N","O "]
["Share Class",44,51,8,"A/N","O"]
["Security Identifier",{"$f":"$C9+1","v":52},52,1,"A/N","O"]
["Security Issue ID",53,64,12,"A/N","O"]
["Filler",{"$f":"$C11+1","v":65},102,38,"A/N","R"]
["NSCC Reject Indicator",103,103,1,"A/N","R"]
["NSCC Reject Reason Code 1",104,107,4,"A/N","R"]
["NSCC Reject Reason Code 2",108,111,4,"A/N","R"]
["NSCC Reject Reason Code 3",112,115,4,"A/N","R"]
["NSCC Reject Reason Code 4",116,119,4,"A/N","R"]
["Filler",120,129,10,"A/N","R"]
["Unitized Indicator",130,130,1,"A/N","R"]
["Series NSCC Security Issue Number",131,146,16,"A/N","OC "]
["Filler",{"$f":"$C20+1","v":147},154,8,"A/N","R"]
["Control Number",155,174,20,"A/N","R "]
["Submission Date",175,182,8,"N","R","No"]
["Effective Date",183,190,8,"N","R ","No"]
["Money Amount",191,206,16,"N","OC","No"]
["Transaction Type",207,208,2,"A/N","R "]
["Transaction Code",209,210,2,"A/N","R"]
["Transfer Type",211,212,2,"A/N","R "]
["Transfer Reason Code",213,214,2,"A/N","O"]
["Date of Death",215,222,8,"N","OC","No"]
["Date of Gift",223,230,8,"N","OC","No"]
["Trading Model",231,231,1,"A/N","R"]
["ACATS Related Control Number",232,251,20,"A/N","O"]
["Delivering Firm Account Number",252,271,20,"A/N","OC "]
["Delivering Fund Account Number",272,291,20,"A/N","OC "]
["Delivering Closing Balance Amount",292,307,16,"N","O ","No"]
["Receiving Firm Account Number",308,327,20,"A/N","OC "]
["Receiving Fund Account Number",328,347,20,"A/N","OC "]
["Receiving Closing Balance Amount",348,363,16,"N","O ","No"]
["Share Quantity",364,379,16,"N","OC","No"]
["RIA/RR Indicator",380,380,1,"A/N","OC"]
["Delivering Introducing Broker Dealer Firm Name/Registered Investment Advisor Firm Name",{"$f":"$C41+1","v":381},415,35,"A/N ","OC"]
["Receiving Introducing Broker Dealer Firm Name/Registered Investment Advisor Firm Name",416,450,35,"A/N","OC"]

{"sheet":"AcctTrnsf Ackn-Rej-Exit","index":43,"n_rows":3,"n_cols":47,"rows_kept":3,"cut":false,"hidden":false,"merged":[[0,2,0,12]]}
["Last Update timestamp : 20-04-20 14:58:04 by Musielak, Victor A.",null,"202 = Fund Account Transfer Acknowledgement\n203 = Fund Reject of Account Transfer\n204 = Firm Reject of Account Transfer\n205 = Fund Exit of Account Transfer\n206 = Firm Exit of Account Transfer \n\nNote – Red=Required, Blue=Optional, Black=Optional Conditional (see Data Dictionary for condition)"]
["Record Length\n(R-4-N)","Originator Type\n(R-1-A/N)","Firm Number\n(R-8-A/N)","Fund Number\n(R-8-A/N)","Record Type\n(R-3-A/N)","NSCC Security Issue Number\n(OC-16-A/N)","NSCC Sidepocket ID\n(O-3-A/N)","Share Class\n(O-8-A/N)","Security Identifier\n(O-1-A/N)","Security Issue ID\n(O-12-A/N)","Series NSCC Security Issue Number\n(OC-16-A/N)","Filler\n(R-22-A/N)","NSCC Reject Indicator\n(R-1-A/N)","NSCC Reject Reason Code 1\n(R-4-A/N)","NSCC Reject Reason Code 2\n(R-4-A/N)","NSCC Reject Reason Code 3\n(R-4-A/N)","NSCC Reject Reason Code 4\n(R-4-A/N)","Filler\n(R-11-A/N)","Anticipated Transfer Completion Date\n(R-8-N)","Control Number\n(R-20-A/N)","Submission Date\n(R-8-A/N)","Effective Date\n(R-8-N)","Transfer Type\n(O-2-A/N)","Money Amount\n(O-16-N)","Process Flow Indicator\n(OC-1-A/N)","Filler\n(R-20-A/N)","Receiving Fund Account Number\n(O-20-A/N)","Receiving Closing Balance Amount\n(O-16-N)","Delivering Fund Account Number\n(O-20-A/N)","Delivering Closing Balance Amount\n(O-16-N)","Share Quantity\n(O-16-N)","Transaction Code\n(S-2-A/N)","Transfer Reason Code\n(S-2-A/N)","Transaction Type\n(S-2-A/N)","Date of Death\n(S-8-N)","Date of Gift\n(S-8-N)","Delivering Firm Account Number\n(S-20-A/N)","Receiving Firm Account Number\n(S-20-A/N)","RIA/RR Indicator\n(S-1-A/N)","Delivering Introducing Broker Dealer Firm Name/Registered Investment Advisor Firm Name\n(S-35-A/N)","Receiving Introducing Broker Dealer Firm Name/Registered Investment Advisor Firm Name\n(S-35-A/N)","Fund/Firm Reject Indicator\n(OC-1-A/N)","Fund/Firm Reject Reason Code 1\n(OC-4-A/N)","Fund/Firm Reject Reason Code 2\n(O-4-A/N)","Fund/Firm Reject Reason Code 3\n(O-4-A/N)","Fund/Firm Reject Reason Code 4\n(O-4-A/N)","ToBeExecuted"]
["0451","","","","","","|NoTag|","|NoTag|","|NoTag|","|NoTag|","","|NoTag|","","","","","","|NoTag|","","","","","|NoTag|","|NoTag|","","|NoTag|","|NoTag|","|NoTag|","|NoTag|","|NoTag|","|NoTag|","|NoTag|","|NoTag|","|NoTag|","|NoTag|","|NoTag|","|NoTag|","|NoTag|","|NoTag|","|NoTag|","|NoTag|","","","|NoTag|","|NoTag|","|NoTag|","No"]

{"sheet":"AcctTrnsf Ackn-Rej-Exit_DD","index":44,"n_rows":47,"n_cols":7,"rows_kept":47,"cut":false,"hidden":true,"merged":[]}
["Field Name","Start","End","Length","Type","Opt/Req","Default2Zero"]
["Record Length",1,4,4,"N","R","No"]
["Originator Type",5,5,1,"A/N","R"]
["Firm Number",6,13,8,"A/N","R"]
["Fund Number",14,21,8,"A/N","R"]
["Record Type",22,24,3,"A/N","R"]
["NSCC Security Issue Number",25,40,16,"A/N","OC"]
["NSCC Sidepocket ID",41,43,3,"A/N","O "]
["Share Class",44,51,8,"A/N","O"]
["Security Identifier",52,52,1,"A/N","O"]
["Security Issue ID",53,64,12,"A/N","O"]
["Series NSCC Security Issue Number",65,80,16,"A/N","OC "]
["Filler",81,102,22,"A/N","R"]
["NSCC Reject Indicator",103,103,1,"A/N","R"]
["NSCC Reject Reason Code 1",104,107,4,"A/N","R"]
["NSCC Reject Reason Code 2",108,111,4,"A/N","R"]
["NSCC Reject Reason Code 3",112,115,4,"A/N","R"]
["NSCC Reject Reason Code 4",116,119,4,"A/N","R"]
["Filler",120,130,11,"A/N","R"]
["Anticipated Transfer Completion Date",131,138,8,"N","R","No"]
["Control Number",139,158,20,"A/N","R"]
["Submission Date",159,166,8,"A/N","R"]
["Effective Date",167,174,8,"N","R","No"]
["Transfer Type",175,176,2,"A/N","O"]
["Money Amount",177,192,16,"N","O","No"]
["Process Flow Indicator",193,193,1,"A/N","OC"]
["Filler",194,213,20,"A/N","R"]
["Receiving Fund Account Number",214,233,20,"A/N","O"]
["Receiving Closing Balance Amount",234,249,16,"N","O","No"]
["Delivering Fund Account Number",250,269,20,"A/N","O"]
["Delivering Closing Balance Amount",270,285,16,"N","O","No"]
["Share Quantity",286,301,16,"N","O","No"]
["Transaction Code",302,303,2,"A/N","S "]
["Transfer Reason Code",304,305,2,"A/N","S "]
["Transaction Type",306,307,2,"A/N","S "]
["Date of Death",308,315,8,"N","S ","No"]
["Date of Gift",316,323,8,"N","S ","No"]
["Delivering Firm Account Number",324,343,20,"A/N","S "]
["Receiving Firm Account Number",344,363,20,"A/N","S "]
["RIA/RR Indicator",364,364,1,"A/N","S "]
["Delivering Introducing Broker Dealer Firm Name/Registered Investment Advisor Firm Name",365,399,35,"A/N ","S "]
["Receiving Introducing Broker Dealer Firm Name/Registered Investment Advisor Firm Name",400,434,35,"A/N","S "]
["Fund/Firm Reject Indicator",435,435,1,"A/N","OC"]
["Fund/Firm Reject Reason Code 1",436,439,4,"A/N","OC"]
["Fund/Firm Reject Reason Code 2",440,443,4,"A/N","O"]
["Fund/Firm Reject Reason Code 3",444,447,4,"A/N","O"]
["Fund/Firm Reject Reason Code 4",448,451,4,"A/N","O"]

{"sheet":"AcctTrnsf Conf-Corr","index":45,"n_rows":3,"n_cols":45,"rows_kept":3,"cut":false,"hidden":false,"merged":[[0,2,0,12]]}
["Last Update timestamp : 20-06-24 13:43:11 by Musielak, Victor A.",null,"207 = Confirmation of Account Transfer \n208 = Correction of Account Transfer\n\nNote – Red=Required, Blue=Optional, Black=Optional Conditional (see Data Dictionary for condition)"]
["Record Length\n(R-4-N)","Originator Type\n(R-1-A/N)","Firm Number\n(R-8-A/N)","Fund Number\n(R-8-A/N)","Record Type\n(R-3-A/N)","NSCC Security Issue Number\n(OC-16-A/N)","NSCC Sidepocket ID\n(O-3-A/N)","Share Class\n(O-8-A/N)","Security Identifier\n(O-1-A/N)","Security Issue ID\n(O-12-A/N)","Filler\n(R-38-A/N)","NSCC Reject Indicator\n(R-1-A/N)","NSCC Reject Reason Code 1\n(R-4-A/N)","NSCC Reject Reason Code 2\n(R-4-A/N)","NSCC Reject Reason Code 3\n(R-4-A/N)","NSCC Reject Reason Code 4\n(R-4-A/N)","Filler\n(R-8-A/N)","Unitized Indicator\n(R-1-A/N)","Reconfirmation Indicator\n(OC-1-A/N)","Correction Indicator\n(OC-1-A/N)","Series NSCC Security Issue Number\n(OC-16-A/N)","Transfer Completion Date\n(OC-8-N)","Control Number\n(R-20-A/N)","Submission Date\n(R-8-N)","Effective Date\n(R-8-N)","Money Amount\n(OC-16-N)","Transaction Type\n(O-2-A/N)","Transaction Code\n(O-2-A/N)","Transfer Type\n(OC-2-A/N)","Transfer Reason Code\n(O-2-A/N)","Date of Death\n(OC-8-N)","Date of Gift\n(OC-8-N)","Trading Model\n(OC-1-A/N)","ACATS Related Control Number\n(O-20-A/N)","Delivering Firm Account Number\n(OC-20-A/N)","Delivering Fund Account Number\n(OC-20-A/N)","Delivering Closing Balance Amount\n(O-16-N)","Receiving Firm Account Number\n(OC-20-A/N)","Receiving Fund Account Number\n(OC-20-A/N)","Receiving Closing Balance Amount\n(O-16-N)","Share Quantity\n(OC-16-N)","RIA/RR Indicator\n(OC-1-A/N)","Delivering Introducing Broker Dealer Firm Name/Registered Investment Advisor Firm Name\n(OC-35-A/N)","Receiving Introducing Broker Dealer Firm Name/Registered Investment Advisor Firm Name\n(OC-35-A/N)","ToBeExecuted"]
["0450","","","","","","|NoTag|","|NoTag|","|NoTag|","|NoTag|","|NoTag|","","","","","","|NoTag|","","","","","","","","","","|NoTag|","|NoTag|","","|NoTag|","","","","|NoTag|","","","|NoTag|","","","|NoTag|","","","","","No"]

{"sheet":"AcctTrnsf Conf-Corr_DD","index":46,"n_rows":45,"n_cols":7,"rows_kept":45,"cut":false,"hidden":true,"merged":[]}
["Field Name","Start","End","Length","Type","Opt/Req","Default2Zero"]
["Record Length",1,4,4,"N","R ","No"]
["Originator Type",5,5,1,"A/N","R "]
["Firm Number",6,13,8,"A/N","R "]
["Fund Number",14,21,8,"A/N","R ","No"]
["Record Type",22,24,3,"A/N","R "]
["NSCC Security Issue Number",25,40,16," A/N","OC "]
["NSCC Sidepocket ID",41,43,3,"A/N","O "]
["Share Class",44,51,8,"A/N","O"]
["Security Identifier",52,52,1,"A/N","O"]
["Security Issue ID",53,64,12,"A/N","O"]
["Filler",65,102,38,"A/N","R"]
["NSCC Reject Indicator",103,103,1,"A/N","R"]
["NSCC Reject Reason Code 1",104,107,4,"A/N","R"]
["NSCC Reject Reason Code 2",108,111,4,"A/N","R"]
["NSCC Reject Reason Code 3",112,115,4,"A/N","R"]
["NSCC Reject Reason Code 4",116,119,4,"A/N","R"]
["Filler",120,127,8,"A/N","R"]
["Unitized Indicator",128,128,1,"A/N","R"]
["Reconfirmation Indicator",129,129,1,"A/N","OC"]
["Correction Indicator",130,130,1,"A/N","OC"]
["Series NSCC Security Issue Number",131,146,16,"A/N","OC "]
["Transfer Completion Date",147,154,8,"N","OC","No"]
["Control Number",155,174,20,"A/N","R "]
["Submission Date",175,182,8,"N","R","No"]
["Effective Date",183,190,8,"N","R ","No"]
["Money Amount",191,206,16,"N","OC","No"]
["Transaction Type",207,208,2,"A/N","O"]
["Transaction Code",209,210,2,"A/N","O"]
["Transfer Type",211,212,2,"A/N","OC"]
["Transfer Reason Code",213,214,2,"A/N","O"]
["Date of Death",215,222,8,"N","OC","No"]
["Date of Gift",223,230,8,"N","OC","No"]
["Trading Model",231,231,1,"A/N","OC"]
["ACATS Related Control Number",232,251,20,"A/N","O"]
["Delivering Firm Account Number",252,271,20,"A/N","OC "]
["Delivering Fund Account Number",272,291,20,"A/N","OC "]
["Delivering Closing Balance Amount",292,307,16,"N","O ","No"]
["Receiving Firm Account Number",308,327,20,"A/N","OC "]
["Receiving Fund Account Number",328,347,20,"A/N","OC "]
["Receiving Closing Balance Amount",348,363,16,"N","O ","No"]
["Share Quantity",364,379,16,"N","OC","No"]
["RIA/RR Indicator",380,380,1,"A/N","OC"]
["Delivering Introducing Broker Dealer Firm Name/Registered Investment Advisor Firm Name",381,415,35,"A/N ","OC"]
["Receiving Introducing Broker Dealer Firm Name/Registered Investment Advisor Firm Name",416,450,35,"A/N","OC"]

{"sheet":"RevisionHistory","index":47,"n_rows":53,"n_cols":4,"rows_kept":53,"cut":false,"hidden":false,"merged":[]}
["Date","Author","Version","Change Description"]
["2010-09-20","Archana Patnala",1.1000000000000001,"Format of the File name has been changed to create the filename with time stamp"]
["2010-11-01","Archana Patnala",1.2,"Added a SettlementOnlyInstruction Template for \"64482_WMS – Multi-Curr Rel II 2010 CAP & 529\""]
["2011-07-25","Shyam Singaravelu",1.3,"Updated for the 71061 - AIP Release I 2011 enhancements"]
["2011-10-24","Shyam Singaravelu","2.0","Updated as per revised DD v6.3"]
["2012-04-20","P. Narayanaswami",2.1,"Updated per DD version 6.10"]
["2012-04-26","P. Narayanaswami",2.2000000000000002,"Updated to make ToBeExecuted column case insensitive & changed naming convention used for generated files"]
["2012-07-11","P. Narayanaswami",2.2999999999999998,"Added a check for Configuration Path & Output File path folders to ensure that path specified exists"]
["2013-04-29","P. Narayanaswami",2.4,"  i. Revised as per the latest version of the DD (8.0)\n ii. Removed config path / output file requirements - macro file location is used\niii. Header to include opt./req, field length, and data type info\niv. ToBeExecuted column marked as Y or Yes will be used for record generation; data will be skipped if any other value is present in that column [column is case insensitive]"]
["2013-05-28","P. Narayanaswami",2.5,"  i. Added DataTrak sheet and updated macro to include the DataTrak header and trailer records to the MRO and CSV files to be generated\n ii. Multibatch Batch count will be reset to 1 when the processing date field is changed\n iii. Multibatch Batch counter will NOT be increased if there are issues [handled exceptions; unhandled exceptions will increase the batch count]"]
["2013-06-14","P. Narayanaswami",2.6,"Removed DataTrak Header/Trailer option"]
["2013-06-25","P. Narayanaswami",2.7,"Removed the DataTrack cycle reset when opening the macro file"]
["2013-07-10","P. Narayanaswami",2.8,"Fixed blank line issue in the file generated; use space for |NoTag| numeric fields in MRO instead of 0s"]
["2013-10-02","P. Narayanaswami",2.9,"Updated sheet name / column headers as per product team comments"]
["2013-12-05","P. Narayanaswami","3.0","Updated version to 3.0"]
["2014-04-03","P. Narayanaswami",3.1," i. Included validation to check the value specified in the \"Append\" column in Template sheet - if value other than Yes/No is present macro will thrown an error\nii. Numeric fields will be defaulted to zero in both MRO & CSV [CSV - single zero & MRO - 0s to the entire length of the field]"]
["2014-04-09","P. Narayanaswami",3.2,"> Breakpoint upper/lower limit, Percentage of Pop and Commission Percentage for all breakpoints are not defaulted to zero\n> Related Control Number not defaulted to 0 in Commission & Activity record\n> Command button type changed from ActiveX to Form control\n> Locked sheets to allow insert/delete cells & formatting"]
["2014-04-09","P. Narayanaswami",3.3,"Required numeric fields not defaulted to zero"]
["2014-04-16","P. Narayanaswami",3.4,"The below fields are defaulted to zero when no value is provided\nRecord Type            Field Name                                                          Opt/Req\n061                            Lock Up Time Period in # of Days                   O\n011, 012, 043            Breakpoint Limit Number                                 OC\n001, 002, 032            Breakpoint Limit Number                                 OC\n007, 008, 040 - 042  Number of Business Days Until Valuation      O\n007, 008, 040 - 042  Number of Business Days for Holdback         OC\n007, 008, 040 - 042  Breakpoint Limit Number                                 OC\n"]
["2014-04-18","P. Narayanaswami","4.0","Updated Version to 4.0"]
["2014-04-23","P. Narayanaswami",4.0999999999999996,"Updated for FATCA changes"]
["2014-05-22","P. Narayanaswami",4.2,"Fixed an issue with \"system generated\" fields"]
["2014-05-23","P. Narayanaswami","5.0","Updated version to 5.0"]
["2014-12-02","V. Musielak",5.0999999999999996,"Updated for AIP Share Transfer Records and Enhancements"]
["2015-02-02","V. Musielak","6.0","Updated version to 6.0"]
["2015-06-25","V. Musielak",6.1,"Updated for Intro Broker Dealer Enhancements"]
["2015-07-17","V. Musielak","7.0","Updated version to 7.0"]
["2016-02-17","V. Musielak","7.1","Updated for Valuation (valuation mathod now required)"]
["2016-03-03","V. Musielak","8.0","Updated version to 8.0"]
["2016-03-07","V. Musielak","8.1","Updated for HF Purchase Order Processing"]
["2016-05-06","V. Musielak","9.0","Updated version to 9.0"]
["2017-01-26","V. Musielak","9.1","Updated for AIP DoL Changes and Class to Class Changes"]
["2017-03-08","V. Musielak","10.0","Updated version to 10.0"]
["2017-03-22","V. Musielak","10.1","Changed Direct Purchase Field in Activity Distribution record from Optional to Optional Conditional"]
["2017-06-16","V. Musielak","10.2","Update for Security Announcement Changes"]
["2017-06-22","V. Musielak","10.3","Updated for Non-traded REITS and BDC enhancements"]
["2017-08-25","V. Musielak","11.0","Updated version to 11.0"]
["2018-06-28","V. Musielak","11.1","Updated for Electronic Document enhancements\n  o Security General Profile\n  o Electronic Documentation\n  o Order\n  o Order w-Registration\n  o Order Ackn-Reject-Exit\n  o Acct. Registration-Maintenance\n  o Registration-Activity Ackn Rej\n  o Payment Record\n  o Payment Acknowledgement\n  o Valuation"]
["2018-09-15","V. Musielak","12.0","Updated version to 12.0"]
["2019-01-10","V. Musielak","12.1","Removed default zero 0 for Share Quantity field not populated for Order records"]
["2019-02-12","V. Musielak","12.2","Added Re-acknowledgement Indicator to the Order Ackn-Rej-Exit records"]
["2019-02-26","V. Musielak","12.3","Changed Tender Offer Subject to Holdback Indicator field and Tender Offer Oversold Indicator field from Optional Conditional to Optional for the Order Correction-Confirmation records (007, 008, 040, 041, and 042)"]
["2019-04-08","V. Musielak","12.4","Changed all Firm Numbers, Fund Numbers, Control Numbers, Related Control Numbers and Recipient Numbers from numeric to Alpha-numeric"]
["2020-03-26","V. Musielak","13.0","Updated version to 13.0"]
["2020-04-23","V. Musielak","13.1","Updated for Project #137683 AIP Private Equity & Transfer Enhancements\n  o Security General Profile\n  o Security Announcement\n  o Position\n  o Activity Distribution\n  o Order\n  o Order w-Registration\n  o Order Acknowledgement-Reject-Exit\n  o Order Correction - Confirmation\n  o Account Registration-Maintenance\n  o Account Transfer\n  o Transfer Acknowledgement-Reject-Exit\n  o Transfer Confirmation - Correction"]
["2020-09-23","V. Musielak","14.0","Updated version to 14.0"]
["2021-05-17","V. Musielak","14.1","Updated for Project #137683 AIP Private Equity & Transfer Enhancements\n  o Position\n  o Activity Distribution\n  o Order\n  o Order w-Registration\n  o Order Correction - Confirmation\n  o Account Registration-Maintenance\n  o Exchange-Switch"]
["2021-09-23","V. Musielak","15.0","Updated version to 15.0"]
["2022-05-07","V. Musielak","15.0","Updated version to 15.0 Folder selection"]
["2022-08-03","V. Musielak","15.1","Updated for Project #146101 Document Transfer & 2022 Enhancements\n  o Security General\n  o Activity & Distribution\n  o Document Transfer Manifest\n  o Document Transfer Ackn-Rej"]
["2022-09-20","V. Musielak","16.0","Updated version to 16.0"]
["2023-05-01","V. Musielak","16.1","Updated for Project #148457 2023 Enhancements\n  o Activity & Distribution\n  o Account Registration/Maintenance\n  o Order with Registration\n  o Order Correction-Confirmation"]
["2022-06-29","V. Musielak","17.0","Updated version to 17.0"]